Organisation Name,Organisation Code,Effective Date,Directorate,Service Category,Service Category URI,Supplier Name,Payment Date,Transaction Number,Net Amount,Irrecoverable VAT,Purpose_of_the_expenditure,Merchant Category
Wyre Council,http://opendatacommunities.org/doc/district-council/wyre,29/09/2022,People and Places,Cultural and Related Services,132A,National World Publishing Ltd,08/09/2022,PE143685,389.76,0.00,Half Page Advert and Editorial for Wyre Theatres,Advertising - General
Wyre Council,http://opendatacommunities.org/doc/district-council/wyre,29/09/2022,People and Places,Cultural and Related Services,132A,National World Publishing Ltd,08/09/2022,PE143731,251.66,0.00,Half Page Advert and Editorial for Wyre Theatres,Advertising - General
Wyre Council,http://opendatacommunities.org/doc/district-council/wyre,29/09/2022,People and Places,Cultural and Related Services,132A,Preston City Council,20/09/2022,PE143922,101.70,0.00,3 x Ed Byrne Posterboard 3 x Food Festival Posterboards,Advertising - General
Wyre Council,http://opendatacommunities.org/doc/district-council/wyre,29/09/2022,Resources,Planning and Development Servs,132C,Daisy Communications LTD,12/09/2022,RS143381,37.97,0.00,Monthly Charges to the 31/07/2037,Advertising - General
Wyre Council,http://opendatacommunities.org/doc/district-council/wyre,29/09/2022,Resources,Support Services,135B,C I E H,23/09/2022,RS144096,2300.00,0.00,EHO/ Commercial Safety Officer and EHO/ Environmental Protection Officer advertised on EHN News,Advertising - Recruitment
Wyre Council,http://opendatacommunities.org/doc/district-council/wyre,29/09/2022,Resources,Support Services,135B,Spacehouse Limited,28/09/2022,RS144265,750.00,0.00,Chief Executive Job Advertising - MJ Artwork,Advertising - Recruitment
Wyre Council,http://opendatacommunities.org/doc/district-council/wyre,29/09/2022,People and Places,Environmental Services,132B,National World Publishing Ltd,29/09/2022,PE144325,499.20,0.00,Licensing notice for taxi tariff 22.,Advertising - Statutory Notices
Wyre Council,http://opendatacommunities.org/doc/district-council/wyre,29/09/2022,People and Places,Planning and Development Servs,132C,National World Publishing Ltd,08/09/2022,PE143727,345.60,0.00,Public notice for Garstang courier and Blackpool Gazette Wednesday 24/08/22,Advertising - Statutory Notices
Wyre Council,http://opendatacommunities.org/doc/district-council/wyre,29/09/2022,People and Places,Planning and Development Servs,132C,National World Publishing Ltd,26/09/2022,PE144121,561.60,0.00,Public notice for Blackpool Gazette and Garstang Courier 21.09.22,Advertising - Statutory Notices
Wyre Council,http://opendatacommunities.org/doc/district-council/wyre,29/09/2022,People and Places,Planning and Development Servs,132C,National World Publishing Ltd,26/09/2022,PE144120,377.40,0.00,Public notice for Fleetwood Weekly News,Advertising - Statutory Notices
Wyre Council,http://opendatacommunities.org/doc/district-council/wyre,29/09/2022,People and Places,Planning and Development Servs,132C,National World Publishing Ltd,21/09/2022,PE143987,518.40,0.00,Public notice for Garstang courier and Blackpool Gazette Wednesday 31/08/22,Advertising - Statutory Notices
Wyre Council,http://opendatacommunities.org/doc/district-council/wyre,29/09/2022,People and Places,Planning and Development Servs,132C,National World Publishing Ltd,23/09/2022,PE144081,345.60,0.00,Public notice for Garstang courier and Blackpool Gazette Wednesday 14/09/22,Advertising - Statutory Notices
Wyre Council,http://opendatacommunities.org/doc/district-council/wyre,29/09/2022,People and Places,Support Services,135B,M J Wilkinson,15/09/2022,PE143405,105.60,0.00,Hire of Labour only 6/6/22 to 6/6/22 timesheet 10768 @ 105.60,Agency Staff
Wyre Council,http://opendatacommunities.org/doc/district-council/wyre,29/09/2022,People and Places,Support Services,135B,M J Wilkinson,15/09/2022,PE143909,488.40,0.00,Hire of Labour only Order no 1077527/07/22 to 29/07/2237 units @ 13.20,Agency Staff
Wyre Council,http://opendatacommunities.org/doc/district-council/wyre,29/09/2022,People and Places,Support Services,135B,M J Wilkinson,15/09/2022,PE143911,488.40,0.00,Hire of labour only Order no 1077311/07/2022 to 15/07/202237 units @ 13.20,Agency Staff
Wyre Council,http://opendatacommunities.org/doc/district-council/wyre,29/09/2022,People and Places,Support Services,135B,M J Wilkinson,15/09/2022,PE143912,211.20,0.00,Hire of labour only Order no 1077204/07/2022 to 05/07/2022 16 units @ 13.20,Agency Staff
Wyre Council,http://opendatacommunities.org/doc/district-council/wyre,29/09/2022,People and Places,Cultural and Related Services,132A,Catering Elite Ltd,13/09/2022,PE143815,252.28,0.00,Agency staff we 17/7/22,Agency Staff
Wyre Council,http://opendatacommunities.org/doc/district-council/wyre,29/09/2022,People and Places,Cultural and Related Services,132A,Catering Elite Ltd,13/09/2022,PE143814,118.72,0.00,Agency staff we 21/8/22,Agency Staff
Wyre Council,http://opendatacommunities.org/doc/district-council/wyre,29/09/2022,People and Places,Cultural and Related Services,132A,Catering Elite Ltd,13/09/2022,PE143813,226.31,0.00,Agency staff we 14/8/22,Agency Staff
Wyre Council,http://opendatacommunities.org/doc/district-council/wyre,29/09/2022,People and Places,Cultural and Related Services,132A,Catering Elite Ltd,13/09/2022,PE143812,578.76,0.00,Agency staff we 7/8/22,Agency Staff
Wyre Council,http://opendatacommunities.org/doc/district-council/wyre,29/09/2022,People and Places,Cultural and Related Services,132A,Catering Elite Ltd,13/09/2022,PE143811,215.18,0.00,Agency staff we 31/7/22,Agency Staff
Wyre Council,http://opendatacommunities.org/doc/district-council/wyre,29/09/2022,People and Places,Cultural and Related Services,132A,Catering Elite Ltd,13/09/2022,PE143810,129.85,0.00,Agency staff we 24/7/22,Agency Staff
Wyre Council,http://opendatacommunities.org/doc/district-council/wyre,29/09/2022,People and Places,Cultural and Related Services,132A,Catering Elite Ltd,13/09/2022,PE143809,59.36,0.00,Agency staff we 10/7/22,Agency Staff
Wyre Council,http://opendatacommunities.org/doc/district-council/wyre,29/09/2022,Resources,Support Services,135B,BUTLER ROSE,26/09/2022,RS143773,-1909.05,0.00,Time sheet for w/e 31/07/22 - credit note to be matched against this.  see info in notes,Agency Staff
Wyre Council,http://opendatacommunities.org/doc/district-council/wyre,29/09/2022,Resources,Support Services,135B,BUTLER ROSE,26/09/2022,RS144116,1909.05,0.00,Interim Accountant Support - (July - September 2022),Agency Staff
Wyre Council,http://opendatacommunities.org/doc/district-council/wyre,29/09/2022,Resources,Support Services,135B,BUTLER ROSE,26/09/2022,RS143853,1909.05,0.00,Interim Accountant Support - (July - September 2022),Agency Staff
Wyre Council,http://opendatacommunities.org/doc/district-council/wyre,29/09/2022,Resources,Support Services,135B,BUTLER ROSE,26/09/2022,RS144152,1909.05,0.00,Interim Accountant Support - (July - September 2022),Agency Staff
Wyre Council,http://opendatacommunities.org/doc/district-council/wyre,29/09/2022,Resources,Support Services,135B,BUTLER ROSE,26/09/2022,RS144151,1909.05,0.00,Interim Accountant Support - (July - September 2022),Agency Staff
Wyre Council,http://opendatacommunities.org/doc/district-council/wyre,29/09/2022,Resources,Support Services,135B,BUTLER ROSE,30/09/2022,RS144363,1527.24,0.00,Interim Accountant Support - (July - September 2022),Agency Staff
Wyre Council,http://opendatacommunities.org/doc/district-council/wyre,29/09/2022,Resources,Support Services,135B,BUTLER ROSE,06/09/2022,RS143645,1909.05,0.00,Interim Accountant Support - (July - September 2022),Agency Staff
Wyre Council,http://opendatacommunities.org/doc/district-council/wyre,29/09/2022,People and Places,Support Services,135B,BUTLER ROSE,26/09/2022,PE143248,1909.05,0.00,Time sheet for w/e 31/07/22 - credit note to be matched against this.  see info in notes,Agency Staff
Wyre Council,http://opendatacommunities.org/doc/district-council/wyre,29/09/2022,People and Places,Cultural and Related Services,132A,LINK SECURITY SERVICES NW LTD,13/09/2022,PE143820,978.75,0.00,Agency staff - Marine Hall,Agency Staff
Wyre Council,http://opendatacommunities.org/doc/district-council/wyre,29/09/2022,Resources,Housing General Fund,134A,G2V Recruitment Group Ltd T/A G2 Recruitment Solu,22/09/2022,RS142917,1059.45,0.00,Pay 17/07/2022,Agency Staff
Wyre Council,http://opendatacommunities.org/doc/district-council/wyre,29/09/2022,Resources,Housing General Fund,134A,G2V Recruitment Group Ltd T/A G2 Recruitment Solu,14/09/2022,RS143646,1321.25,0.00,Period End - 21/08/22.,Agency Staff
Wyre Council,http://opendatacommunities.org/doc/district-council/wyre,29/09/2022,Resources,Housing General Fund,134A,G2V Recruitment Group Ltd T/A G2 Recruitment Solu,14/09/2022,RS143539,1328.95,0.00,Period end 14/08/22,Agency Staff
Wyre Council,http://opendatacommunities.org/doc/district-council/wyre,29/09/2022,Resources,Housing General Fund,134A,G2V Recruitment Group Ltd T/A G2 Recruitment Solu,06/09/2022,RS143648,1313.55,0.00,Period End 07/08/2022,Agency Staff
Wyre Council,http://opendatacommunities.org/doc/district-council/wyre,29/09/2022,Resources,Housing General Fund,134A,G2V Recruitment Group Ltd T/A G2 Recruitment Solu,30/09/2022,RS144364,525.00,0.00,04/09/22 - 11/09/22 - Pay x2,Agency Staff
Wyre Council,http://opendatacommunities.org/doc/district-council/wyre,29/09/2022,People and Places,Housing General Fund,134A,G2V Recruitment Group Ltd T/A G2 Recruitment Solu,22/09/2022,PE143239,1312.50,0.00,Pay 03/08/22,Agency Staff
Wyre Council,http://opendatacommunities.org/doc/district-council/wyre,29/09/2022,People and Places,Housing General Fund,134A,G2V Recruitment Group Ltd T/A G2 Recruitment Solu,22/09/2022,PE142985,1324.75,0.00,Pay 27/07/2022,Agency Staff
Wyre Council,http://opendatacommunities.org/doc/district-council/wyre,29/09/2022,People and Places,Support Services,135B,Park Avenue Recruitment Ltd,15/09/2022,PE143855,3900.00,0.00,Appointment of an interim Estates Surveyor,Agency Staff
Wyre Council,http://opendatacommunities.org/doc/district-council/wyre,29/09/2022,People and Places,Support Services,135B,Park Avenue Recruitment Ltd,15/09/2022,PE143854,2057.50,0.00,Appointment of an interim Estates Surveyor,Agency Staff
Wyre Council,http://opendatacommunities.org/doc/district-council/wyre,29/09/2022,Resources,Support Services,135B,Park Avenue Recruitment Ltd,22/09/2022,RS144054,3762.50,0.00,Appointment of an interim Estates Surveyor,Agency Staff
Wyre Council,http://opendatacommunities.org/doc/district-council/wyre,29/09/2022,Resources,Support Services,135B,Park Avenue Recruitment Ltd,23/09/2022,RS144103,1725.00,0.00,Appointment of an interim Estates Surveyor,Agency Staff
Wyre Council,http://opendatacommunities.org/doc/district-council/wyre,29/09/2022,Resources,Housing General Fund,134A,Park Avenue Recruitment Ltd,29/09/2022,RS144338,2882.49,0.00,04/09/22 - 11/09/22 Pay.,Agency Staff
Wyre Council,http://opendatacommunities.org/doc/district-council/wyre,29/09/2022,Resources,Housing General Fund,134A,Park Avenue Recruitment Ltd,30/09/2022,RS144353,1410.63,0.00,pay - invoice 20437,Agency Staff
Wyre Council,http://opendatacommunities.org/doc/district-council/wyre,29/09/2022,Resources,Housing General Fund,134A,Park Avenue Recruitment Ltd,21/09/2022,RS143939,1444.56,0.00,28/08/22 - Standard Hours.,Agency Staff
Wyre Council,http://opendatacommunities.org/doc/district-council/wyre,29/09/2022,People and Places,Planning and Development Servs,132C,Capita Property and Infrastructure Ltd,26/09/2022,PE144196,1522.02,0.00,Planning application support provide by Capita,Agency Staff
Wyre Council,http://opendatacommunities.org/doc/district-council/wyre,29/09/2022,People and Places,Planning and Development Servs,132C,Capita Property and Infrastructure Ltd,09/09/2022,PE143734,4749.18,0.00,Planning application support provide by Capita,Agency Staff
Wyre Council,http://opendatacommunities.org/doc/district-council/wyre,29/09/2022,People and Places,Cultural and Related Services,132A,Quantum Staffing Solutions Ltd,06/09/2022,PE143662,141.08,0.00,Agency staff - Marine Hall,Agency Staff
Wyre Council,http://opendatacommunities.org/doc/district-council/wyre,29/09/2022,People and Places,Cultural and Related Services,132A,Quantum Staffing Solutions Ltd,06/09/2022,PE143661,199.73,0.00,Agency staff - Marine Hall,Agency Staff
Wyre Council,http://opendatacommunities.org/doc/district-council/wyre,29/09/2022,People and Places,Cultural and Related Services,132A,Quantum Staffing Solutions Ltd,06/09/2022,PE143660,756.61,0.00,Agency staff - Marine Hall we 14/8/22,Agency Staff
Wyre Council,http://opendatacommunities.org/doc/district-council/wyre,29/09/2022,People and Places,Cultural and Related Services,132A,Quantum Staffing Solutions Ltd,06/09/2022,PE143659,920.71,0.00,Agency staff - Marine Hall we 7/8/22,Agency Staff
Wyre Council,http://opendatacommunities.org/doc/district-council/wyre,29/09/2022,Resources,Support Services,135B,Michael Page International Recruitment Limited,21/09/2022,RS144003,900.00,0.00,2 days per week for 6 months plus travel expenses. See ODR dated 29/07/22,Agency Staff
Wyre Council,http://opendatacommunities.org/doc/district-council/wyre,29/09/2022,Resources,Support Services,135B,Michael Page International Recruitment Limited,29/09/2022,RS144270,2700.00,0.00,2 days per week for 6 months plus travel expenses. See ODR dated 29/07/22,Agency Staff
Wyre Council,http://opendatacommunities.org/doc/district-council/wyre,29/09/2022,Resources,Support Services,135B,Michael Page International Recruitment Limited,29/09/2022,RS144337,420.85,0.00,2 days per week for 6 months plus travel expenses. See ODR dated 29/07/22,Agency Staff
Wyre Council,http://opendatacommunities.org/doc/district-council/wyre,29/09/2022,People and Places,Planning and Development Servs,132C,Lancashire County Council,29/09/2022,PE143171,247.66,0.00,INS280065 Fleetwood Market Hall - Fire Alarm Service,Alarm Systems and Security - Annual
Wyre Council,http://opendatacommunities.org/doc/district-council/wyre,29/09/2022,People and Places,Planning and Development Servs,132C,Lancashire County Council,29/09/2022,PE143171,140.07,0.00,INS280066 Fleetwood Market Hall - Intruder Alarm Service,Alarm Systems and Security - Annual
Wyre Council,http://opendatacommunities.org/doc/district-council/wyre,29/09/2022,People and Places,Cultural and Related Services,132A,Lancashire County Council,29/09/2022,PE143171,56.28,0.00,INS285483 Thornton Cleveleys Marsh Mill -  Fire Alarm Service,Alarm Systems and Security - Annual
Wyre Council,http://opendatacommunities.org/doc/district-council/wyre,29/09/2022,People and Places,Cultural and Related Services,132A,Lancashire County Council,29/09/2022,PE143171,73.08,0.00,INS285484 Thornton Cleveleys Marsh Mill - Intruder Alarm Service,Alarm Systems and Security - Annual
Wyre Council,http://opendatacommunities.org/doc/district-council/wyre,29/09/2022,People and Places,Cultural and Related Services,132A,Lancashire County Council,29/09/2022,PE143171,32.47,0.00,INS295326 Thornton Cleveleys Marsh Mill - Alarm Monitoring,Alarm Systems and Security - Annual
Wyre Council,http://opendatacommunities.org/doc/district-council/wyre,29/09/2022,Resources,Support Services,135B,Daisy Communications LTD,12/09/2022,RS143381,9.48,0.00,Monthly Charges to the 31/07/2044,Alarm Systems and Security - Annual
Wyre Council,http://opendatacommunities.org/doc/district-council/wyre,29/09/2022,People and Places,Support Services,135B,M D Security,09/09/2022,PE143708,60.00,0.00,emergency light testing,Alarm Systems and Security - Annual
Wyre Council,http://opendatacommunities.org/doc/district-council/wyre,29/09/2022,People and Places,Support Services,135B,M D Security,09/09/2022,PE143707,60.00,0.00,emergency light testing at civic centre,Alarm Systems and Security - Annual
Wyre Council,http://opendatacommunities.org/doc/district-council/wyre,29/09/2022,People and Places,Planning and Development Servs,132C,M D Security,13/09/2022,PE143624,725.75,0.00,Replace faulty refuge alarm panel,Alarm Systems and Security - Responsive
Wyre Council,http://opendatacommunities.org/doc/district-council/wyre,29/09/2022,People and Places,Planning and Development Servs,132C,M D Security,13/09/2022,PE143705,210.00,0.00,Replace expander under Bird Cage roof at Fleetwood Market,Alarm Systems and Security - Responsive
Wyre Council,http://opendatacommunities.org/doc/district-council/wyre,29/09/2022,People and Places,Planning and Development Servs,132C,M D Security,16/09/2022,PE143625,49.00,0.00,investigate a diagnose fault - copse road depot,Alarm Systems and Security - Responsive
Wyre Council,http://opendatacommunities.org/doc/district-council/wyre,29/09/2022,People and Places,Planning and Development Servs,132C,M D Security,09/09/2022,PE143701,134.00,0.00,callout to faulty shutter,Alarm Systems and Security - Responsive
Wyre Council,http://opendatacommunities.org/doc/district-council/wyre,29/09/2022,People and Places,Planning and Development Servs,132C,M D Security,09/09/2022,PE143709,49.00,0.00,cleaned pir rear of garage mot veolia,Alarm Systems and Security - Responsive
Wyre Council,http://opendatacommunities.org/doc/district-council/wyre,29/09/2022,People and Places,Cultural and Related Services,132A,M D Security,09/09/2022,PE143700,94.00,0.00,replace smoke detector at memorial park kitchen,Alarm Systems and Security - Responsive
Wyre Council,http://opendatacommunities.org/doc/district-council/wyre,29/09/2022,People and Places,Cultural and Related Services,132A,M D Security,08/09/2022,PE143654,49.00,0.00,Call out to Rossall Tower,Alarm Systems and Security - Responsive
Wyre Council,http://opendatacommunities.org/doc/district-council/wyre,29/09/2022,People and Places,Cultural and Related Services,132A,M D Security,09/09/2022,PE143704,109.00,0.00,Works to rossall tower,Alarm Systems and Security - Responsive
Wyre Council,http://opendatacommunities.org/doc/district-council/wyre,29/09/2022,People and Places,Cultural and Related Services,132A,M D Security,09/09/2022,PE143702,114.00,0.00,replace shcok/door contact on first floor at mount pavilion,Alarm Systems and Security - Responsive
Wyre Council,http://opendatacommunities.org/doc/district-council/wyre,29/09/2022,People and Places,Support Services,135B,GARRY CARR BUILDING SERVICES LTD,13/09/2022,PE143480,4900.00,0.00,"Alterations and repairs, decorations to planning files room",Alterations Payments
Wyre Council,http://opendatacommunities.org/doc/district-council/wyre,29/09/2022,Resources,Planning and Development Servs,132C,The Mina Group Ltd,22/09/2022,RS144048,3566.66,0.00,Production of sign for project neptune site,Amenity and Information Signs
Wyre Council,http://opendatacommunities.org/doc/district-council/wyre,29/09/2022,Finance,Corporate and Democratic Core,131A,NATWEST BANK,08/09/2022,WPST00072211,894.57,0.00,natwest 31/8,Bank Charges
Wyre Council,http://opendatacommunities.org/doc/district-council/wyre,29/09/2022,Finance,Corporate and Democratic Core,131A,NATWEST BANK,26/09/2022,WPST00075424,5867.54,0.00,Worldpay Invoice 217219126,Bank Charges
Wyre Council,http://opendatacommunities.org/doc/district-council/wyre,29/09/2022,Finance,Corporate and Democratic Core,131A,NATWEST BANK,26/09/2022,WPST00075426,3118.49,0.00,Worldpay Invoice 217108048,Bank Charges
Wyre Council,http://opendatacommunities.org/doc/district-council/wyre,29/09/2022,Finance,Corporate and Democratic Core,131A,NATWEST BANK,26/09/2022,WPST00075432,3614.03,0.00,Worldpay Invoice 221392842,Bank Charges
Wyre Council,http://opendatacommunities.org/doc/district-council/wyre,29/09/2022,Finance,Corporate and Democratic Core,131A,NATWEST BANK,26/09/2022,WPST00075434,4155.25,0.00,Worldpay Invoice 221557476,Bank Charges
Wyre Council,http://opendatacommunities.org/doc/district-council/wyre,29/09/2022,People and Places,Environmental Services,132B,3D Environmental LTD,27/09/2022,PE143878,591.79,0.00,"Thornton-Cleveleys  To remove all miscellaneous waste from the rear garden area, as specified. (Up to 1200kg)",Boarding Up Premises/House Clearance
Wyre Council,http://opendatacommunities.org/doc/district-council/wyre,29/09/2022,People and Places,Planning and Development Servs,132C,Myerscough College,30/09/2022,PE144379,117.00,0.00,19 July 22 Carbon reduction,Business Workshop/Advice/Surgery Events
Wyre Council,http://opendatacommunities.org/doc/district-council/wyre,29/09/2022,People and Places,Cultural and Related Services,132A,NSL Services Group,29/09/2022,PE144300,68.41,0.00,,Cash Collection Security Service
Wyre Council,http://opendatacommunities.org/doc/district-council/wyre,29/09/2022,People and Places,Support Services,135B,NSL Services Group,29/09/2022,PE144300,136.82,0.00,,Cash Collection Security Service
Wyre Council,http://opendatacommunities.org/doc/district-council/wyre,29/09/2022,People and Places,Parking Services,133F,NSL Services Group,29/09/2022,PE144300,1847.14,0.00,,Cash Collection Security Service
Wyre Council,http://opendatacommunities.org/doc/district-council/wyre,29/09/2022,People and Places,Planning and Development Servs,132C,NSL Services Group,29/09/2022,PE144300,136.82,0.00,,Cash Collection Security Service
Wyre Council,http://opendatacommunities.org/doc/district-council/wyre,29/09/2022,People and Places,Environmental Services,132B,N Power LTD,27/09/2022,PE144064,79.57,0.00,IN04783330 - 1-31 May 22 - CCTV electricity chargers,CCTV Running Costs
Wyre Council,http://opendatacommunities.org/doc/district-council/wyre,29/09/2022,People and Places,Environmental Services,132B,N Power LTD,27/09/2022,PE144064,1.63,0.00,Climate Change Levy,CCTV Running Costs
Wyre Council,http://opendatacommunities.org/doc/district-council/wyre,29/09/2022,People and Places,Environmental Services,132B,N Power LTD,27/09/2022,PE144066,1.65,0.00,Climate Change Levy,CCTV Running Costs
Wyre Council,http://opendatacommunities.org/doc/district-council/wyre,29/09/2022,People and Places,Environmental Services,132B,N Power LTD,27/09/2022,PE144066,81.09,0.00,IN04783422 - 1-31 July 22 - CCTV electricity charges,CCTV Running Costs
Wyre Council,http://opendatacommunities.org/doc/district-council/wyre,29/09/2022,People and Places,Environmental Services,132B,N Power LTD,27/09/2022,PE144067,80.94,0.00,IN04783465 - 1-31 Aug 22 - CCTV electricity charges,CCTV Running Costs
Wyre Council,http://opendatacommunities.org/doc/district-council/wyre,29/09/2022,People and Places,Environmental Services,132B,N Power LTD,27/09/2022,PE144067,1.65,0.00,Climate Levy Charge,CCTV Running Costs
Wyre Council,http://opendatacommunities.org/doc/district-council/wyre,29/09/2022,People and Places,Environmental Services,132B,N Power LTD,27/09/2022,PE144061,1.59,0.00,Climate Change |Levy,CCTV Running Costs
Wyre Council,http://opendatacommunities.org/doc/district-council/wyre,29/09/2022,People and Places,Environmental Services,132B,N Power LTD,27/09/2022,PE144061,78.41,0.00,IN04783203 - 1-28 Feb 2022 - CCTV Camera usage,CCTV Running Costs
Wyre Council,http://opendatacommunities.org/doc/district-council/wyre,29/09/2022,People and Places,Environmental Services,132B,N Power LTD,27/09/2022,PE144060,88.47,0.00,CCTV camera usage for 1-31 Jan 22,CCTV Running Costs
Wyre Council,http://opendatacommunities.org/doc/district-council/wyre,29/09/2022,People and Places,Environmental Services,132B,N Power LTD,27/09/2022,PE144060,1.80,0.00,Climate Change Levey,CCTV Running Costs
Wyre Council,http://opendatacommunities.org/doc/district-council/wyre,29/09/2022,People and Places,Environmental Services,132B,N Power LTD,27/09/2022,PE144062,83.84,0.00,IN04783254 - 1-31 March 22 CCTV camera electricity charges,CCTV Running Costs
Wyre Council,http://opendatacommunities.org/doc/district-council/wyre,29/09/2022,People and Places,Environmental Services,132B,N Power LTD,27/09/2022,PE144063,80.15,0.00,IN04783300 - 1-30 April 22 - CCTV camera electricity charges,CCTV Running Costs
Wyre Council,http://opendatacommunities.org/doc/district-council/wyre,29/09/2022,People and Places,Environmental Services,132B,N Power LTD,27/09/2022,PE144062,1.70,0.00,Climate Change Levy,CCTV Running Costs
Wyre Council,http://opendatacommunities.org/doc/district-council/wyre,29/09/2022,People and Places,Environmental Services,132B,N Power LTD,27/09/2022,PE144065,1.57,0.00,Climate change levy,CCTV Running Costs
Wyre Council,http://opendatacommunities.org/doc/district-council/wyre,29/09/2022,People and Places,Environmental Services,132B,N Power LTD,27/09/2022,PE144065,77.13,0.00,IN04783405 - 1-30 June 22 - CCTV camera electricity charges,CCTV Running Costs
Wyre Council,http://opendatacommunities.org/doc/district-council/wyre,29/09/2022,People and Places,Environmental Services,132B,N Power LTD,27/09/2022,PE144063,1.63,0.00,Climate Change levy,CCTV Running Costs
Wyre Council,http://opendatacommunities.org/doc/district-council/wyre,29/09/2022,People and Places,Environmental Services,132B,N Power LTD,27/09/2022,PE144062,126.62,0.00,IN04783254 - 1-31 March 22 CCTV camera electricity charges,CCTV Running Costs
Wyre Council,http://opendatacommunities.org/doc/district-council/wyre,29/09/2022,People and Places,Environmental Services,132B,N Power LTD,27/09/2022,PE144063,1.63,0.00,Climate Change levy,CCTV Running Costs
Wyre Council,http://opendatacommunities.org/doc/district-council/wyre,29/09/2022,People and Places,Environmental Services,132B,N Power LTD,27/09/2022,PE144063,121.03,0.00,IN04783300 - 1-30 April 22 - CCTV camera electricity charges,CCTV Running Costs
Wyre Council,http://opendatacommunities.org/doc/district-council/wyre,29/09/2022,People and Places,Environmental Services,132B,N Power LTD,27/09/2022,PE144062,1.70,0.00,Climate Change Levy,CCTV Running Costs
Wyre Council,http://opendatacommunities.org/doc/district-council/wyre,29/09/2022,People and Places,Environmental Services,132B,N Power LTD,27/09/2022,PE144065,1.57,0.00,Climate change levy,CCTV Running Costs
Wyre Council,http://opendatacommunities.org/doc/district-council/wyre,29/09/2022,People and Places,Environmental Services,132B,N Power LTD,27/09/2022,PE144065,116.48,0.00,IN04783405 - 1-30 June 22 - CCTV camera electricity charges,CCTV Running Costs
Wyre Council,http://opendatacommunities.org/doc/district-council/wyre,29/09/2022,People and Places,Environmental Services,132B,N Power LTD,27/09/2022,PE144064,1.63,0.00,Climate Change Levy,CCTV Running Costs
Wyre Council,http://opendatacommunities.org/doc/district-council/wyre,29/09/2022,People and Places,Environmental Services,132B,N Power LTD,27/09/2022,PE144064,120.17,0.00,IN04783330 - 1-31 May 22 - CCTV electricity chargers,CCTV Running Costs
Wyre Council,http://opendatacommunities.org/doc/district-council/wyre,29/09/2022,People and Places,Environmental Services,132B,N Power LTD,27/09/2022,PE144066,122.45,0.00,IN04783422 - 1-31 July 22 - CCTV electricity charges,CCTV Running Costs
Wyre Council,http://opendatacommunities.org/doc/district-council/wyre,29/09/2022,People and Places,Environmental Services,132B,N Power LTD,27/09/2022,PE144066,1.65,0.00,Climate Change Levy,CCTV Running Costs
Wyre Council,http://opendatacommunities.org/doc/district-council/wyre,29/09/2022,People and Places,Environmental Services,132B,N Power LTD,27/09/2022,PE144067,1.65,0.00,Climate Levy Charge,CCTV Running Costs
Wyre Council,http://opendatacommunities.org/doc/district-council/wyre,29/09/2022,People and Places,Environmental Services,132B,N Power LTD,27/09/2022,PE144067,122.25,0.00,IN04783465 - 1-31 Aug 22 - CCTV electricity charges,CCTV Running Costs
Wyre Council,http://opendatacommunities.org/doc/district-council/wyre,29/09/2022,People and Places,Environmental Services,132B,N Power LTD,27/09/2022,PE144061,1.59,0.00,Climate Change |Levy,CCTV Running Costs
Wyre Council,http://opendatacommunities.org/doc/district-council/wyre,29/09/2022,People and Places,Environmental Services,132B,N Power LTD,27/09/2022,PE144061,118.41,0.00,IN04783203 - 1-28 Feb 2022 - CCTV Camera usage,CCTV Running Costs
Wyre Council,http://opendatacommunities.org/doc/district-council/wyre,29/09/2022,People and Places,Environmental Services,132B,N Power LTD,27/09/2022,PE144060,1.80,0.00,Climate Change Levey,CCTV Running Costs
Wyre Council,http://opendatacommunities.org/doc/district-council/wyre,29/09/2022,People and Places,Environmental Services,132B,N Power LTD,27/09/2022,PE144060,133.60,0.00,CCTV camera usage for 1-31 Jan 22,CCTV Running Costs
Wyre Council,http://opendatacommunities.org/doc/district-council/wyre,29/09/2022,People and Places,Environmental Services,132B,N Power LTD,27/09/2022,PE144066,12.14,0.00,IN04783422 - 1-31 July 22 - CCTV electricity charges,CCTV Running Costs
Wyre Council,http://opendatacommunities.org/doc/district-council/wyre,29/09/2022,People and Places,Environmental Services,132B,N Power LTD,27/09/2022,PE144062,1.71,0.00,Climate Change Levy,CCTV Running Costs
Wyre Council,http://opendatacommunities.org/doc/district-council/wyre,29/09/2022,People and Places,Environmental Services,132B,N Power LTD,27/09/2022,PE144063,12.00,0.00,IN04783300 - 1-30 April 22 - CCTV camera electricity charges,CCTV Running Costs
Wyre Council,http://opendatacommunities.org/doc/district-council/wyre,29/09/2022,People and Places,Environmental Services,132B,N Power LTD,27/09/2022,PE144062,12.55,0.00,IN04783254 - 1-31 March 22 CCTV camera electricity charges,CCTV Running Costs
Wyre Council,http://opendatacommunities.org/doc/district-council/wyre,29/09/2022,People and Places,Environmental Services,132B,N Power LTD,27/09/2022,PE144060,1.80,0.00,Climate Change Levey,CCTV Running Costs
Wyre Council,http://opendatacommunities.org/doc/district-council/wyre,29/09/2022,People and Places,Environmental Services,132B,N Power LTD,27/09/2022,PE144060,13.25,0.00,CCTV camera usage for 1-31 Jan 22,CCTV Running Costs
Wyre Council,http://opendatacommunities.org/doc/district-council/wyre,29/09/2022,People and Places,Environmental Services,132B,N Power LTD,27/09/2022,PE144061,11.73,0.00,IN04783203 - 1-28 Feb 2022 - CCTV Camera usage,CCTV Running Costs
Wyre Council,http://opendatacommunities.org/doc/district-council/wyre,29/09/2022,People and Places,Environmental Services,132B,N Power LTD,27/09/2022,PE144061,1.60,0.00,Climate Change |Levy,CCTV Running Costs
Wyre Council,http://opendatacommunities.org/doc/district-council/wyre,29/09/2022,People and Places,Environmental Services,132B,N Power LTD,27/09/2022,PE144067,1.64,0.00,Climate Levy Charge,CCTV Running Costs
Wyre Council,http://opendatacommunities.org/doc/district-council/wyre,29/09/2022,People and Places,Environmental Services,132B,N Power LTD,27/09/2022,PE144067,12.12,0.00,IN04783465 - 1-31 Aug 22 - CCTV electricity charges,CCTV Running Costs
Wyre Council,http://opendatacommunities.org/doc/district-council/wyre,29/09/2022,People and Places,Environmental Services,132B,N Power LTD,27/09/2022,PE144064,1.63,0.00,Climate Change Levy,CCTV Running Costs
Wyre Council,http://opendatacommunities.org/doc/district-council/wyre,29/09/2022,People and Places,Environmental Services,132B,N Power LTD,27/09/2022,PE144066,1.65,0.00,Climate Change Levy,CCTV Running Costs
Wyre Council,http://opendatacommunities.org/doc/district-council/wyre,29/09/2022,People and Places,Environmental Services,132B,N Power LTD,27/09/2022,PE144063,1.63,0.00,Climate Change levy,CCTV Running Costs
Wyre Council,http://opendatacommunities.org/doc/district-council/wyre,29/09/2022,People and Places,Environmental Services,132B,N Power LTD,27/09/2022,PE144064,11.91,0.00,IN04783330 - 1-31 May 22 - CCTV electricity chargers,CCTV Running Costs
Wyre Council,http://opendatacommunities.org/doc/district-council/wyre,29/09/2022,People and Places,Environmental Services,132B,N Power LTD,27/09/2022,PE144065,11.56,0.00,IN04783405 - 1-30 June 22 - CCTV camera electricity charges,CCTV Running Costs
Wyre Council,http://opendatacommunities.org/doc/district-council/wyre,29/09/2022,People and Places,Environmental Services,132B,N Power LTD,27/09/2022,PE144065,1.56,0.00,Climate change levy,CCTV Running Costs
Wyre Council,http://opendatacommunities.org/doc/district-council/wyre,29/09/2022,Resources,Support Services,135B,Konica Minolta Business Solutions UK LTD,16/09/2022,RS142938,44.54,0.00,1840141295 - Wyre Estuary Country Park,Central Printer/Copier Expenses
Wyre Council,http://opendatacommunities.org/doc/district-council/wyre,29/09/2022,People and Places,Planning and Development Servs,132C,Key Engineering & Hygiene Supplies LTD,28/09/2022,PE143882,6.90,0.00,BLUE 200GM EXEL PY MOP HEAD ( PUSH FIT),Cleaning Materials
Wyre Council,http://opendatacommunities.org/doc/district-council/wyre,29/09/2022,People and Places,Planning and Development Servs,132C,Key Engineering & Hygiene Supplies LTD,28/09/2022,PE143882,6.90,0.00,RED 200GM EXEL PY MOP HEAD ( PUSH FIT),Cleaning Materials
Wyre Council,http://opendatacommunities.org/doc/district-council/wyre,29/09/2022,People and Places,Planning and Development Servs,132C,Key Engineering & Hygiene Supplies LTD,28/09/2022,PE143882,17.52,0.00,Bottle Pot Pourri Toilet Cleaner,Cleaning Materials
Wyre Council,http://opendatacommunities.org/doc/district-council/wyre,29/09/2022,People and Places,Planning and Development Servs,132C,Key Engineering & Hygiene Supplies LTD,28/09/2022,PE143882,21.66,0.00,E- Pine disinfectant 5 Litre,Cleaning Materials
Wyre Council,http://opendatacommunities.org/doc/district-council/wyre,29/09/2022,People and Places,Planning and Development Servs,132C,Key Engineering & Hygiene Supplies LTD,28/09/2022,PE143882,51.12,0.00,LUX PEARL HAND/BODY SOAP 5 LTR,Cleaning Materials
Wyre Council,http://opendatacommunities.org/doc/district-council/wyre,29/09/2022,People and Places,Planning and Development Servs,132C,Key Engineering & Hygiene Supplies LTD,28/09/2022,PE143882,18.84,0.00,EAUFRESH NON ACIDIC APPLE TOILET CLEANER 1 LTR,Cleaning Materials
Wyre Council,http://opendatacommunities.org/doc/district-council/wyre,29/09/2022,People and Places,Planning and Development Servs,132C,Key Engineering & Hygiene Supplies LTD,28/09/2022,PE143882,189.30,0.00,2PLY WHITE JUMBO TOILET ROLL,Cleaning Materials
Wyre Council,http://opendatacommunities.org/doc/district-council/wyre,29/09/2022,People and Places,Planning and Development Servs,132C,Key Engineering & Hygiene Supplies LTD,29/09/2022,PE143115,91.80,0.00,EXTRA STRONG BLACK REFUSE SACK 18X29X39 180G 90LTR (PER 200),Cleaning Materials
Wyre Council,http://opendatacommunities.org/doc/district-council/wyre,29/09/2022,People and Places,Planning and Development Servs,132C,Key Engineering & Hygiene Supplies LTD,29/09/2022,PE143115,14.10,0.00,FRESH AIR + FABRIC AEROSOL 400ML,Cleaning Materials
Wyre Council,http://opendatacommunities.org/doc/district-council/wyre,29/09/2022,People and Places,Planning and Development Servs,132C,Key Engineering & Hygiene Supplies LTD,29/09/2022,PE143115,189.30,0.00,2PLY WHITE JUMBO TOILET ROLL,Cleaning Materials
Wyre Council,http://opendatacommunities.org/doc/district-council/wyre,29/09/2022,People and Places,Cultural and Related Services,132A,Key Engineering & Hygiene Supplies LTD,15/09/2022,PE143886,125.51,0.00,Hand soap and paper towels,Cleaning Materials
Wyre Council,http://opendatacommunities.org/doc/district-council/wyre,29/09/2022,People and Places,Planning and Development Servs,132C,Key Engineering & Hygiene Supplies LTD,22/09/2022,PE144014,189.30,0.00,2PLY WHITE JUMBO TOILET ROLL,Cleaning Materials
Wyre Council,http://opendatacommunities.org/doc/district-council/wyre,29/09/2022,People and Places,Planning and Development Servs,132C,Key Engineering & Hygiene Supplies LTD,28/09/2022,PE143882,35.34,0.00,VERSATILE HARD SURFACE CLEANER 5 LITRE,Cleaning Materials
Wyre Council,http://opendatacommunities.org/doc/district-council/wyre,29/09/2022,People and Places,Planning and Development Servs,132C,Key Engineering & Hygiene Supplies LTD,28/09/2022,PE143882,48.00,0.00,LOW FOAM CLEANER HEAVY,Cleaning Materials
Wyre Council,http://opendatacommunities.org/doc/district-council/wyre,29/09/2022,People and Places,Planning and Development Servs,132C,Key Engineering & Hygiene Supplies LTD,28/09/2022,PE143882,38.82,0.00,BLUE 2 ply centrefeed roll 144M x 195mm 400 sheets,Cleaning Materials
Wyre Council,http://opendatacommunities.org/doc/district-council/wyre,29/09/2022,People and Places,Planning and Development Servs,132C,Key Engineering & Hygiene Supplies LTD,28/09/2022,PE143882,26.82,0.00,GENERAL BLEACH 5 LTR,Cleaning Materials
Wyre Council,http://opendatacommunities.org/doc/district-council/wyre,29/09/2022,People and Places,Planning and Development Servs,132C,Key Engineering & Hygiene Supplies LTD,16/09/2022,PE143915,27.00,0.00,"SUPPLY AND DELIVER AS PER QUOTATION 15244 FINALTOUCH/750M 12 FINAL TOUCH READY TO USE BACT.NEUTRAL CLEANER 750ML 2.25 EACH 27.00 27.00DELIVERY TO WYRE COUNCIL, COPSE ROAD DEPOT, COPSE ROAD, FLEETWOOD, FY7 6RP",Cleaning Materials
Wyre Council,http://opendatacommunities.org/doc/district-council/wyre,29/09/2022,Resources,Support Services,135B,Key Engineering & Hygiene Supplies LTD,22/09/2022,RS144015,9.34,0.00,BLUE NITRILE POWDER FREE GLOVES MEDIUM,Cleaning Materials
Wyre Council,http://opendatacommunities.org/doc/district-council/wyre,29/09/2022,Resources,Support Services,135B,Key Engineering & Hygiene Supplies LTD,23/09/2022,RS144107,17.04,0.00,EVANS CYCLONE EXTRA THICK BLEACH 750ML,Cleaning Materials
Wyre Council,http://opendatacommunities.org/doc/district-council/wyre,29/09/2022,Resources,Support Services,135B,Key Engineering & Hygiene Supplies LTD,23/09/2022,RS144107,171.85,0.00,BLUE INTERFOLD HAND TOWELS 3600 SHEETS,Cleaning Materials
Wyre Council,http://opendatacommunities.org/doc/district-council/wyre,29/09/2022,Resources,Support Services,135B,Key Engineering & Hygiene Supplies LTD,23/09/2022,RS144107,5.45,0.00,KIND DETERGENT 5 LITRE,Cleaning Materials
Wyre Council,http://opendatacommunities.org/doc/district-council/wyre,29/09/2022,Resources,Support Services,135B,Key Engineering & Hygiene Supplies LTD,23/09/2022,RS144107,3.61,0.00,KEYPINE PINE DISINFECTANT 5 LITRE,Cleaning Materials
Wyre Council,http://opendatacommunities.org/doc/district-council/wyre,29/09/2022,Resources,Support Services,135B,Key Engineering & Hygiene Supplies LTD,23/09/2022,RS144107,17.16,0.00,VERSATILE HARD SURFACE CLEANER 5 LITRE,Cleaning Materials
Wyre Council,http://opendatacommunities.org/doc/district-council/wyre,29/09/2022,Resources,Support Services,135B,Key Engineering & Hygiene Supplies LTD,23/09/2022,RS144107,102.06,0.00,3 PLY WHITE TOILET ROLLS (40 PACK),Cleaning Materials
Wyre Council,http://opendatacommunities.org/doc/district-council/wyre,29/09/2022,Resources,Support Services,135B,Key Engineering & Hygiene Supplies LTD,23/09/2022,RS144107,13.53,0.00,BLUE 2 PLY CENTREFEED ROLL 150M X 180MM 410 SHEETS,Cleaning Materials
Wyre Council,http://opendatacommunities.org/doc/district-council/wyre,29/09/2022,People and Places,Cultural and Related Services,132A,Bates Office Services Ltd,14/09/2022,PE143835,40.34,0.00,2WORK PREMIUM RINSE AID 5L,Cleaning Materials
Wyre Council,http://opendatacommunities.org/doc/district-council/wyre,29/09/2022,People and Places,Cultural and Related Services,132A,Bates Office Services Ltd,13/09/2022,PE143823,3.69,0.00,KENTUCKY MOP HEAD 450G BLUE CX05333,Cleaning Materials
Wyre Council,http://opendatacommunities.org/doc/district-council/wyre,29/09/2022,People and Places,Cultural and Related Services,132A,Bates Office Services Ltd,13/09/2022,PE143823,3.69,0.00,KENTUCKY MOP HEAD 450G YELLOW CX05336,Cleaning Materials
Wyre Council,http://opendatacommunities.org/doc/district-council/wyre,29/09/2022,People and Places,Cultural and Related Services,132A,Bates Office Services Ltd,13/09/2022,PE143823,3.69,0.00,KENTUCKY MOP HEAD 450G GREEN CX05327,Cleaning Materials
Wyre Council,http://opendatacommunities.org/doc/district-council/wyre,29/09/2022,People and Places,Environmental Services,132B,Key Engineering & Hygiene Supplies LTD,23/09/2022,PE144080,123.90,0.00,SUPPLY AS PER QUOTATION 1554730 X HI VIS YELLOW MEDIUM VESTS TO INCLUDE WYRE LOGO AND VOLUNTEER,Community Development Initiatives
Wyre Council,http://opendatacommunities.org/doc/district-council/wyre,29/09/2022,People and Places,Environmental Services,132B,The Helping Hand Company LTD,21/09/2022,PE144002,622.50,0.00,Supply and deliver as email quotation 7/9/2230 no LP3035  35� Ranger Max with curved handle20.75 per unit,Community Development Initiatives
Wyre Council,http://opendatacommunities.org/doc/district-council/wyre,29/09/2022,People and Places,Environmental Services,132B,The Helping Hand Company LTD,21/09/2022,PE144002,124.20,0.00,10 no LP1633- 33� Litter picker pro with gel handle12.42 per unit,Community Development Initiatives
Wyre Council,http://opendatacommunities.org/doc/district-council/wyre,29/09/2022,People and Places,Environmental Services,132B,The Helping Hand Company LTD,21/09/2022,PE144002,277.20,0.00,"20 no LP1227 -27� Kids Graptor Litter picker13.86 per unitDelivery to Wyre Council, Copse Road Depot, Copse Road, Fleetwood, FY7 6RP.",Community Development Initiatives
Wyre Council,http://opendatacommunities.org/doc/district-council/wyre,29/09/2022,Resources,Support Services,135B,CCS MEDIA LTD,16/09/2022,RS142923,13879.60,0.00,HP ProBook 450 G8 i5-1135G7 Notebook 39.6 cm (15.6``) Full HD Intel Core i5 8 GB DDR4-SDRAM 256 GB SSD Wi-Fi 6 (802.11ax) Windows 10 Pro Silver (United Kingdom),Comp Hardware Purchases
Wyre Council,http://opendatacommunities.org/doc/district-council/wyre,29/09/2022,People and Places,Planning and Development Servs,132C,Lancashire County Council,16/09/2022,PE143770,4986.00,0.00,Archaeology advice for the period 2022 - 2023,Consultants Fees
Wyre Council,http://opendatacommunities.org/doc/district-council/wyre,29/09/2022,People and Places,Planning and Development Servs,132C,The Tom Lucas Partnership,29/09/2022,PE143941,3380.00,0.00,Project Monitoring Services at Project Neptune as per the agreed quotation,Consultants Fees
Wyre Council,http://opendatacommunities.org/doc/district-council/wyre,29/09/2022,Resources,Corporate and Democratic Core,131A,Link Treasury Services LTD,28/09/2022,RS144259,4000.00,0.00,Treasury Services for the period 01/04/2022 - 30/09/2022,Consultants Fees
Wyre Council,http://opendatacommunities.org/doc/district-council/wyre,29/09/2022,Resources,Central Services to the Public,131C,Inform CPI,29/09/2022,RS143985,640.00,0.00,"Unit 1 R?O Jesmond Dene, School Lance, Forton, Preston, PR3 0AT",Consultants Fees
Wyre Council,http://opendatacommunities.org/doc/district-council/wyre,29/09/2022,Resources,Support Services,135B,CITADEL CHAMBERS,12/09/2022,RS143771,1750.00,0.00,Licensing Appeal Davies v Wyre Council 22/6/22 Licensing Appeal 1000.00 27/07/22 Brief    750.00,Consultants Fees
Wyre Council,http://opendatacommunities.org/doc/district-council/wyre,29/09/2022,People and Places,Support Services,135B,CITADEL CHAMBERS,12/09/2022,PE143272,1000.00,0.00,Ref 691036 Professional Fees of Mr Duncan Craig Re Khambray v Wyre Council at Blackpool Magistrates Court on 03/08/2022 for licensing appeal,Consultants Fees
Wyre Council,http://opendatacommunities.org/doc/district-council/wyre,29/09/2022,Resources,Support Services,135B,NDL Software Ltd,21/09/2022,RS144008,6000.00,0.00,5 x Professional Services Days @ 1200ea,Consultants Fees
Wyre Council,http://opendatacommunities.org/doc/district-council/wyre,29/09/2022,People and Places,"Cultural, Environ and Planning",137B,Halcrow Group LTD,15/09/2022,PE143852,3994.76,0.00,Additional works as authorised by Carl Green,Consultants Fees (New CCR)
Wyre Council,http://opendatacommunities.org/doc/district-council/wyre,29/09/2022,People and Places,"Cultural, Environ and Planning",137B,The Royal Venue,23/09/2022,PE144109,7500.00,0.00,"FAO Jakki SlackThe Venue North PromenadeThornton CleveleysLancashireFY5 1LW Car park mitigation measures at an agreed price of 15,000 per annum paid in 6 monthly instalments until completion of the Wyre Beach Management Scheme. Cost 15",Consultants Fees (New CCR)
Wyre Council,http://opendatacommunities.org/doc/district-council/wyre,29/09/2022,People and Places,"Cultural, Environ and Planning",137B,Marine Management Organisation,15/09/2022,PE143872,213.50,0.00,"MMO Licence application fee, case reference Wyre Beach Management Scheme",Consultants Fees (New CCR)
Wyre Council,http://opendatacommunities.org/doc/district-council/wyre,29/09/2022,People and Places,"Cultural, Environ and Planning",137B,Marine Management Organisation,15/09/2022,PE142095,274.50,0.00,Ref: ENQ/2022/00028 ECO-COBS scheme    MMO Pre Application Advice Value: 610 plus VAT,Consultants Fees (New CCR)
Wyre Council,http://opendatacommunities.org/doc/district-council/wyre,29/09/2022,People and Places,"Cultural, Environ and Planning",137B,MARLAN MARITIME TECHNOLOGIES LTD,02/09/2022,PE143634,13500.00,0.00,Works to provide synoptic radar monitoring at sites across NW for Eco-CoBS project.Deployment at first site Fleetwood 16 Dec 2021.Contract until 31 March 2027.,Consultants Fees (New CCR)
Wyre Council,http://opendatacommunities.org/doc/district-council/wyre,29/09/2022,Resources,"Cultural, Environ and Planning",137B,Visual Print and Design Ltd,28/09/2022,RS144260,545.00,0.00,7x mesh banners for Morecombe Bay timescapes.Delivery address:FAO EB/PBLancaster City CouncilMorecambe Town HallMarine RoadMorecambeLA4 5AF,Consultants Fees (New CCR)
Wyre Council,http://opendatacommunities.org/doc/district-council/wyre,29/09/2022,People and Places,"Cultural, Environ and Planning",137B,Susannah Bleakley Consulting,08/09/2022,PE143723,4378.05,0.00,ECO-CoBS Project,Consultants Fees (New CCR)
Wyre Council,http://opendatacommunities.org/doc/district-council/wyre,29/09/2022,People and Places,"Cultural, Environ and Planning",137B,Invincible Drain Care Ltd,22/09/2022,PE143178,740.00,0.00,Please  carry out a drainage survey of the areas marked in red on Purcell�s plans.   All as per your quotation 740.00 plus vat   Access is best on a Monday or Wednesday when the market is closed to the public.   The contact for the market is Julian Brent,Consultants Fees (New CCR)
Wyre Council,http://opendatacommunities.org/doc/district-council/wyre,29/09/2022,People and Places,"Cultural, Environ and Planning",137B,Sitescan North West Ltd,27/09/2022,PE142094,1550.00,0.00,Fleetwood Market  Confirmation of work executed Please carry out GPR survey of the Main Hall at Fleetwood Market (orange on plan) All as per your quotation  1550.00 plus vat,Consultants Fees (New CCR)
Wyre Council,http://opendatacommunities.org/doc/district-council/wyre,29/09/2022,People and Places,Central Services to the Public,131C,Smiths Equipment Hire,16/09/2022,PE143093,40.80,0.00,Chemical toilets  April 2022,Contain Outbreak Management Fund
Wyre Council,http://opendatacommunities.org/doc/district-council/wyre,29/09/2022,People and Places,"Cultural, Environ and Planning",137B,Marine Management Organisation,15/09/2022,PE143871,5002.00,0.00,Scheme Wyre Beach Management Scheme Phase 2 ;  MMO reference:  MLA/2022/00176Budgetary estimated cost (As of 13/05/2022)Please note that estimated costs may be subject to change.DescriptionRate (�)Hours/UnitsAmount (�)MMO Hours122.004048,Contract (New CCR)
Wyre Council,http://opendatacommunities.org/doc/district-council/wyre,29/09/2022,People and Places,"Cultural, Environ and Planning",137B,Landscape Engineering LTD,06/09/2022,PE143649,12263.54,0.00,"External works at Custom House Car Park, Fleetwood (Historic England Heritage Action Zone Project).",Contract (New CCR)
Wyre Council,http://opendatacommunities.org/doc/district-council/wyre,29/09/2022,People and Places,"Cultural, Environ and Planning",137B,Landscape Engineering LTD,30/09/2022,PE144365,2156.80,0.00,"External works at Custom House Car Park, Fleetwood (Historic England Heritage Action Zone Project).",Contract (New CCR)
Wyre Council,http://opendatacommunities.org/doc/district-council/wyre,29/09/2022,People and Places,Non Service Related Exp,137F,M D Security,13/09/2022,PE143706,205.00,0.00,Replace roller shutters at Copse Road,Contract (New CCR)
Wyre Council,http://opendatacommunities.org/doc/district-council/wyre,29/09/2022,People and Places,Non Service Related Exp,137F,M D Security,12/09/2022,PE142638,1997.29,0.00,Supply and install new approved cctv system within Fleetwood market to cover internal and external areas,Contract (New CCR)
Wyre Council,http://opendatacommunities.org/doc/district-council/wyre,29/09/2022,People and Places,Corporate and Democratic Core,131A,Apse,06/09/2022,PE143672,2280.00,0.00,"APSE Energy Membership Fee, April 2022 - March 2023",Corporate and Professional Subscriptions
Wyre Council,http://opendatacommunities.org/doc/district-council/wyre,29/09/2022,People and Places,Planning and Development Servs,132C,NABMA,21/09/2022,PE143989,540.00,0.00,nabma conference october 22,Corporate and Professional Subscriptions
Wyre Council,http://opendatacommunities.org/doc/district-council/wyre,29/09/2022,Finance,Current Assets,130B,,01/09/2022,WPST00071516,10730.18,0.00,ctax refunds 26/8,Council Tax Refunds
Wyre Council,http://opendatacommunities.org/doc/district-council/wyre,29/09/2022,Finance,Current Assets,130B,,16/09/2022,WPST00073364,15047.44,0.00,ctax refunds 9/9,Council Tax Refunds
Wyre Council,http://opendatacommunities.org/doc/district-council/wyre,29/09/2022,Finance,Current Assets,130B,,21/09/2022,WPST00075147,13649.72,0.00,ctax refunds 16/9,Council Tax Refunds
Wyre Council,http://opendatacommunities.org/doc/district-council/wyre,29/09/2022,Finance,Current Assets,130B,,28/09/2022,WPST00075811,16976.23,0.00,ctax refunds 23/9,Council Tax Refunds
Wyre Council,http://opendatacommunities.org/doc/district-council/wyre,29/09/2022,Finance,Current Assets,130B,,14/09/2022,WPST00072692,20750.61,0.00,2/9,Council Tax Refunds
Wyre Council,http://opendatacommunities.org/doc/district-council/wyre,29/09/2022,People and Places,Support Services,135B,EK Motors Factors LTD,09/09/2022,PE143759,54.60,0.00,PARTS,Daywork Materials (Excl.Tyres)
Wyre Council,http://opendatacommunities.org/doc/district-council/wyre,29/09/2022,People and Places,Cultural and Related Services,132A,EK Motors Factors LTD,27/09/2022,PE144209,114.64,0.00,Parts,Daywork Materials (Excl.Tyres)
Wyre Council,http://opendatacommunities.org/doc/district-council/wyre,29/09/2022,People and Places,Cultural and Related Services,132A,EK Motors Factors LTD,27/09/2022,PE144215,55.01,0.00,Parts,Daywork Materials (Excl.Tyres)
Wyre Council,http://opendatacommunities.org/doc/district-council/wyre,29/09/2022,People and Places,Cultural and Related Services,132A,EK Motors Factors LTD,27/09/2022,PE144214,114.15,0.00,Parts,Daywork Materials (Excl.Tyres)
Wyre Council,http://opendatacommunities.org/doc/district-council/wyre,29/09/2022,People and Places,Support Services,135B,EK Motors Factors LTD,09/09/2022,PE143758,10.64,0.00,PARTS,Daywork Materials (Excl.Tyres)
Wyre Council,http://opendatacommunities.org/doc/district-council/wyre,29/09/2022,People and Places,Support Services,135B,EK Motors Factors LTD,27/09/2022,PE144222,18.36,0.00,Parts,Daywork Materials (Excl.Tyres)
Wyre Council,http://opendatacommunities.org/doc/district-council/wyre,29/09/2022,People and Places,Support Services,135B,EK Motors Factors LTD,27/09/2022,PE144217,22.32,0.00,Parts,Daywork Materials (Excl.Tyres)
Wyre Council,http://opendatacommunities.org/doc/district-council/wyre,29/09/2022,People and Places,Environmental Services,132B,EK Motors Factors LTD,27/09/2022,PE144211,7.19,0.00,Parts,Daywork Materials (Excl.Tyres)
Wyre Council,http://opendatacommunities.org/doc/district-council/wyre,29/09/2022,People and Places,Environmental Services,132B,EK Motors Factors LTD,09/09/2022,PE143764,61.09,0.00,PARTS,Daywork Materials (Excl.Tyres)
Wyre Council,http://opendatacommunities.org/doc/district-council/wyre,29/09/2022,People and Places,Environmental Services,132B,EK Motors Factors LTD,09/09/2022,PE143763,61.95,0.00,PARTS,Daywork Materials (Excl.Tyres)
Wyre Council,http://opendatacommunities.org/doc/district-council/wyre,29/09/2022,People and Places,Support Services,135B,EK Motors Factors LTD,27/09/2022,PE144226,13.64,0.00,Parts,Daywork Materials (Excl.Tyres)
Wyre Council,http://opendatacommunities.org/doc/district-council/wyre,29/09/2022,People and Places,Environmental Services,132B,EK Motors Factors LTD,27/09/2022,PE144213,9.13,0.00,Parts,Daywork Materials (Excl.Tyres)
Wyre Council,http://opendatacommunities.org/doc/district-council/wyre,29/09/2022,People and Places,Environmental Services,132B,EK Motors Factors LTD,27/09/2022,PE144212,161.08,0.00,Parts,Daywork Materials (Excl.Tyres)
Wyre Council,http://opendatacommunities.org/doc/district-council/wyre,29/09/2022,People and Places,Environmental Services,132B,EK Motors Factors LTD,30/09/2022,PE144210,18.23,0.00,Parts,Daywork Materials (Excl.Tyres)
Wyre Council,http://opendatacommunities.org/doc/district-council/wyre,29/09/2022,People and Places,Support Services,135B,EK Motors Factors LTD,27/09/2022,PE144218,16.28,0.00,Parts,Daywork Materials (Excl.Tyres)
Wyre Council,http://opendatacommunities.org/doc/district-council/wyre,29/09/2022,People and Places,Support Services,135B,EK Motors Factors LTD,27/09/2022,PE144221,24.16,0.00,Parts,Daywork Materials (Excl.Tyres)
Wyre Council,http://opendatacommunities.org/doc/district-council/wyre,29/09/2022,People and Places,Support Services,135B,EK Motors Factors LTD,27/09/2022,PE144220,30.76,0.00,Parts,Daywork Materials (Excl.Tyres)
Wyre Council,http://opendatacommunities.org/doc/district-council/wyre,29/09/2022,People and Places,Support Services,135B,EK Motors Factors LTD,27/09/2022,PE144219,18.23,0.00,Parts,Daywork Materials (Excl.Tyres)
Wyre Council,http://opendatacommunities.org/doc/district-council/wyre,29/09/2022,People and Places,Support Services,135B,EK Motors Factors LTD,09/09/2022,PE143750,23.04,0.00,PARTS,Daywork Materials (Excl.Tyres)
Wyre Council,http://opendatacommunities.org/doc/district-council/wyre,29/09/2022,People and Places,Support Services,135B,EK Motors Factors LTD,09/09/2022,PE143757,11.22,0.00,PARTS,Daywork Materials (Excl.Tyres)
Wyre Council,http://opendatacommunities.org/doc/district-council/wyre,29/09/2022,People and Places,Support Services,135B,EK Motors Factors LTD,27/09/2022,PE144216,19.76,0.00,Parts,Daywork Materials (Excl.Tyres)
Wyre Council,http://opendatacommunities.org/doc/district-council/wyre,29/09/2022,People and Places,Support Services,135B,EK Motors Factors LTD,27/09/2022,PE144215,19.76,0.00,Parts,Daywork Materials (Excl.Tyres)
Wyre Council,http://opendatacommunities.org/doc/district-council/wyre,29/09/2022,People and Places,Support Services,135B,EK Motors Factors LTD,09/09/2022,PE143754,8.48,0.00,PARTS,Daywork Materials (Excl.Tyres)
Wyre Council,http://opendatacommunities.org/doc/district-council/wyre,29/09/2022,People and Places,Support Services,135B,EK Motors Factors LTD,09/09/2022,PE143756,92.26,0.00,PARTS,Daywork Materials (Excl.Tyres)
Wyre Council,http://opendatacommunities.org/doc/district-council/wyre,29/09/2022,People and Places,Support Services,135B,EK Motors Factors LTD,09/09/2022,PE143755,65.34,0.00,PARTS,Daywork Materials (Excl.Tyres)
Wyre Council,http://opendatacommunities.org/doc/district-council/wyre,29/09/2022,People and Places,Housing General Fund,134A,EK Motors Factors LTD,09/09/2022,PE143765,41.07,0.00,PARTS,Daywork Materials (Excl.Tyres)
Wyre Council,http://opendatacommunities.org/doc/district-council/wyre,29/09/2022,People and Places,Housing General Fund,134A,EK Motors Factors LTD,09/09/2022,PE143766,33.43,0.00,PARTS,Daywork Materials (Excl.Tyres)
Wyre Council,http://opendatacommunities.org/doc/district-council/wyre,29/09/2022,People and Places,Housing General Fund,134A,EK Motors Factors LTD,27/09/2022,PE144227,28.99,0.00,Parts,Daywork Materials (Excl.Tyres)
Wyre Council,http://opendatacommunities.org/doc/district-council/wyre,29/09/2022,People and Places,Support Services,135B,FR Sharrock LTD,23/09/2022,PE143880,194.46,0.00,Various parts,Daywork Materials (Excl.Tyres)
Wyre Council,http://opendatacommunities.org/doc/district-council/wyre,29/09/2022,People and Places,Support Services,135B,FR Sharrock LTD,26/09/2022,PE143879,614.11,0.00,Various parts,Daywork Materials (Excl.Tyres)
Wyre Council,http://opendatacommunities.org/doc/district-council/wyre,29/09/2022,People and Places,Environmental Services,132B,Bucher Municipal Limited,16/09/2022,PE143522,1130.98,0.00,Pump - Recirculating Water,Daywork Materials (Excl.Tyres)
Wyre Council,http://opendatacommunities.org/doc/district-council/wyre,29/09/2022,People and Places,Support Services,135B,CORNTHWAITE GROUP,26/09/2022,PE144144,650.29,0.00,Parts Invoices242627159326,Daywork Materials (Excl.Tyres)
Wyre Council,http://opendatacommunities.org/doc/district-council/wyre,29/09/2022,People and Places,Support Services,135B,CORNTHWAITE GROUP,26/09/2022,PE144177,130.25,0.00,Parts Invoices242627159326,Daywork Materials (Excl.Tyres)
Wyre Council,http://opendatacommunities.org/doc/district-council/wyre,29/09/2022,People and Places,Environmental Services,132B,RENTOKIL INITIAL UK LTD,21/09/2022,PE144001,1004.17,0.00,Clinical waste collection and disposal services to Wyre domestic customers.  To include provision of containers for financial year 2022/23,Disposal Costs Hazardous Waste
Wyre Council,http://opendatacommunities.org/doc/district-council/wyre,29/09/2022,People and Places,Cultural and Related Services,132A,Carlsberg UK LTD,13/09/2022,PE143827,85.12,0.00,co2 and mixed gas rental,Drinks
Wyre Council,http://opendatacommunities.org/doc/district-council/wyre,29/09/2022,People and Places,Cultural and Related Services,132A,Carlsberg UK LTD,06/09/2022,PE143663,821.56,0.00,Marine Hall bar,Drinks
Wyre Council,http://opendatacommunities.org/doc/district-council/wyre,29/09/2022,People and Places,Cultural and Related Services,132A,Carlsberg UK LTD,27/09/2022,PE144248,682.09,0.00,Marine Hall Bar stock,Drinks
Wyre Council,http://opendatacommunities.org/doc/district-council/wyre,29/09/2022,People and Places,Cultural and Related Services,132A,Northern Citrus Products LTD,06/09/2022,PE143665,271.90,0.00,Soft drinks - Marine Hall bar,Drinks
Wyre Council,http://opendatacommunities.org/doc/district-council/wyre,29/09/2022,People and Places,Parking Services,133F,N Power LTD,27/09/2022,PE144153,2163.83,0.00,Electricity charges for the period 01/01/22-31/01/22,Electricity
Wyre Council,http://opendatacommunities.org/doc/district-council/wyre,29/09/2022,People and Places,Parking Services,133F,N Power LTD,27/09/2022,PE144154,1876.27,0.00,Electricity charges for the period 01/02/22-28/02/22,Electricity
Wyre Council,http://opendatacommunities.org/doc/district-council/wyre,29/09/2022,People and Places,Parking Services,133F,N Power LTD,27/09/2022,PE144155,1979.53,0.00,Electricity charges for the period 01/03/22-31/3/22,Electricity
Wyre Council,http://opendatacommunities.org/doc/district-council/wyre,29/09/2022,People and Places,Parking Services,133F,N Power LTD,27/09/2022,PE144156,1730.02,0.00,Electricity charges for the period 01/04/22-30/04/22,Electricity
Wyre Council,http://opendatacommunities.org/doc/district-council/wyre,29/09/2022,People and Places,Parking Services,133F,N Power LTD,27/09/2022,PE144157,1670.52,0.00,Electricity charges for the period 01/05/22-31/5/22,Electricity
Wyre Council,http://opendatacommunities.org/doc/district-council/wyre,29/09/2022,People and Places,Parking Services,133F,N Power LTD,27/09/2022,PE144158,1476.45,0.00,Electricity charges for the period 01/06/22-30/06/22,Electricity
Wyre Council,http://opendatacommunities.org/doc/district-council/wyre,29/09/2022,People and Places,Parking Services,133F,N Power LTD,27/09/2022,PE144159,1495.87,0.00,Electricity charges for the period 01/07/22-31/07/22,Electricity
Wyre Council,http://opendatacommunities.org/doc/district-council/wyre,29/09/2022,People and Places,Parking Services,133F,N Power LTD,27/09/2022,PE144176,462.51,0.00,Electricity charges for the period 01/08/22-31/08/22,Electricity
Wyre Council,http://opendatacommunities.org/doc/district-council/wyre,29/09/2022,People and Places,Parking Services,133F,N Power LTD,27/09/2022,PE144175,463.38,0.00,Electricity charges for the period 01/07/22-31/7/22,Electricity
Wyre Council,http://opendatacommunities.org/doc/district-council/wyre,29/09/2022,People and Places,Parking Services,133F,N Power LTD,27/09/2022,PE144174,440.76,0.00,Electricity Charges for the period 01/06/22-30/06/22,Electricity
Wyre Council,http://opendatacommunities.org/doc/district-council/wyre,29/09/2022,People and Places,Parking Services,133F,N Power LTD,27/09/2022,PE144173,454.73,0.00,Electricity charges for the period 01/05/22-31/05/22,Electricity
Wyre Council,http://opendatacommunities.org/doc/district-council/wyre,29/09/2022,People and Places,Parking Services,133F,N Power LTD,27/09/2022,PE144160,1476.39,0.00,Electricity Charges for the period 01/08/22-31/8/22,Electricity
Wyre Council,http://opendatacommunities.org/doc/district-council/wyre,29/09/2022,People and Places,Parking Services,133F,N Power LTD,27/09/2022,PE144161,3.09,0.00,Electricity charges for the period 01/01/2022-31/01/22,Electricity
Wyre Council,http://opendatacommunities.org/doc/district-council/wyre,29/09/2022,People and Places,Parking Services,133F,N Power LTD,27/09/2022,PE144161,0.08,0.00,Climate change levy,Electricity
Wyre Council,http://opendatacommunities.org/doc/district-council/wyre,29/09/2022,People and Places,Parking Services,133F,N Power LTD,27/09/2022,PE144162,2.74,0.00,Electricity charges for the period 01/02/22-28/02/22,Electricity
Wyre Council,http://opendatacommunities.org/doc/district-council/wyre,29/09/2022,People and Places,Parking Services,133F,N Power LTD,27/09/2022,PE144162,0.07,0.00,Climate change levy,Electricity
Wyre Council,http://opendatacommunities.org/doc/district-council/wyre,29/09/2022,People and Places,Parking Services,133F,N Power LTD,27/09/2022,PE144163,2.94,0.00,Electricity charges for the period 01/03/22-31/03/22,Electricity
Wyre Council,http://opendatacommunities.org/doc/district-council/wyre,29/09/2022,People and Places,Parking Services,133F,N Power LTD,27/09/2022,PE144163,0.08,0.00,Climate Change Levy,Electricity
Wyre Council,http://opendatacommunities.org/doc/district-council/wyre,29/09/2022,People and Places,Parking Services,133F,N Power LTD,27/09/2022,PE144164,2.80,0.00,Electricity charges for the period 01/04/22-30/04/22,Electricity
Wyre Council,http://opendatacommunities.org/doc/district-council/wyre,29/09/2022,People and Places,Parking Services,133F,N Power LTD,27/09/2022,PE144164,0.08,0.00,Climate Charge Levy,Electricity
Wyre Council,http://opendatacommunities.org/doc/district-council/wyre,29/09/2022,People and Places,Parking Services,133F,N Power LTD,27/09/2022,PE144165,2.77,0.00,Electricity charges for the period 01/05/22-31/5/22,Electricity
Wyre Council,http://opendatacommunities.org/doc/district-council/wyre,29/09/2022,People and Places,Parking Services,133F,N Power LTD,27/09/2022,PE144165,0.08,0.00,Climate Levy charge,Electricity
Wyre Council,http://opendatacommunities.org/doc/district-council/wyre,29/09/2022,People and Places,Parking Services,133F,N Power LTD,27/09/2022,PE144166,2.69,0.00,Electricity charges for the period 01/06/22-30/06/22,Electricity
Wyre Council,http://opendatacommunities.org/doc/district-council/wyre,29/09/2022,People and Places,Parking Services,133F,N Power LTD,27/09/2022,PE144166,0.07,0.00,Climate change levy,Electricity
Wyre Council,http://opendatacommunities.org/doc/district-council/wyre,29/09/2022,People and Places,Parking Services,133F,N Power LTD,27/09/2022,PE144167,2.86,0.00,Electricity charges for the period 01/07/22-31/07/22,Electricity
Wyre Council,http://opendatacommunities.org/doc/district-council/wyre,29/09/2022,People and Places,Parking Services,133F,N Power LTD,27/09/2022,PE144167,0.08,0.00,Climate change levy,Electricity
Wyre Council,http://opendatacommunities.org/doc/district-council/wyre,29/09/2022,People and Places,Parking Services,133F,N Power LTD,27/09/2022,PE144168,2.86,0.00,Electricity charges for the period 01/08/22-31/08/22,Electricity
Wyre Council,http://opendatacommunities.org/doc/district-council/wyre,29/09/2022,People and Places,Parking Services,133F,N Power LTD,27/09/2022,PE144168,0.08,0.00,Climate change levey,Electricity
Wyre Council,http://opendatacommunities.org/doc/district-council/wyre,29/09/2022,People and Places,Parking Services,133F,N Power LTD,27/09/2022,PE144172,457.94,0.00,Electricity charges for the period 01/04/22-30/04/22,Electricity
Wyre Council,http://opendatacommunities.org/doc/district-council/wyre,29/09/2022,People and Places,Parking Services,133F,N Power LTD,27/09/2022,PE144171,479.07,0.00,Electricity charges for the period 01/03/22-31/03/22,Electricity
Wyre Council,http://opendatacommunities.org/doc/district-council/wyre,29/09/2022,People and Places,Parking Services,133F,N Power LTD,27/09/2022,PE144170,448.02,0.00,Electricity charges for the period 01/02/22-28/02/22,Electricity
Wyre Council,http://opendatacommunities.org/doc/district-council/wyre,29/09/2022,People and Places,Parking Services,133F,N Power LTD,27/09/2022,PE144169,505.52,0.00,Electricity charges for the period 01/01/22-31/01/22,Electricity
Wyre Council,http://opendatacommunities.org/doc/district-council/wyre,29/09/2022,People and Places,Environmental Services,132B,N Power LTD,27/09/2022,PE144168,0.52,0.00,Electricity charges for the period 01/08/22-31/08/22,Electricity
Wyre Council,http://opendatacommunities.org/doc/district-council/wyre,29/09/2022,People and Places,Environmental Services,132B,N Power LTD,27/09/2022,PE144167,0.52,0.00,Electricity charges for the period 01/07/22-31/07/22,Electricity
Wyre Council,http://opendatacommunities.org/doc/district-council/wyre,29/09/2022,People and Places,Environmental Services,132B,N Power LTD,27/09/2022,PE144166,0.49,0.00,Electricity charges for the period 01/06/22-30/06/22,Electricity
Wyre Council,http://opendatacommunities.org/doc/district-council/wyre,29/09/2022,People and Places,Environmental Services,132B,N Power LTD,27/09/2022,PE144165,0.51,0.00,Electricity charges for the period 01/05/22-31/5/22,Electricity
Wyre Council,http://opendatacommunities.org/doc/district-council/wyre,29/09/2022,People and Places,Environmental Services,132B,N Power LTD,27/09/2022,PE144164,0.51,0.00,Electricity charges for the period 01/04/22-30/04/22,Electricity
Wyre Council,http://opendatacommunities.org/doc/district-council/wyre,29/09/2022,People and Places,Environmental Services,132B,N Power LTD,27/09/2022,PE144163,0.54,0.00,Electricity charges for the period 01/03/22-31/03/22,Electricity
Wyre Council,http://opendatacommunities.org/doc/district-council/wyre,29/09/2022,People and Places,Environmental Services,132B,N Power LTD,27/09/2022,PE144162,0.50,0.00,Electricity charges for the period 01/02/22-28/02/22,Electricity
Wyre Council,http://opendatacommunities.org/doc/district-council/wyre,29/09/2022,People and Places,Environmental Services,132B,N Power LTD,27/09/2022,PE144161,0.56,0.00,Electricity charges for the period 01/01/2022-31/01/22,Electricity
Wyre Council,http://opendatacommunities.org/doc/district-council/wyre,29/09/2022,People and Places,Environmental Services,132B,N Power LTD,27/09/2022,PE144160,263.25,0.00,Electricity Charges for the period 01/08/22-31/8/22,Electricity
Wyre Council,http://opendatacommunities.org/doc/district-council/wyre,29/09/2022,People and Places,Environmental Services,132B,N Power LTD,27/09/2022,PE144155,352.97,0.00,Electricity charges for the period 01/03/22-31/3/22,Electricity
Wyre Council,http://opendatacommunities.org/doc/district-council/wyre,29/09/2022,People and Places,Environmental Services,132B,N Power LTD,27/09/2022,PE144154,334.56,0.00,Electricity charges for the period 01/02/22-28/02/22,Electricity
Wyre Council,http://opendatacommunities.org/doc/district-council/wyre,29/09/2022,People and Places,Environmental Services,132B,N Power LTD,27/09/2022,PE144153,385.83,0.00,Electricity charges for the period 01/01/22-31/01/22,Electricity
Wyre Council,http://opendatacommunities.org/doc/district-council/wyre,29/09/2022,People and Places,Environmental Services,132B,N Power LTD,27/09/2022,PE144159,266.73,0.00,Electricity charges for the period 01/07/22-31/07/22,Electricity
Wyre Council,http://opendatacommunities.org/doc/district-council/wyre,29/09/2022,People and Places,Environmental Services,132B,N Power LTD,27/09/2022,PE144158,263.26,0.00,Electricity charges for the period 01/06/22-30/06/22,Electricity
Wyre Council,http://opendatacommunities.org/doc/district-council/wyre,29/09/2022,People and Places,Environmental Services,132B,N Power LTD,27/09/2022,PE144157,297.87,0.00,Electricity charges for the period 01/05/22-31/5/22,Electricity
Wyre Council,http://opendatacommunities.org/doc/district-council/wyre,29/09/2022,People and Places,Environmental Services,132B,N Power LTD,27/09/2022,PE144156,308.48,0.00,Electricity charges for the period 01/04/22-30/04/22,Electricity
Wyre Council,http://opendatacommunities.org/doc/district-council/wyre,29/09/2022,People and Places,Environmental Services,132B,Bryt Energy Limited,27/09/2022,PE144037,48.34,0.00,Electricity Charges for the period 01/08/22-31/08/22,Electricity
Wyre Council,http://opendatacommunities.org/doc/district-council/wyre,29/09/2022,People and Places,Cultural and Related Services,132A,Bryt Energy Limited,27/09/2022,PE144032,2716.11,0.00,Electricity Charges for the period 01/08/22-31/08/22,Electricity
Wyre Council,http://opendatacommunities.org/doc/district-council/wyre,29/09/2022,People and Places,Cultural and Related Services,132A,Bryt Energy Limited,27/09/2022,PE144033,863.58,0.00,Electricity Charges for the period 01/08/22-31/08/22,Electricity
Wyre Council,http://opendatacommunities.org/doc/district-council/wyre,29/09/2022,People and Places,Planning and Development Servs,132C,Bryt Energy Limited,27/09/2022,PE144035,3010.20,0.00,Electricity Charges for the period 01/08/22-31/08/22,Electricity
Wyre Council,http://opendatacommunities.org/doc/district-council/wyre,29/09/2022,People and Places,Cultural and Related Services,132A,Bryt Energy Limited,27/09/2022,PE144034,97.19,0.00,Electricity Charges for the period 01/08/22-31/08/22,Electricity
Wyre Council,http://opendatacommunities.org/doc/district-council/wyre,29/09/2022,People and Places,Planning and Development Servs,132C,Bryt Energy Limited,27/09/2022,PE144031,827.49,0.00,Electricity Charges for the period 01/08/22-31/08/22,Electricity
Wyre Council,http://opendatacommunities.org/doc/district-council/wyre,29/09/2022,People and Places,Planning and Development Servs,132C,Bryt Energy Limited,27/09/2022,PE144031,0.05,0.00,Balance brough forward,Electricity
Wyre Council,http://opendatacommunities.org/doc/district-council/wyre,29/09/2022,People and Places,Support Services,135B,Bryt Energy Limited,27/09/2022,PE144036,4285.90,0.00,Electricity Charges for the period 01/08/22-31/08/22,Electricity
Wyre Council,http://opendatacommunities.org/doc/district-council/wyre,29/09/2022,People and Places,Planning and Development Servs,132C,Corona Energy Retail 4 Limited,30/09/2022,PE144241,275.05,0.00,Monthly Charges,Electricity
Wyre Council,http://opendatacommunities.org/doc/district-council/wyre,29/09/2022,People and Places,Cultural and Related Services,132A,Corona Energy Retail 4 Limited,30/09/2022,PE144241,30.71,0.00,Monthly Charges,Electricity
Wyre Council,http://opendatacommunities.org/doc/district-council/wyre,29/09/2022,People and Places,Environmental Services,132B,Corona Energy Retail 4 Limited,30/09/2022,PE144241,48.35,0.00,Monthly Charges,Electricity
Wyre Council,http://opendatacommunities.org/doc/district-council/wyre,29/09/2022,People and Places,Cultural and Related Services,132A,Corona Energy Retail 4 Limited,30/09/2022,PE144241,54.68,0.00,Monthly Charges,Electricity
Wyre Council,http://opendatacommunities.org/doc/district-council/wyre,29/09/2022,People and Places,Environmental Services,132B,Corona Energy Retail 4 Limited,30/09/2022,PE144241,87.40,0.00,Monthly Charges,Electricity
Wyre Council,http://opendatacommunities.org/doc/district-council/wyre,29/09/2022,People and Places,Planning and Development Servs,132C,Corona Energy Retail 4 Limited,30/09/2022,PE144241,436.07,0.00,Monthly Charges,Electricity
Wyre Council,http://opendatacommunities.org/doc/district-council/wyre,29/09/2022,People and Places,Cultural and Related Services,132A,Corona Energy Retail 4 Limited,30/09/2022,PE144241,377.70,0.00,Monthly Charges,Electricity
Wyre Council,http://opendatacommunities.org/doc/district-council/wyre,29/09/2022,People and Places,Cultural and Related Services,132A,Corona Energy Retail 4 Limited,30/09/2022,PE144241,43.48,0.00,Monthly Charges,Electricity
Wyre Council,http://opendatacommunities.org/doc/district-council/wyre,29/09/2022,People and Places,Cultural and Related Services,132A,Corona Energy Retail 4 Limited,30/09/2022,PE144241,143.18,0.00,Monthly Charges,Electricity
Wyre Council,http://opendatacommunities.org/doc/district-council/wyre,29/09/2022,People and Places,Cultural and Related Services,132A,Corona Energy Retail 4 Limited,30/09/2022,PE144241,62.04,0.00,Monthly Charges,Electricity
Wyre Council,http://opendatacommunities.org/doc/district-council/wyre,29/09/2022,People and Places,Environmental Services,132B,Corona Energy Retail 4 Limited,30/09/2022,PE144241,286.07,0.00,Monthly Charges,Electricity
Wyre Council,http://opendatacommunities.org/doc/district-council/wyre,29/09/2022,People and Places,Cultural and Related Services,132A,Corona Energy Retail 4 Limited,30/09/2022,PE144241,216.33,0.00,Monthly Charges,Electricity
Wyre Council,http://opendatacommunities.org/doc/district-council/wyre,29/09/2022,People and Places,Cultural and Related Services,132A,Corona Energy Retail 4 Limited,30/09/2022,PE144241,214.46,0.00,Monthly Charges,Electricity
Wyre Council,http://opendatacommunities.org/doc/district-council/wyre,29/09/2022,People and Places,Cultural and Related Services,132A,Corona Energy Retail 4 Limited,30/09/2022,PE144241,31.61,0.00,Monthly Charges,Electricity
Wyre Council,http://opendatacommunities.org/doc/district-council/wyre,29/09/2022,People and Places,Central Services to the Public,131C,Corona Energy Retail 4 Limited,30/09/2022,PE144241,594.12,0.00,Monthly Charges,Electricity
Wyre Council,http://opendatacommunities.org/doc/district-council/wyre,29/09/2022,People and Places,Cultural and Related Services,132A,Corona Energy Retail 4 Limited,30/09/2022,PE144241,49.92,0.00,Monthly Charges,Electricity
Wyre Council,http://opendatacommunities.org/doc/district-council/wyre,29/09/2022,People and Places,Environmental Services,132B,Corona Energy Retail 4 Limited,30/09/2022,PE144241,102.73,0.00,Monthly Charges,Electricity
Wyre Council,http://opendatacommunities.org/doc/district-council/wyre,29/09/2022,People and Places,Cultural and Related Services,132A,Corona Energy Retail 4 Limited,30/09/2022,PE144241,121.99,0.00,Monthly Charges,Electricity
Wyre Council,http://opendatacommunities.org/doc/district-council/wyre,29/09/2022,People and Places,Cultural and Related Services,132A,Corona Energy Retail 4 Limited,30/09/2022,PE144241,327.97,0.00,Monthly Charges,Electricity
Wyre Council,http://opendatacommunities.org/doc/district-council/wyre,29/09/2022,People and Places,Cultural and Related Services,132A,Corona Energy Retail 4 Limited,30/09/2022,PE144241,541.11,0.00,Monthly Charges,Electricity
Wyre Council,http://opendatacommunities.org/doc/district-council/wyre,29/09/2022,People and Places,Cultural and Related Services,132A,Corona Energy Retail 4 Limited,30/09/2022,PE144241,-370.01,0.00,Monthly Charges,Electricity
Wyre Council,http://opendatacommunities.org/doc/district-council/wyre,29/09/2022,People and Places,Cultural and Related Services,132A,Corona Energy Retail 4 Limited,30/09/2022,PE144241,153.55,0.00,Monthly Charges,Electricity
Wyre Council,http://opendatacommunities.org/doc/district-council/wyre,29/09/2022,People and Places,Cultural and Related Services,132A,Corona Energy Retail 4 Limited,30/09/2022,PE144241,134.85,0.00,Monthly Charges,Electricity
Wyre Council,http://opendatacommunities.org/doc/district-council/wyre,29/09/2022,People and Places,Environmental Services,132B,Corona Energy Retail 4 Limited,30/09/2022,PE144241,268.85,0.00,Monthly Charges,Electricity
Wyre Council,http://opendatacommunities.org/doc/district-council/wyre,29/09/2022,People and Places,Environmental Services,132B,Corona Energy Retail 4 Limited,30/09/2022,PE144241,1103.42,0.00,Monthly Charges,Electricity
Wyre Council,http://opendatacommunities.org/doc/district-council/wyre,29/09/2022,Resources,Cultural and Related Services,132A,British telecommunications PLC,21/09/2022,RS143919,44.88,0.00,Annual Bill,Emergency Telephones
Wyre Council,http://opendatacommunities.org/doc/district-council/wyre,29/09/2022,Resources,Cultural and Related Services,132A,British telecommunications PLC,21/09/2022,RS143919,10.00,0.00,Late payment fee,Emergency Telephones
Wyre Council,http://opendatacommunities.org/doc/district-council/wyre,29/09/2022,Resources,Cultural and Related Services,132A,British telecommunications PLC,20/09/2022,RS143841,44.88,0.00,Annual Bill,Emergency Telephones
Wyre Council,http://opendatacommunities.org/doc/district-council/wyre,29/09/2022,Resources,Cultural and Related Services,132A,British telecommunications PLC,20/09/2022,RS143023,44.88,0.00,Annual Bill,Emergency Telephones
Wyre Council,http://opendatacommunities.org/doc/district-council/wyre,29/09/2022,Resources,Cultural and Related Services,132A,British telecommunications PLC,20/09/2022,RS143023,64.41,0.00,Annual Bill,Emergency Telephones
Wyre Council,http://opendatacommunities.org/doc/district-council/wyre,29/09/2022,Resources,Cultural and Related Services,132A,British telecommunications PLC,20/09/2022,RS143841,64.41,0.00,Annual Bill,Emergency Telephones
Wyre Council,http://opendatacommunities.org/doc/district-council/wyre,29/09/2022,Resources,Cultural and Related Services,132A,British telecommunications PLC,21/09/2022,RS143919,20.00,0.00,Late payment fee,Emergency Telephones
Wyre Council,http://opendatacommunities.org/doc/district-council/wyre,29/09/2022,Resources,Cultural and Related Services,132A,British telecommunications PLC,21/09/2022,RS143919,65.79,0.00,Annual Bill,Emergency Telephones
Wyre Council,http://opendatacommunities.org/doc/district-council/wyre,29/09/2022,Resources,Cultural and Related Services,132A,British telecommunications PLC,21/09/2022,RS143919,89.76,0.00,Annual Bill,Emergency Telephones
Wyre Council,http://opendatacommunities.org/doc/district-council/wyre,29/09/2022,Resources,Cultural and Related Services,132A,British telecommunications PLC,20/09/2022,RS143023,89.76,0.00,Annual Bill,Emergency Telephones
Wyre Council,http://opendatacommunities.org/doc/district-council/wyre,29/09/2022,Resources,Cultural and Related Services,132A,British telecommunications PLC,20/09/2022,RS143841,89.76,0.00,Annual Bill,Emergency Telephones
Wyre Council,http://opendatacommunities.org/doc/district-council/wyre,29/09/2022,Resources,Cultural and Related Services,132A,British telecommunications PLC,21/09/2022,RS143841,80.00,0.00,Late payment fee,Emergency Telephones
Wyre Council,http://opendatacommunities.org/doc/district-council/wyre,29/09/2022,Finance,Central Services to the Public,131C,,01/09/2022,WPST00071514,2250.00,0.00,energy rebate - discretionary 26/8,Energy Rebate Payment
Wyre Council,http://opendatacommunities.org/doc/district-council/wyre,29/09/2022,Finance,Central Services to the Public,131C,,01/09/2022,WPST00071513,18150.00,0.00,energy rebate - main 26/8,Energy Rebate Payment
Wyre Council,http://opendatacommunities.org/doc/district-council/wyre,29/09/2022,Finance,Central Services to the Public,131C,,16/09/2022,WPST00073362,22050.00,0.00,energy rebate 9/9,Energy Rebate Payment
Wyre Council,http://opendatacommunities.org/doc/district-council/wyre,29/09/2022,People and Places,Cultural and Related Services,132A,G H Pens,23/09/2022,PE144094,161.25,0.00,Invoice 26 - Wooden pens and ornaments. 215.00 less 25% commission 53.75,Equipment for Resale
Wyre Council,http://opendatacommunities.org/doc/district-council/wyre,29/09/2022,People and Places,Cultural and Related Services,132A,G H Pens,21/09/2022,PE143976,465.00,0.00,"Sale of pens, clocks and wooden ornaments:620.00 less 25% commission at 155",Equipment for Resale
Wyre Council,http://opendatacommunities.org/doc/district-council/wyre,29/09/2022,People and Places,Planning and Development Servs,132C,Special EFX Limited,08/09/2022,PE143722,762.60,0.00,"12 slate Trophies with engraving, for Wyre Business Awards",Event Hospitality
Wyre Council,http://opendatacommunities.org/doc/district-council/wyre,29/09/2022,Resources,Housing General Fund,134A,KPMG LLP,12/09/2022,RS143775,5489.50,0.00,HB Subsidy Claim 2021/22 (50% of Fee),External Audit Fees
Wyre Council,http://opendatacommunities.org/doc/district-council/wyre,29/09/2022,People and Places,Cultural and Related Services,132A,Fylde Coast YMCA,29/09/2022,PE144339,19612.00,0.00,Fleetwood Leisure Centre - Summer 2022 HAF costsWeekly Costs X 4Activity Costs 2400Food Costs 528Equipment Costs 0Trip /Transport Costs 0Staff Costs 1800Admin and Sundries 175,External Coaching
Wyre Council,http://opendatacommunities.org/doc/district-council/wyre,29/09/2022,People and Places,Cultural and Related Services,132A,Fylde Coast YMCA,29/09/2022,PE144341,19612.00,0.00,Thornton Leisure Centre - HAF Summer 2022Weekly Costs X 4Activity Costs 2400Food Costs 528Equipment Costs 0Trip /Transport Costs 0Staff Costs 1800Admin and Sundries 175,External Coaching
Wyre Council,http://opendatacommunities.org/doc/district-council/wyre,29/09/2022,People and Places,Cultural and Related Services,132A,Fylde Coast YMCA,30/09/2022,PE144340,10876.00,0.00,"HAF costs - Poulton YMCA Summer 2022: Cost Per Week x 4 weeks Activity Costs 1200 Food Costs 264 Equipment Costs 0 Trip /Transport Costs 0 Staff Costs 1080 Admin and Sundries 175 Total cost - 10,876",External Coaching
Wyre Council,http://opendatacommunities.org/doc/district-council/wyre,29/09/2022,People and Places,Cultural and Related Services,132A,Play Inclusion Project,23/09/2022,PE144089,6030.00,0.00,"Wyre HAF Summer 2022 - 23 unique children over the summer and have allocated 67 places for these children,",External Coaching
Wyre Council,http://opendatacommunities.org/doc/district-council/wyre,29/09/2022,People and Places,Cultural and Related Services,132A,Healthy Heads Education Ltd,23/09/2022,PE144104,1117.85,0.00,"HAF summer 2022 Nutrition costs for supporting our HAF clubs across Wyre, plus expenses and mileage expenses:HAF workshop - Summer provision x16  960.00 Food expenses  134.05 Travel expense 70 miles @ 34p per mile  23.80",External Coaching
Wyre Council,http://opendatacommunities.org/doc/district-council/wyre,29/09/2022,People and Places,Cultural and Related Services,132A,The Fylde Rugby Community Foundation,22/09/2022,PE144056,1236.00,0.00,"Project Management1.00525.00HAF Attendance Cost - 15 per child x 7 children x 3 days7.0045.00315.00Equipment Costs1.0090.0090.00HAF Food Costs - 6 per head x 3 days x 77.0018.00126.00HAF Chef Fee1.00180.00Subtotal1,236.",External Coaching
Wyre Council,http://opendatacommunities.org/doc/district-council/wyre,29/09/2022,People and Places,Cultural and Related Services,132A,Sporting NRG Ltd,15/09/2022,PE143566,4480.00,0.00,"Outdoor Education Programme for the HAF programme 2022 at Fleetwood Boating Lake and Garstang Canal. Total cost - 4,480 Cost per place - we agreed that we would charge on cost per session �       Food per place - 5 per place.  Total food cost = 60 �",External Coaching
Wyre Council,http://opendatacommunities.org/doc/district-council/wyre,29/09/2022,People and Places,Cultural and Related Services,132A,Greg Robinson Countryside Services,28/09/2022,PE144266,1680.00,0.00,grass cutting at Brock and Delp for the 2022 summer season,External Contractor
Wyre Council,http://opendatacommunities.org/doc/district-council/wyre,29/09/2022,People and Places,Planning and Development Servs,132C,George Hewitt Fabrications,08/09/2022,PE143724,10200.00,0.00,"Carry out works as your quotation ref date 06/04/2022To Fabricate railings and stair rails around Caf� Cove 10,200 + vat",External Filming Expenses
Wyre Council,http://opendatacommunities.org/doc/district-council/wyre,29/09/2022,People and Places,Public Transport,133G,George Hewitt Fabrications,21/09/2022,PE143943,750.00,0.00,Fabrication of two tubular gates and locking clasp forwalkway at Fleetwood ferry dock.,Ferry Dock Maintenance
Wyre Council,http://opendatacommunities.org/doc/district-council/wyre,29/09/2022,People and Places,Environmental Services,132B,United Utilities Standpipes,16/09/2022,PE143026,5.11,0.00,"FAO Rachel Aitken Senior Client Liaison Scientist Quality & Scientific Services United Utilities   T: 01925 677103 unitedutilities.com   PWS Supply Ref: 207/WP/28  PSW � resample for lead from kitchen cold tap, Sandholme Mill on 4/5/2022 tag: 63835338",Food and Drug Etc Samples
Wyre Council,http://opendatacommunities.org/doc/district-council/wyre,29/09/2022,People and Places,Environmental Services,132B,United Utilities Standpipes,16/09/2022,PE143026,200.00,0.00,"FAO Rachel Aitken Senior Client Liaison Scientist Quality & Scientific Services United Utilities   T: 01925 677103 unitedutilities.com   PWS Supply Ref: 207/WP/19 � School Supply  PSW Analysis Curlew tent, Larks & Lanterns Bleasdale on 20/06/2022  Reg 9",Food and Drug Etc Samples
Wyre Council,http://opendatacommunities.org/doc/district-council/wyre,29/09/2022,People and Places,Environmental Services,132B,United Utilities Standpipes,16/09/2022,PE143026,247.88,0.00,FAO Rachel Aitken Senior Client Liaison Scientist Quality & Scientific Services United Utilities   T: 01925 677103 unitedutilities.com   PWS Supply Ref: 207/WP/3 � Hudsbrook Supply on 14/6/2022  PSW Analysis at Lane Head Farm kitchen cold water tap. Tag 6,Food and Drug Etc Samples
Wyre Council,http://opendatacommunities.org/doc/district-council/wyre,29/09/2022,People and Places,Support Services,135B,Allstar Business Solutions LTD,20/09/2022,PE143839,415.75,0.00,Monthly Charges,Fuel
Wyre Council,http://opendatacommunities.org/doc/district-council/wyre,29/09/2022,People and Places,Support Services,135B,Allstar Business Solutions LTD,20/09/2022,PE143839,6.25,0.00,Late Payment Fee,Fuel
Wyre Council,http://opendatacommunities.org/doc/district-council/wyre,29/09/2022,People and Places,Support Services,135B,Allstar Business Solutions LTD,22/09/2022,PE143921,198.43,0.00,Fuel Charges for August/September 2022,Fuel
Wyre Council,http://opendatacommunities.org/doc/district-council/wyre,29/09/2022,People and Places,Support Services,135B,Allstar Business Solutions LTD,20/09/2022,PE143839,410.45,0.00,Monthly Charges,Fuel
Wyre Council,http://opendatacommunities.org/doc/district-council/wyre,29/09/2022,People and Places,Support Services,135B,Allstar Business Solutions LTD,20/09/2022,PE143839,6.25,0.00,Late Payment Fee,Fuel
Wyre Council,http://opendatacommunities.org/doc/district-council/wyre,29/09/2022,People and Places,Support Services,135B,Allstar Business Solutions LTD,22/09/2022,PE143921,498.40,0.00,Fuel Charges for August/September 2022,Fuel
Wyre Council,http://opendatacommunities.org/doc/district-council/wyre,29/09/2022,People and Places,Support Services,135B,AvantiGas ON Ltd,27/09/2022,PE144027,1147.21,0.00,Gas Charges for the period 01/08/22-31/8/22,Gas
Wyre Council,http://opendatacommunities.org/doc/district-council/wyre,29/09/2022,Resources,Support Services,135B,Konica Minolta Business Solutions UK LTD,06/09/2022,RS143647,1059.64,0.00,Copy and print charges Equipment number: 26/02/2022-25/02/2023182585650318258564871825843155182585649318258564551825856489182585649018258431571825856492182586326718258564911825856452,Hire of Tools or Equipment
Wyre Council,http://opendatacommunities.org/doc/district-council/wyre,29/09/2022,Resources,Support Services,135B,Konica Minolta Business Solutions UK LTD,13/09/2022,RS143736,1510.65,0.00,"Bizhub C300i - Equipment numbers 1825856503,1825856487, 1825843155, 1825856493, 1825856455, 1825856489, 1825856490,1825843157, 1825856492, 1825863267, 1825858491, 1825856452, 1900083122, 190083356, 190083035 Contract number 420746628 - 29th May 2022 - 25t",Hire of Tools or Equipment
Wyre Council,http://opendatacommunities.org/doc/district-council/wyre,29/09/2022,Resources,Support Services,135B,Konica Minolta Business Solutions UK LTD,13/09/2022,RS143735,712.56,0.00,Copy and print charges 1st March 2022 - 28th February 2023  1823533444 - Bizhub PRO 1100 1823440258 - Bizhub C458,Hire of Tools or Equipment
Wyre Council,http://opendatacommunities.org/doc/district-council/wyre,29/09/2022,Resources,Support Services,135B,Konica Minolta Business Solutions UK LTD,28/09/2022,RS144246,723.45,0.00,Rental Charges - Bizhub PRO 1100 A799021001634 - Equipment no 1823533444                             Bizhub C458 A79M021038576 - Equipment no 1823440258  For the period of 1st June 2022 - 31st May 2023,Hire of Tools or Equipment
Wyre Council,http://opendatacommunities.org/doc/district-council/wyre,29/09/2022,Resources,Planning and Development Servs,132C,Konica Minolta Business Solutions UK LTD,16/09/2022,RS142938,17.58,0.00,1840080773 - Fleetwood Market,Hire of Tools or Equipment
Wyre Council,http://opendatacommunities.org/doc/district-council/wyre,29/09/2022,Resources,Cultural and Related Services,132A,Konica Minolta Business Solutions UK LTD,16/09/2022,RS142938,106.65,0.00,Copy and print charges 26/03/2022 - 25/03/2023 18401412710 - Visit Garstang,Hire of Tools or Equipment
Wyre Council,http://opendatacommunities.org/doc/district-council/wyre,29/09/2022,People and Places,Support Services,135B,M J Wilkinson,15/09/2022,PE143908,52.81,0.00,Hire of Hitachi ZX30 @ Poulton Cemetery 22/7/22 @ 52.81,Hire of Tools or Equipment
Wyre Council,http://opendatacommunities.org/doc/district-council/wyre,29/09/2022,People and Places,Support Services,135B,M J Wilkinson,15/09/2022,PE143908,52.82,0.00,Each way transport @ 26.41 each,Hire of Tools or Equipment
Wyre Council,http://opendatacommunities.org/doc/district-council/wyre,29/09/2022,Resources,Housing General Fund,134A,Creative Support LTD,30/09/2022,RS144372,7025.50,0.00,Contract fees - period 01.07.22 - 30.03.22,Homelessness Tenancy Support
Wyre Council,http://opendatacommunities.org/doc/district-council/wyre,29/09/2022,Finance,Central Services to the Public,131C,,01/09/2022,WPST00071515,15960.00,0.00,HSF 26/8,Household Support Fund
Wyre Council,http://opendatacommunities.org/doc/district-council/wyre,29/09/2022,Finance,Central Services to the Public,131C,,16/09/2022,WPST00073363,16290.00,0.00,Household support 9/9,Household Support Fund
Wyre Council,http://opendatacommunities.org/doc/district-council/wyre,29/09/2022,Resources,Cultural and Related Services,132A,Daisy Communications LTD,12/09/2022,RS143381,9.48,0.00,Monthly Charges to the 31/07/2032,Internet and Telephone Charges
Wyre Council,http://opendatacommunities.org/doc/district-council/wyre,29/09/2022,Resources,Support Services,135B,Daisy Communications LTD,12/09/2022,RS143381,15.00,0.00,Monthly Charges to the 31/07/2041,Internet and Telephone Charges
Wyre Council,http://opendatacommunities.org/doc/district-council/wyre,29/09/2022,Resources,Cultural and Related Services,132A,Daisy Communications LTD,12/09/2022,RS143381,24.47,0.00,Monthly Charges to the 31/07/2027,Internet and Telephone Charges
Wyre Council,http://opendatacommunities.org/doc/district-council/wyre,29/09/2022,Resources,Corporate and Democratic Core,131A,Daisy Communications LTD,12/09/2022,RS143381,9.49,0.00,Monthly Charges to the 31/07/2022,Internet and Telephone Charges
Wyre Council,http://opendatacommunities.org/doc/district-council/wyre,29/09/2022,Resources,Support Services,135B,Daisy Communications LTD,12/09/2022,RS143381,18.96,0.00,Monthly Charges to the 31/07/2040,Internet and Telephone Charges
Wyre Council,http://opendatacommunities.org/doc/district-council/wyre,29/09/2022,Resources,Support Services,135B,Daisy Communications LTD,12/09/2022,RS143381,38.48,0.00,Monthly Charges to the 31/07/2042,Internet and Telephone Charges
Wyre Council,http://opendatacommunities.org/doc/district-council/wyre,29/09/2022,People and Places,Cultural and Related Services,132A,Northern Citrus Products LTD,27/09/2022,PE144249,273.90,0.00,Marine Hall stock,Kiosk stock
Wyre Council,http://opendatacommunities.org/doc/district-council/wyre,29/09/2022,People and Places,Cultural and Related Services,132A,Northern Citrus Products LTD,06/09/2022,PE143668,986.77,0.00,Kiosk stock,Kiosk stock
Wyre Council,http://opendatacommunities.org/doc/district-council/wyre,29/09/2022,People and Places,Cultural and Related Services,132A,Northern Citrus Products LTD,06/09/2022,PE143667,1237.80,0.00,Kiosk stock,Kiosk stock
Wyre Council,http://opendatacommunities.org/doc/district-council/wyre,29/09/2022,People and Places,Cultural and Related Services,132A,Northern Citrus Products LTD,06/09/2022,PE143667,37.50,0.00,WHITE SUGAR X 6,Kiosk stock
Wyre Council,http://opendatacommunities.org/doc/district-council/wyre,29/09/2022,Resources,Planning and Development Servs,132C,DAC Beachcroft LLP,12/09/2022,RS143772,7500.00,0.00,Project NeptuneFinal Account for the period20 June 2022 to 17 August 2022Professional Fees,Legal Fees
Wyre Council,http://opendatacommunities.org/doc/district-council/wyre,29/09/2022,Resources,Planning and Development Servs,132C,DAC Beachcroft LLP,26/09/2022,RS144192,6553.00,0.00,Interim Account for the period 30 June 2021 to 27 June 2022  Professional Fees,Legal Fees
Wyre Council,http://opendatacommunities.org/doc/district-council/wyre,29/09/2022,Resources,Planning and Development Servs,132C,DAC Beachcroft LLP,26/09/2022,RS144192,12.00,0.00,Disbursements for the period 30 June 2021 to 27 June 2022,Legal Fees
Wyre Council,http://opendatacommunities.org/doc/district-council/wyre,29/09/2022,People and Places,Support Services,135B,Browne Jacobson LLP,20/09/2022,PE143885,1173.90,0.00,Energy Contracts - For professional Fees for the period 03/08/2022-12/08/2022,Legal Fees
Wyre Council,http://opendatacommunities.org/doc/district-council/wyre,29/09/2022,People and Places,Support Services,135B,Browne Jacobson LLP,15/09/2022,PE143245,593.30,0.00,Energy Contracts - For Professional services for the period 30/06/2022-04/07/2022,Legal Fees
Wyre Council,http://opendatacommunities.org/doc/district-council/wyre,29/09/2022,People and Places,Support Services,135B,Browne Jacobson LLP,15/09/2022,PE143242,7500.00,0.00,Energy Contracts - For professional Fees for the period 12/05/2022-24/06/2022,Legal Fees
Wyre Council,http://opendatacommunities.org/doc/district-council/wyre,29/09/2022,People and Places,Cultural and Related Services,132A,Lancashire County Council,06/09/2022,PE143669,200.00,0.00,Mount Pavilion - Approved Premises Annual Fee,Licences
Wyre Council,http://opendatacommunities.org/doc/district-council/wyre,29/09/2022,People and Places,Highways,133B,Smiths Equipment Hire,30/09/2022,PE144369,563.70,0.00,21 mtr cherry picker as per contract H07-725873  . Deliver to Cafe Cove on North Prom which is opposite The Vue on 19/09/22 early .,Maint. of Unadopted Assets - Engineers
Wyre Council,http://opendatacommunities.org/doc/district-council/wyre,29/09/2022,People and Places,Highways,133B,CU PHOSCO LIGHTING LTD,21/09/2022,PE143994,1560.00,0.00,"Provide all necessary labour and supervision to conduct a Type 1 maintenance on 2 no raise and lower high masts as detailed on maintenance certificate items 1-38. Certification to be provided upon completion.location: Wyre Civic Centre, Breck Road, Po",Maint. of Unadopted Assets - Engineers
Wyre Council,http://opendatacommunities.org/doc/district-council/wyre,29/09/2022,People and Places,Cultural and Related Services,132A,EAS Electrical Mechanical,21/09/2022,PE143928,48.00,0.00,Cleaned out dust from hand dryers at Marine Hall,Maintenance of Tools or Equipment
Wyre Council,http://opendatacommunities.org/doc/district-council/wyre,29/09/2022,People and Places,Parking Services,133F,PETER HEARN ELECTRICAL LTD,30/09/2022,PE144261,720.00,0.00,"Carry out annual car park Pay & Display meter electrical inspection and safety checks, including NICEIC report.",Maintenance of Tools or Equipment
Wyre Council,http://opendatacommunities.org/doc/district-council/wyre,29/09/2022,People and Places,Highways,133B,Dr Tree Surgeons,30/09/2022,PE142984,100.00,0.00,Quotation 571  Quote Ref: 190 Blackpool Old Road  1 To fell and stump grind Cherry tree . 100.00 100.00  Total Net Amount: 100.00 VAT @ 20%: 20.00 Quote Total: 120.00,Maintenance of Trees and Shrubs
Wyre Council,http://opendatacommunities.org/doc/district-council/wyre,29/09/2022,Resources,Housing General Fund,134A,St Gobain Building Distribution LTD,29/09/2022,RS144317,213.30,0.00,Payment of invoice 0963/00112444,Materials and Consumables
Wyre Council,http://opendatacommunities.org/doc/district-council/wyre,29/09/2022,Resources,Housing General Fund,134A,St Gobain Building Distribution LTD,30/09/2022,RS144356,-213.30,0.00,Payment of invoice 0963/00112444,Materials and Consumables
Wyre Council,http://opendatacommunities.org/doc/district-council/wyre,29/09/2022,Resources,Housing General Fund,134A,St Gobain Building Distribution LTD,30/09/2022,RS144355,347.42,0.00,Payment of invoice 0963/00110369,Materials and Consumables
Wyre Council,http://opendatacommunities.org/doc/district-council/wyre,29/09/2022,Resources,Housing General Fund,134A,St Gobain Building Distribution LTD,30/09/2022,RS144356,213.30,0.00,Payment of invoice 0963/00112444,Materials and Consumables
Wyre Council,http://opendatacommunities.org/doc/district-council/wyre,29/09/2022,People and Places,Support Services,135B,EK Motors Factors LTD,27/09/2022,PE144225,74.14,0.00,Parts,Materials and Consumables
Wyre Council,http://opendatacommunities.org/doc/district-council/wyre,29/09/2022,People and Places,Support Services,135B,EK Motors Factors LTD,27/09/2022,PE144224,23.96,0.00,Parts,Materials and Consumables
Wyre Council,http://opendatacommunities.org/doc/district-council/wyre,29/09/2022,People and Places,Support Services,135B,EK Motors Factors LTD,27/09/2022,PE144223,25.42,0.00,Parts,Materials and Consumables
Wyre Council,http://opendatacommunities.org/doc/district-council/wyre,29/09/2022,People and Places,Support Services,135B,EK Motors Factors LTD,09/09/2022,PE143760,12.49,0.00,PARTS,Materials and Consumables
Wyre Council,http://opendatacommunities.org/doc/district-council/wyre,29/09/2022,People and Places,Support Services,135B,EK Motors Factors LTD,09/09/2022,PE143762,8.70,0.00,PARTS,Materials and Consumables
Wyre Council,http://opendatacommunities.org/doc/district-council/wyre,29/09/2022,People and Places,Support Services,135B,EK Motors Factors LTD,09/09/2022,PE143761,36.56,0.00,PARTS,Materials and Consumables
Wyre Council,http://opendatacommunities.org/doc/district-council/wyre,29/09/2022,People and Places,Support Services,135B,Glasdon UK LTD,23/09/2022,PE144095,486.70,0.00,"Supply and deliver as your quotation EQ70071477One bench, delivery to  Copse Road. Plaque to read;               In loving memory of                 David Wilson and           Alice and Walter Melling                  loved by all xxxDra",Materials and Consumables
Wyre Council,http://opendatacommunities.org/doc/district-council/wyre,29/09/2022,People and Places,Environmental Services,132B,Bucher Municipal Limited,16/09/2022,PE143671,729.90,0.00,Chanel brush,Materials and Consumables
Wyre Council,http://opendatacommunities.org/doc/district-council/wyre,29/09/2022,People and Places,Environmental Services,132B,Malcolm McCulloch & Sons LTD,21/09/2022,PE143959,542.50,0.00,various items on invoice 253500,Materials and Consumables
Wyre Council,http://opendatacommunities.org/doc/district-council/wyre,29/09/2022,People and Places,Support Services,135B,Malcolm McCulloch & Sons LTD,21/09/2022,PE143954,800.42,0.00,items on invoice 253934,Materials and Consumables
Wyre Council,http://opendatacommunities.org/doc/district-council/wyre,29/09/2022,People and Places,Support Services,135B,Malcolm McCulloch & Sons LTD,21/09/2022,PE143959,468.00,0.00,various items on invoice 253500,Materials and Consumables
Wyre Council,http://opendatacommunities.org/doc/district-council/wyre,29/09/2022,People and Places,Environmental Services,132B,Road Safety Services LTD,21/09/2022,PE143993,600.00,0.00,Road traffic precautions in place,Materials and Consumables
Wyre Council,http://opendatacommunities.org/doc/district-council/wyre,29/09/2022,People and Places,Environmental Services,132B, Travis Perkins Trading CO LTD,20/09/2022,PE143900,384.00,0.00,60 BAGS POSTCRETE,Materials and Consumables
Wyre Council,http://opendatacommunities.org/doc/district-council/wyre,29/09/2022,People and Places,Environmental Services,132B,M J Wilkinson,15/09/2022,PE143913,600.00,0.00,Hire of 2x Road Plates,Materials and Consumables
Wyre Council,http://opendatacommunities.org/doc/district-council/wyre,29/09/2022,People and Places,Environmental Services,132B,Townscape Products LTD,26/09/2022,PE144117,1820.00,0.00,Your quotation B10945Please provide 25 no mild steel rails - 48mm diameter 1.8m long - galvanised and polyester powder coated finish in Black (RAL 9004)Delivery to Copse Road depot FY7 6RP,Materials and Consumables
Wyre Council,http://opendatacommunities.org/doc/district-council/wyre,29/09/2022,People and Places,Cultural and Related Services,132A,HUWS GRAY LTD,21/09/2022,PE143938,90.77,0.00,1x Gate Post - 150x150x2.4 - 37.43 1x Sawn treated Timber - 75x47x4800 - 9.68 2x Galv Adjustable Hook on 4x4 plate - 19.06 8x Coach Screw Hex Head M10 x 100mm - 4.72 8x Penny Washers M10 x 30mm - 0.40 4x Cup Square Bolt & Nut M10 x 100mm - 1.84 4x N,Materials and Consumables
Wyre Council,http://opendatacommunities.org/doc/district-council/wyre,29/09/2022,People and Places,Support Services,135B,HUWS GRAY LTD,21/09/2022,PE143991,129.00,0.00,MATERIALS,Materials and Consumables
Wyre Council,http://opendatacommunities.org/doc/district-council/wyre,29/09/2022,People and Places,Support Services,135B,HUWS GRAY LTD,21/09/2022,PE143991,34.94,0.00,MATERIALS,Materials and Consumables
Wyre Council,http://opendatacommunities.org/doc/district-council/wyre,29/09/2022,People and Places,Support Services,135B,George Hewitt Fabrications,26/09/2022,PE144147,40.00,0.00,Repair of 1 aluminium rugby post @ 40,Materials and Consumables
Wyre Council,http://opendatacommunities.org/doc/district-council/wyre,29/09/2022,People and Places,Environmental Services,132B,George Hewitt Fabrications,08/09/2022,PE143724,3720.00,0.00,To Fabricate handrails at Ellerbeck and Coronation Road Cleveleys 7602 + vat (316 Stainless Steel)Requested by Gary Scott,Materials and Consumables
Wyre Council,http://opendatacommunities.org/doc/district-council/wyre,29/09/2022,Resources,Housing General Fund,134A,Mobility Care Services,26/09/2022,RS144136,132.00,0.00,REDACT,Minor Adaptations
Wyre Council,http://opendatacommunities.org/doc/district-council/wyre,29/09/2022,Resources,Housing General Fund,134A,Mobility Care Services,26/09/2022,RS144135,154.00,0.00,REDACT,Minor Adaptations
Wyre Council,http://opendatacommunities.org/doc/district-council/wyre,29/09/2022,Resources,Housing General Fund,134A,Mobility Care Services,26/09/2022,RS144134,240.00,0.00,REDACT,Minor Adaptations
Wyre Council,http://opendatacommunities.org/doc/district-council/wyre,29/09/2022,Resources,Housing General Fund,134A,Mobility Care Services,26/09/2022,RS144143,133.00,0.00,REDACT,Minor Adaptations
Wyre Council,http://opendatacommunities.org/doc/district-council/wyre,29/09/2022,Resources,Housing General Fund,134A,Mobility Care Services,26/09/2022,RS144142,133.00,0.00,REDACT,Minor Adaptations
Wyre Council,http://opendatacommunities.org/doc/district-council/wyre,29/09/2022,Resources,Housing General Fund,134A,Mobility Care Services,26/09/2022,RS144141,133.00,0.00,REDACT,Minor Adaptations
Wyre Council,http://opendatacommunities.org/doc/district-council/wyre,29/09/2022,Resources,Housing General Fund,134A,Mobility Care Services,26/09/2022,RS144140,441.00,0.00,REDACT,Minor Adaptations
Wyre Council,http://opendatacommunities.org/doc/district-council/wyre,29/09/2022,Resources,Housing General Fund,134A,Mobility Care Services,26/09/2022,RS144139,595.00,0.00,REDACT,Minor Adaptations
Wyre Council,http://opendatacommunities.org/doc/district-council/wyre,29/09/2022,Resources,Housing General Fund,134A,Mobility Care Services,26/09/2022,RS144138,460.00,0.00,REDACT,Minor Adaptations
Wyre Council,http://opendatacommunities.org/doc/district-council/wyre,29/09/2022,Resources,Housing General Fund,134A,Mobility Care Services,26/09/2022,RS144137,154.00,0.00,REDACT,Minor Adaptations
Wyre Council,http://opendatacommunities.org/doc/district-council/wyre,29/09/2022,Resources,Housing General Fund,134A,J A DICKENS LIMITED,26/09/2022,RS144129,420.00,0.00,REDACT,Minor Adaptations
Wyre Council,http://opendatacommunities.org/doc/district-council/wyre,29/09/2022,Resources,Housing General Fund,134A,J A DICKENS LIMITED,26/09/2022,RS144129,370.00,0.00,REDACT,Minor Adaptations
Wyre Council,http://opendatacommunities.org/doc/district-council/wyre,29/09/2022,Resources,Housing General Fund,134A,J A DICKENS LIMITED,26/09/2022,RS144125,73.00,0.00,REDACT,Minor Adaptations
Wyre Council,http://opendatacommunities.org/doc/district-council/wyre,29/09/2022,Resources,Housing General Fund,134A,J A DICKENS LIMITED,26/09/2022,RS144125,60.00,0.00,REDACT,Minor Adaptations
Wyre Council,http://opendatacommunities.org/doc/district-council/wyre,29/09/2022,Resources,Housing General Fund,134A,J A DICKENS LIMITED,26/09/2022,RS144126,190.00,0.00,REDACT,Minor Adaptations
Wyre Council,http://opendatacommunities.org/doc/district-council/wyre,29/09/2022,Resources,Housing General Fund,134A,J A DICKENS LIMITED,26/09/2022,RS144126,97.00,0.00,REDACT,Minor Adaptations
Wyre Council,http://opendatacommunities.org/doc/district-council/wyre,29/09/2022,Resources,Housing General Fund,134A,J A DICKENS LIMITED,26/09/2022,RS144127,400.00,0.00,REDACT,Minor Adaptations
Wyre Council,http://opendatacommunities.org/doc/district-council/wyre,29/09/2022,Resources,Housing General Fund,134A,J A DICKENS LIMITED,26/09/2022,RS144127,400.00,0.00,REDACT,Minor Adaptations
Wyre Council,http://opendatacommunities.org/doc/district-council/wyre,29/09/2022,Resources,Housing General Fund,134A,J A DICKENS LIMITED,26/09/2022,RS144128,188.00,0.00,REDACT,Minor Adaptations
Wyre Council,http://opendatacommunities.org/doc/district-council/wyre,29/09/2022,Resources,Housing General Fund,134A,J A DICKENS LIMITED,26/09/2022,RS144128,120.00,0.00,REDACT,Minor Adaptations
Wyre Council,http://opendatacommunities.org/doc/district-council/wyre,29/09/2022,Resources,Housing General Fund,134A,J A DICKENS LIMITED,26/09/2022,RS144119,94.00,0.00,REDACT,Minor Adaptations
Wyre Council,http://opendatacommunities.org/doc/district-council/wyre,29/09/2022,Resources,Housing General Fund,134A,J A DICKENS LIMITED,26/09/2022,RS144119,60.00,0.00,REDACT,Minor Adaptations
Wyre Council,http://opendatacommunities.org/doc/district-council/wyre,29/09/2022,Resources,Housing General Fund,134A,J A DICKENS LIMITED,26/09/2022,RS144122,94.00,0.00,REDACT,Minor Adaptations
Wyre Council,http://opendatacommunities.org/doc/district-council/wyre,29/09/2022,Resources,Housing General Fund,134A,J A DICKENS LIMITED,26/09/2022,RS144122,60.00,0.00,REDACT,Minor Adaptations
Wyre Council,http://opendatacommunities.org/doc/district-council/wyre,29/09/2022,Resources,Housing General Fund,134A,J A DICKENS LIMITED,26/09/2022,RS144123,94.00,0.00,REDACT,Minor Adaptations
Wyre Council,http://opendatacommunities.org/doc/district-council/wyre,29/09/2022,Resources,Housing General Fund,134A,J A DICKENS LIMITED,26/09/2022,RS144123,60.00,0.00,REDACT,Minor Adaptations
Wyre Council,http://opendatacommunities.org/doc/district-council/wyre,29/09/2022,Resources,Housing General Fund,134A,J A DICKENS LIMITED,26/09/2022,RS144124,73.00,0.00,REDACT,Minor Adaptations
Wyre Council,http://opendatacommunities.org/doc/district-council/wyre,29/09/2022,Resources,Housing General Fund,134A,J A DICKENS LIMITED,26/09/2022,RS144124,60.00,0.00,REDACT,Minor Adaptations
Wyre Council,http://opendatacommunities.org/doc/district-council/wyre,29/09/2022,Resources,Housing General Fund,134A,J A DICKENS LIMITED,21/09/2022,RS143960,60.00,0.00,REDACT,Minor Adaptations
Wyre Council,http://opendatacommunities.org/doc/district-council/wyre,29/09/2022,Resources,Housing General Fund,134A,J A DICKENS LIMITED,21/09/2022,RS143960,94.00,0.00,REDACT,Minor Adaptations
Wyre Council,http://opendatacommunities.org/doc/district-council/wyre,29/09/2022,Resources,Housing General Fund,134A,J A DICKENS LIMITED,21/09/2022,RS143961,280.00,0.00,REDACT,Minor Adaptations
Wyre Council,http://opendatacommunities.org/doc/district-council/wyre,29/09/2022,Resources,Housing General Fund,134A,J A DICKENS LIMITED,21/09/2022,RS143961,400.00,0.00,REDACT,Minor Adaptations
Wyre Council,http://opendatacommunities.org/doc/district-council/wyre,29/09/2022,Resources,Housing General Fund,134A,J A DICKENS LIMITED,21/09/2022,RS143970,60.00,0.00,REDACT,Minor Adaptations
Wyre Council,http://opendatacommunities.org/doc/district-council/wyre,29/09/2022,Resources,Housing General Fund,134A,J A DICKENS LIMITED,21/09/2022,RS143970,94.00,0.00,REDACT,Minor Adaptations
Wyre Council,http://opendatacommunities.org/doc/district-council/wyre,29/09/2022,Resources,Housing General Fund,134A,J A DICKENS LIMITED,21/09/2022,RS143971,40.00,0.00,REDACT,Minor Adaptations
Wyre Council,http://opendatacommunities.org/doc/district-council/wyre,29/09/2022,Resources,Housing General Fund,134A,J A DICKENS LIMITED,21/09/2022,RS143971,93.00,0.00,REDACT,Minor Adaptations
Wyre Council,http://opendatacommunities.org/doc/district-council/wyre,29/09/2022,Resources,Housing General Fund,134A,J A DICKENS LIMITED,21/09/2022,RS143972,250.00,0.00,REDACT,Minor Adaptations
Wyre Council,http://opendatacommunities.org/doc/district-council/wyre,29/09/2022,Resources,Housing General Fund,134A,J A DICKENS LIMITED,21/09/2022,RS143972,324.00,0.00,REDACT,Minor Adaptations
Wyre Council,http://opendatacommunities.org/doc/district-council/wyre,29/09/2022,Resources,Housing General Fund,134A,J A DICKENS LIMITED,21/09/2022,RS143962,60.00,0.00,REDACT,Minor Adaptations
Wyre Council,http://opendatacommunities.org/doc/district-council/wyre,29/09/2022,Resources,Housing General Fund,134A,J A DICKENS LIMITED,21/09/2022,RS143962,94.00,0.00,REDACT,Minor Adaptations
Wyre Council,http://opendatacommunities.org/doc/district-council/wyre,29/09/2022,Resources,Housing General Fund,134A,J A DICKENS LIMITED,21/09/2022,RS143963,120.00,0.00,REDACT,Minor Adaptations
Wyre Council,http://opendatacommunities.org/doc/district-council/wyre,29/09/2022,Resources,Housing General Fund,134A,J A DICKENS LIMITED,21/09/2022,RS143963,188.00,0.00,REDACT,Minor Adaptations
Wyre Council,http://opendatacommunities.org/doc/district-council/wyre,29/09/2022,Resources,Housing General Fund,134A,J A DICKENS LIMITED,21/09/2022,RS143964,280.00,0.00,REDACT,Minor Adaptations
Wyre Council,http://opendatacommunities.org/doc/district-council/wyre,29/09/2022,Resources,Housing General Fund,134A,J A DICKENS LIMITED,21/09/2022,RS143964,490.00,0.00,REDACT,Minor Adaptations
Wyre Council,http://opendatacommunities.org/doc/district-council/wyre,29/09/2022,Resources,Housing General Fund,134A,J A DICKENS LIMITED,21/09/2022,RS143965,120.00,0.00,REDACT,Minor Adaptations
Wyre Council,http://opendatacommunities.org/doc/district-council/wyre,29/09/2022,Resources,Housing General Fund,134A,J A DICKENS LIMITED,21/09/2022,RS143965,188.00,0.00,REDACT,Minor Adaptations
Wyre Council,http://opendatacommunities.org/doc/district-council/wyre,29/09/2022,Resources,Housing General Fund,134A,J A DICKENS LIMITED,21/09/2022,RS143966,60.00,0.00,REDACT,Minor Adaptations
Wyre Council,http://opendatacommunities.org/doc/district-council/wyre,29/09/2022,Resources,Housing General Fund,134A,J A DICKENS LIMITED,21/09/2022,RS143966,94.00,0.00,REDACT,Minor Adaptations
Wyre Council,http://opendatacommunities.org/doc/district-council/wyre,29/09/2022,Resources,Housing General Fund,134A,J A DICKENS LIMITED,21/09/2022,RS143967,120.00,0.00,REDACT,Minor Adaptations
Wyre Council,http://opendatacommunities.org/doc/district-council/wyre,29/09/2022,Resources,Housing General Fund,134A,J A DICKENS LIMITED,21/09/2022,RS143967,188.00,0.00,REDACT,Minor Adaptations
Wyre Council,http://opendatacommunities.org/doc/district-council/wyre,29/09/2022,Resources,Housing General Fund,134A,J A DICKENS LIMITED,21/09/2022,RS143968,350.00,0.00,REDACT,Minor Adaptations
Wyre Council,http://opendatacommunities.org/doc/district-council/wyre,29/09/2022,Resources,Housing General Fund,134A,J A DICKENS LIMITED,21/09/2022,RS143968,370.00,0.00,REDACT,Minor Adaptations
Wyre Council,http://opendatacommunities.org/doc/district-council/wyre,29/09/2022,Resources,Housing General Fund,134A,J A DICKENS LIMITED,21/09/2022,RS143969,94.00,0.00,REDACT,Minor Adaptations
Wyre Council,http://opendatacommunities.org/doc/district-council/wyre,29/09/2022,Resources,Housing General Fund,134A,J A DICKENS LIMITED,21/09/2022,RS143969,60.00,0.00,REDACT,Minor Adaptations
Wyre Council,http://opendatacommunities.org/doc/district-council/wyre,29/09/2022,Resources,Housing General Fund,134A,J A DICKENS LIMITED,28/09/2022,RS144256,188.00,0.00,REDACT,Minor Adaptations
Wyre Council,http://opendatacommunities.org/doc/district-council/wyre,29/09/2022,Resources,Housing General Fund,134A,J A DICKENS LIMITED,28/09/2022,RS144256,120.00,0.00,REDACT,Minor Adaptations
Wyre Council,http://opendatacommunities.org/doc/district-council/wyre,29/09/2022,Resources,Housing General Fund,134A,J A DICKENS LIMITED,28/09/2022,RS144257,281.00,0.00,REDACT,Minor Adaptations
Wyre Council,http://opendatacommunities.org/doc/district-council/wyre,29/09/2022,Resources,Housing General Fund,134A,J A DICKENS LIMITED,28/09/2022,RS144257,160.00,0.00,REDACT,Minor Adaptations
Wyre Council,http://opendatacommunities.org/doc/district-council/wyre,29/09/2022,Resources,Housing General Fund,134A,J A DICKENS LIMITED,28/09/2022,RS144253,94.00,0.00,REDACT,Minor Adaptations
Wyre Council,http://opendatacommunities.org/doc/district-council/wyre,29/09/2022,Resources,Housing General Fund,134A,J A DICKENS LIMITED,28/09/2022,RS144253,60.00,0.00,REDACT,Minor Adaptations
Wyre Council,http://opendatacommunities.org/doc/district-council/wyre,29/09/2022,Resources,Housing General Fund,134A,J A DICKENS LIMITED,28/09/2022,RS144254,94.00,0.00,REDACT,Minor Adaptations
Wyre Council,http://opendatacommunities.org/doc/district-council/wyre,29/09/2022,Resources,Housing General Fund,134A,J A DICKENS LIMITED,28/09/2022,RS144254,60.00,0.00,REDACT,Minor Adaptations
Wyre Council,http://opendatacommunities.org/doc/district-council/wyre,29/09/2022,Resources,Housing General Fund,134A,J A DICKENS LIMITED,28/09/2022,RS144255,94.00,0.00,REDACT,Minor Adaptations
Wyre Council,http://opendatacommunities.org/doc/district-council/wyre,29/09/2022,Resources,Housing General Fund,134A,J A DICKENS LIMITED,28/09/2022,RS144255,60.00,0.00,REDACT,Minor Adaptations
Wyre Council,http://opendatacommunities.org/doc/district-council/wyre,29/09/2022,Resources,Current Liabilities,130C,UK Health Security Agency,22/09/2022,RS144043,7000.00,0.00,N386/69523 TTSP WYRE COUNCIL,Miscellaneous Debits
Wyre Council,http://opendatacommunities.org/doc/district-council/wyre,29/09/2022,Finance,Current Assets,130B,,01/09/2022,WPST00071517,7571.99,0.00,nndr refunds 26/8,NNDR Refunds
Wyre Council,http://opendatacommunities.org/doc/district-council/wyre,29/09/2022,Finance,Current Assets,130B,,14/09/2022,WPST00072693,7632.14,0.00,2/9,NNDR Refunds
Wyre Council,http://opendatacommunities.org/doc/district-council/wyre,29/09/2022,Finance,Current Assets,130B,,28/09/2022,WPST00075810,1326.87,0.00,nndr refunds 23/9,NNDR Refunds
Wyre Council,http://opendatacommunities.org/doc/district-council/wyre,29/09/2022,Finance,General Fund below the line,136A,DEPARTMENT FOR COMMUNITIES AND LOCAL GOVERNMENT,23/09/2022,WPST00075357,547001.00,0.00,RVBC - 20/9/22,NNDR Tariff to Government
Wyre Council,http://opendatacommunities.org/doc/district-council/wyre,29/09/2022,Resources,Support Services,135B,People Asset Management LTD,26/09/2022,RS143981,586.43,0.00,Monthly fee (Aug to March 22,Occupational Health Fees
Wyre Council,http://opendatacommunities.org/doc/district-council/wyre,29/09/2022,Resources,Support Services,135B,People Asset Management LTD,26/09/2022,RS143981,335.95,0.00,Monthly fee (Aug to March 22,Occupational Health Fees
Wyre Council,http://opendatacommunities.org/doc/district-council/wyre,29/09/2022,Resources,Support Services,135B,Karen Openshaw Consultancy,27/09/2022,RS144245,695.00,0.00,To provision of Listening Ear and Mindfulness sessions 1 Apr 2022 - 31 March 2023,Occupational Health Fees
Wyre Council,http://opendatacommunities.org/doc/district-council/wyre,29/09/2022,People and Places,Planning and Development Servs,132C,Police and Crime Commissioner for Lancashire,15/09/2022,PE143903,9189.00,0.00,Wyre Council`s contribution towards the domestic abuse element of the Lancashire Victim Services contract for 2022/2023,Other Contributions
Wyre Council,http://opendatacommunities.org/doc/district-council/wyre,29/09/2022,People and Places,Planning and Development Servs,132C,BANKSEARCH INFORMATION CONSULTANCY LTD,13/09/2022,PE143783,2300.00,0.00,Wyre�s subscription to the Business Start-up Data Service,Other Contributions
Wyre Council,http://opendatacommunities.org/doc/district-council/wyre,29/09/2022,People and Places,Environmental Services,132B,DANFO (UK) LTD,27/09/2022,PE144240,21763.10,0.00,Public Conveniences - Maintenance and Cleaning 2022/23,Other Establishments
Wyre Council,http://opendatacommunities.org/doc/district-council/wyre,29/09/2022,People and Places,Environmental Services,132B,Lancashire County Council,08/09/2022,PE143717,22.00,0.00,REDACT,Other Rechargeable Services
Wyre Council,http://opendatacommunities.org/doc/district-council/wyre,29/09/2022,People and Places,Environmental Services,132B,Lancashire County Council,13/09/2022,PE143718,27.00,0.00,REDACT,Other Rechargeable Services
Wyre Council,http://opendatacommunities.org/doc/district-council/wyre,29/09/2022,People and Places,Environmental Services,132B,Lancashire County Council,15/09/2022,PE143719,22.00,0.00,REDACT,Other Rechargeable Services
Wyre Council,http://opendatacommunities.org/doc/district-council/wyre,29/09/2022,People and Places,Parking Services,133F, Travis Perkins Trading CO LTD,28/09/2022,PE144305,665.60,0.00,Road repair tarmac,"Paths, Roads and Car Park Mtnce Annual"
Wyre Council,http://opendatacommunities.org/doc/district-council/wyre,29/09/2022,People and Places,Parking Services,133F, Travis Perkins Trading CO LTD,28/09/2022,PE144305,665.60,0.00,Road repair tarmac,"Paths, Roads and Car Park Mtnce Annual"
Wyre Council,http://opendatacommunities.org/doc/district-council/wyre,29/09/2022,People and Places,Parking Services,133F,George Hewitt Fabrications,26/09/2022,PE144147,325.00,0.00,"1 set of 100mmx100mmx5mm galvanised steel posts, hanger and cacher @ 650","Paths, Roads and Car Park Mtnce Annual"
Wyre Council,http://opendatacommunities.org/doc/district-council/wyre,29/09/2022,People and Places,Parking Services,133F,George Hewitt Fabrications,26/09/2022,PE144147,900.00,0.00,2 Aluminium 8 Meter car park barrier @ 1800,"Paths, Roads and Car Park Mtnce Annual"
Wyre Council,http://opendatacommunities.org/doc/district-council/wyre,29/09/2022,People and Places,Parking Services,133F,George Hewitt Fabrications,26/09/2022,PE144147,900.00,0.00,2 Aluminium 8 Meter car park barrier @ 1800,"Paths, Roads and Car Park Mtnce Annual"
Wyre Council,http://opendatacommunities.org/doc/district-council/wyre,29/09/2022,People and Places,Parking Services,133F,George Hewitt Fabrications,26/09/2022,PE144147,325.00,0.00,"1 set of 100mmx100mmx5mm galvanised steel posts, hanger and cacher @ 650","Paths, Roads and Car Park Mtnce Annual"
Wyre Council,http://opendatacommunities.org/doc/district-council/wyre,29/09/2022,Finance,Corporate and Democratic Core,131A,LANCASHIRE COUNTY COUNCIL,07/09/2022,WPST00072041,15395.81,0.00,lcc 30/8,Pension Increase Act Payments
Wyre Council,http://opendatacommunities.org/doc/district-council/wyre,29/09/2022,People and Places,Cultural and Related Services,132A,GARRY CARR BUILDING SERVICES LTD,13/09/2022,PE143697,392.00,0.00,Work carried out to remove birds nest and erect frame and bird spikes rear of stage at Marine Hall,Pest Control
Wyre Council,http://opendatacommunities.org/doc/district-council/wyre,29/09/2022,People and Places,Support Services,135B,Allstar Business Solutions LTD,22/09/2022,PE143921,28.91,0.00,Fuel Charges for August/September 2022,Petrol
Wyre Council,http://opendatacommunities.org/doc/district-council/wyre,29/09/2022,People and Places,Support Services,135B,Allstar Business Solutions LTD,20/09/2022,PE143839,37.27,0.00,Monthly Charges,Petrol
Wyre Council,http://opendatacommunities.org/doc/district-council/wyre,29/09/2022,People and Places,Support Services,135B,Allstar Business Solutions LTD,20/09/2022,PE143839,6.25,0.00,Late Payment Fee,Petrol
Wyre Council,http://opendatacommunities.org/doc/district-council/wyre,29/09/2022,People and Places,Support Services,135B,Allstar Business Solutions LTD,22/09/2022,PE143921,132.83,0.00,Fuel Charges for August/September 2022,Petrol
Wyre Council,http://opendatacommunities.org/doc/district-council/wyre,29/09/2022,People and Places,Support Services,135B,Allstar Business Solutions LTD,20/09/2022,PE143839,64.77,0.00,Monthly Charges,Petrol
Wyre Council,http://opendatacommunities.org/doc/district-council/wyre,29/09/2022,People and Places,Support Services,135B,Allstar Business Solutions LTD,20/09/2022,PE143839,6.25,0.00,Late Payment Fee,Petrol
Wyre Council,http://opendatacommunities.org/doc/district-council/wyre,29/09/2022,People and Places,Support Services,135B,Allstar Business Solutions LTD,20/09/2022,PE143839,57.05,0.00,Monthly Charges,Petrol
Wyre Council,http://opendatacommunities.org/doc/district-council/wyre,29/09/2022,People and Places,Support Services,135B,Allstar Business Solutions LTD,20/09/2022,PE143839,6.25,0.00,Late Payment Fee,Petrol
Wyre Council,http://opendatacommunities.org/doc/district-council/wyre,29/09/2022,People and Places,Support Services,135B,Allstar Business Solutions LTD,22/09/2022,PE143921,45.89,0.00,Fuel Charges for August/September 2022,Petrol
Wyre Council,http://opendatacommunities.org/doc/district-council/wyre,29/09/2022,People and Places,Support Services,135B,Allstar Business Solutions LTD,22/09/2022,PE143921,204.25,0.00,Fuel Charges for August/September 2022,Petrol
Wyre Council,http://opendatacommunities.org/doc/district-council/wyre,29/09/2022,People and Places,Support Services,135B,Allstar Business Solutions LTD,20/09/2022,PE143839,121.13,0.00,Monthly Charges,Petrol
Wyre Council,http://opendatacommunities.org/doc/district-council/wyre,29/09/2022,People and Places,Support Services,135B,Allstar Business Solutions LTD,20/09/2022,PE143839,6.25,0.00,Late Payment Fee,Petrol
Wyre Council,http://opendatacommunities.org/doc/district-council/wyre,29/09/2022,People and Places,Cultural and Related Services,132A,Allstar Business Solutions LTD,20/09/2022,PE143839,86.67,0.00,Monthly Charges,Petrol
Wyre Council,http://opendatacommunities.org/doc/district-council/wyre,29/09/2022,People and Places,Cultural and Related Services,132A,Allstar Business Solutions LTD,20/09/2022,PE143839,6.25,0.00,Late Payment Fee,Petrol
Wyre Council,http://opendatacommunities.org/doc/district-council/wyre,29/09/2022,People and Places,Support Services,135B,Allstar Business Solutions LTD,20/09/2022,PE143839,177.72,0.00,Monthly Charges,Petrol
Wyre Council,http://opendatacommunities.org/doc/district-council/wyre,29/09/2022,People and Places,Support Services,135B,Allstar Business Solutions LTD,20/09/2022,PE143839,6.25,0.00,Late Payment Fee,Petrol
Wyre Council,http://opendatacommunities.org/doc/district-council/wyre,29/09/2022,People and Places,Support Services,135B,Allstar Business Solutions LTD,22/09/2022,PE143921,35.28,0.00,Fuel Charges for August/September 2022,Petrol
Wyre Council,http://opendatacommunities.org/doc/district-council/wyre,29/09/2022,People and Places,Cultural and Related Services,132A,EAS Electrical Mechanical,28/09/2022,PE144280,180.00,0.00,Memorial Park Fleetwood: labour,Planned Building Maintenance
Wyre Council,http://opendatacommunities.org/doc/district-council/wyre,29/09/2022,People and Places,Planning and Development Servs,132C,EAS Electrical Mechanical,28/09/2022,PE144285,72.00,0.00,Copse Road Depot: gas safety check and tightness test,Planned Building Maintenance
Wyre Council,http://opendatacommunities.org/doc/district-council/wyre,29/09/2022,People and Places,Planning and Development Servs,132C,EAS Electrical Mechanical,28/09/2022,PE144279,5007.00,0.00,Fleetwood Market: EICR Remedials,Planned Building Maintenance
Wyre Council,http://opendatacommunities.org/doc/district-council/wyre,29/09/2022,People and Places,Cultural and Related Services,132A,Lancashire County Council,29/09/2022,PE143171,159.66,0.00,INS280329 Thornton Cleveleys New Wave Caf� Beach Patrol Unit - Legionella  Risk Assessment,Planned Building Maintenance
Wyre Council,http://opendatacommunities.org/doc/district-council/wyre,29/09/2022,People and Places,Cultural and Related Services,132A,Lancashire County Council,29/09/2022,PE143171,129.13,0.00,INS280230 Fleetwood Museum (Old Custom House) - Legionella Risk  Assessment,Planned Building Maintenance
Wyre Council,http://opendatacommunities.org/doc/district-council/wyre,29/09/2022,People and Places,Cultural and Related Services,132A,Lancashire County Council,29/09/2022,PE143171,171.26,0.00,INS242722 Kiosk 2 Old Custom House - Legionella Risk Assessment,Planned Building Maintenance
Wyre Council,http://opendatacommunities.org/doc/district-council/wyre,29/09/2022,People and Places,Cultural and Related Services,132A,Lancashire County Council,29/09/2022,PE143171,196.04,0.00,INS284908 Fleetwood Rossall Point Observatory - Lightning Protection  Inspection,Planned Building Maintenance
Wyre Council,http://opendatacommunities.org/doc/district-council/wyre,29/09/2022,People and Places,Central Services to the Public,131C,Lancashire County Council,29/09/2022,PE143171,159.66,0.00,INS280322 Poulton le Fylde Teanlowe Day Centre - Legionella Risk  Assessment,Planned Building Maintenance
Wyre Council,http://opendatacommunities.org/doc/district-council/wyre,29/09/2022,People and Places,Cultural and Related Services,132A,Lancashire County Council,29/09/2022,PE143171,19.69,0.00,INS273338 Fleetwood Tennis Pavilion - PAT,Planned Building Maintenance
Wyre Council,http://opendatacommunities.org/doc/district-council/wyre,29/09/2022,People and Places,Cultural and Related Services,132A,Lancashire County Council,29/09/2022,PE143171,90.36,0.00,INS273465 Stanah Wyre Estuary Park - PAT,Planned Building Maintenance
Wyre Council,http://opendatacommunities.org/doc/district-council/wyre,29/09/2022,People and Places,Planning and Development Servs,132C,Lancashire County Council,29/09/2022,PE143171,129.13,0.00,INS280335 Thornton Cleveleys Unit 14 Croft Court - Legionella Risk  Assessment,Planned Building Maintenance
Wyre Council,http://opendatacommunities.org/doc/district-council/wyre,29/09/2022,People and Places,Planning and Development Servs,132C,Lancashire County Council,29/09/2022,PE143171,129.13,0.00,INS280334 Thornton Cleveleys Unit 12 Croft Court - Legionella Risk  Assessment,Planned Building Maintenance
Wyre Council,http://opendatacommunities.org/doc/district-council/wyre,29/09/2022,People and Places,Planning and Development Servs,132C,Lancashire County Council,29/09/2022,PE143171,129.13,0.00,INS242707 Thornton Cleveleys Unit 9 Croft Court - Legionella Risk  Assessment,Planned Building Maintenance
Wyre Council,http://opendatacommunities.org/doc/district-council/wyre,29/09/2022,People and Places,Planning and Development Servs,132C,Lancashire County Council,29/09/2022,PE143171,129.13,0.00,INS280332 Thornton Cleveleys Unit 1 Croft Court - Legionella Risk  Assessment,Planned Building Maintenance
Wyre Council,http://opendatacommunities.org/doc/district-council/wyre,29/09/2022,People and Places,Planning and Development Servs,132C,Lancashire County Council,29/09/2022,PE143171,159.66,0.00,INS242704 Thornton Cleveleys Unit 1 Croft Court - Legionella Risk  Assessment,Planned Building Maintenance
Wyre Council,http://opendatacommunities.org/doc/district-council/wyre,29/09/2022,People and Places,Planning and Development Servs,132C,Lancashire County Council,29/09/2022,PE143171,129.13,0.00,INS280345 Thornton Cleveleys Unit 2 Croft Court - Legionella Risk  Assessment,Planned Building Maintenance
Wyre Council,http://opendatacommunities.org/doc/district-council/wyre,29/09/2022,People and Places,Planning and Development Servs,132C,Lancashire County Council,29/09/2022,PE143171,129.13,0.00,INS280331 Thornton Cleveleys Unit 18 Croft Court - Legionella Risk  Assessment,Planned Building Maintenance
Wyre Council,http://opendatacommunities.org/doc/district-council/wyre,29/09/2022,People and Places,Planning and Development Servs,132C,Lancashire County Council,29/09/2022,PE143171,580.00,0.00,INS273415 Fleetwood Market Hall - PAT,Planned Building Maintenance
Wyre Council,http://opendatacommunities.org/doc/district-council/wyre,29/09/2022,People and Places,Planning and Development Servs,132C,Pipescan LTD,16/09/2022,PE143558,1544.00,0.00,works completed,Planned Building Maintenance
Wyre Council,http://opendatacommunities.org/doc/district-council/wyre,29/09/2022,People and Places,Support Services,135B,M D Security,29/09/2022,PE144303,60.00,0.00,Emergency Light Test at Civic,Planned Building Maintenance
Wyre Council,http://opendatacommunities.org/doc/district-council/wyre,29/09/2022,People and Places,Cultural and Related Services,132A,COWLEY FIRE,09/09/2022,PE143638,39.85,0.00,fire safety - old custom watch house,Planned Building Maintenance
Wyre Council,http://opendatacommunities.org/doc/district-council/wyre,29/09/2022,People and Places,Planning and Development Servs,132C,COWLEY FIRE,13/09/2022,PE143686,364.91,0.00,"Service Equipment and spares, supply new extinguishers and dispose of parts at Market Hall Studio",Planned Building Maintenance
Wyre Council,http://opendatacommunities.org/doc/district-council/wyre,29/09/2022,People and Places,Cultural and Related Services,132A,COWLEY FIRE,13/09/2022,PE143577,500.00,0.00,Fire Risk Assessment at Garstang TIC,Planned Building Maintenance
Wyre Council,http://opendatacommunities.org/doc/district-council/wyre,29/09/2022,People and Places,Environmental Services,132B,COWLEY FIRE,13/09/2022,PE143639,170.73,0.00,"To Service the equipment, spares and supply new extinguishers and dispose of parts at Preesall cemetery",Planned Building Maintenance
Wyre Council,http://opendatacommunities.org/doc/district-council/wyre,29/09/2022,People and Places,Cultural and Related Services,132A,COWLEY FIRE,13/09/2022,PE143733,34.46,0.00,To service equipment and spares at Log Cabin Kiosk Princess Way,Planned Building Maintenance
Wyre Council,http://opendatacommunities.org/doc/district-council/wyre,29/09/2022,People and Places,Cultural and Related Services,132A,GARRY CARR BUILDING SERVICES LTD,30/09/2022,PE144345,298.00,0.00,Lower Lighthouse: weed kill surrounding areas prior to washing. Remove graffiti to entrance area. Clean down and power wash lighthouse and surrounding areas,Planned Building Maintenance
Wyre Council,http://opendatacommunities.org/doc/district-council/wyre,29/09/2022,Finance,Central Services to the Public,131C,SANTANDER,15/09/2022,WPST00072974,916.48,0.00,santander bank charges 7/9,Plastic Cards Processing Fees
Wyre Council,http://opendatacommunities.org/doc/district-council/wyre,29/09/2022,People and Places,Support Services,135B,Wicksteed Leisure LTD,28/09/2022,PE144264,56.95,0.00,Supply of parts as per Quotation Ref: WLLQ3665FISTEERW Steering Wheel,Playground Equipment
Wyre Council,http://opendatacommunities.org/doc/district-council/wyre,29/09/2022,People and Places,Support Services,135B,Wicksteed Leisure LTD,28/09/2022,PE144264,1195.00,0.00,5901-070  Universal Joint Assembly (4 Chains Version) c/w fixings,Playground Equipment
Wyre Council,http://opendatacommunities.org/doc/district-council/wyre,29/09/2022,People and Places,Support Services,135B,Wicksteed Leisure LTD,28/09/2022,PE144264,106.42,0.00,Carriage,Playground Equipment
Wyre Council,http://opendatacommunities.org/doc/district-council/wyre,29/09/2022,People and Places,Support Services,135B,Proludic LTD,06/09/2022,PE143637,197.24,0.00,Parts as per quotation 2207.34592F261 Platform,Playground Equipment
Wyre Council,http://opendatacommunities.org/doc/district-council/wyre,29/09/2022,People and Places,Support Services,135B,Proludic LTD,06/09/2022,PE143637,272.65,0.00,TLA25105 Bearing & Housing(LA25105+RR3205 combi.kit),Playground Equipment
Wyre Council,http://opendatacommunities.org/doc/district-council/wyre,29/09/2022,People and Places,Support Services,135B,Proludic LTD,06/09/2022,PE143637,0.95,0.00,VR20*38 Spacer m20*38,Playground Equipment
Wyre Council,http://opendatacommunities.org/doc/district-council/wyre,29/09/2022,People and Places,Support Services,135B,Proludic LTD,06/09/2022,PE143637,6.40,0.00,VEFM20 Nut 20mm,Playground Equipment
Wyre Council,http://opendatacommunities.org/doc/district-council/wyre,29/09/2022,People and Places,Support Services,135B,Proludic LTD,06/09/2022,PE143637,131.44,0.00,M3507 Rubber Wear Pad,Playground Equipment
Wyre Council,http://opendatacommunities.org/doc/district-council/wyre,29/09/2022,People and Places,Support Services,135B,Proludic LTD,06/09/2022,PE143637,7.60,0.00,VEFM10 Locking Nut 10mm,Playground Equipment
Wyre Council,http://opendatacommunities.org/doc/district-council/wyre,29/09/2022,People and Places,Support Services,135B,Proludic LTD,06/09/2022,PE143637,7.84,0.00,M10440N Black Cap Standard,Playground Equipment
Wyre Council,http://opendatacommunities.org/doc/district-council/wyre,29/09/2022,People and Places,Support Services,135B,Proludic LTD,06/09/2022,PE143637,9.92,0.00,M10310N Black Collar Standard,Playground Equipment
Wyre Council,http://opendatacommunities.org/doc/district-council/wyre,29/09/2022,People and Places,Support Services,135B,Proludic LTD,06/09/2022,PE143637,63.40,0.00,Delivery,Playground Equipment
Wyre Council,http://opendatacommunities.org/doc/district-council/wyre,29/09/2022,Resources,Central Services to the Public,131C,Critiqom LTD,29/09/2022,RS144298,1571.97,0.00,Daily Bills,Postage
Wyre Council,http://opendatacommunities.org/doc/district-council/wyre,29/09/2022,Resources,Central Services to the Public,131C,Critiqom LTD,29/09/2022,RS144297,402.40,0.00,Daily Bills,Postage
Wyre Council,http://opendatacommunities.org/doc/district-council/wyre,29/09/2022,Resources,Central Services to the Public,131C,Critiqom LTD,29/09/2022,RS144297,580.07,0.00,IQ post - Electoral,Postage
Wyre Council,http://opendatacommunities.org/doc/district-council/wyre,29/09/2022,Resources,Housing General Fund,134A,Critiqom LTD,29/09/2022,RS144297,46.83,0.00,Benefit Notifications,Postage
Wyre Council,http://opendatacommunities.org/doc/district-council/wyre,29/09/2022,Resources,Housing General Fund,134A,Critiqom LTD,29/09/2022,RS144298,163.84,0.00,Benefit Notifications,Postage
Wyre Council,http://opendatacommunities.org/doc/district-council/wyre,29/09/2022,Resources,Support Services,135B,Critiqom LTD,29/09/2022,RS144297,304.05,0.00,IQ post - CC,Postage
Wyre Council,http://opendatacommunities.org/doc/district-council/wyre,29/09/2022,Resources,Support Services,135B,Critiqom LTD,29/09/2022,RS144297,320.53,0.00,IQ Post - Planning,Postage
Wyre Council,http://opendatacommunities.org/doc/district-council/wyre,29/09/2022,Resources,Support Services,135B,Critiqom LTD,22/09/2022,RS144029,10.00,0.00,Data Quality Infractions Aug 22,Postage
Wyre Council,http://opendatacommunities.org/doc/district-council/wyre,29/09/2022,Resources,Support Services,135B,Critiqom LTD,29/09/2022,RS144297,332.95,0.00,IQ post - Off Serv Admin,Postage
Wyre Council,http://opendatacommunities.org/doc/district-council/wyre,29/09/2022,Resources,Support Services,135B,Critiqom LTD,29/09/2022,RS144297,11.43,0.00,IQ post - Recovery,Postage
Wyre Council,http://opendatacommunities.org/doc/district-council/wyre,29/09/2022,Resources,Support Services,135B,Critiqom LTD,29/09/2022,RS144298,720.66,0.00,Council Tax Reminders,Postage
Wyre Council,http://opendatacommunities.org/doc/district-council/wyre,29/09/2022,Resources,Support Services,135B,Critiqom LTD,29/09/2022,RS144298,53.47,0.00,NNDR Reminders,Postage
Wyre Council,http://opendatacommunities.org/doc/district-council/wyre,29/09/2022,Resources,Support Services,135B,Critiqom LTD,29/09/2022,RS144298,437.81,0.00,Council Tax Summons,Postage
Wyre Council,http://opendatacommunities.org/doc/district-council/wyre,29/09/2022,Resources,Support Services,135B,Critiqom LTD,29/09/2022,RS144298,21.88,0.00,NNDR Summons,Postage
Wyre Council,http://opendatacommunities.org/doc/district-council/wyre,29/09/2022,Resources,Support Services,135B,Critiqom LTD,29/09/2022,RS144297,240.47,0.00,Ctax Reminders,Postage
Wyre Council,http://opendatacommunities.org/doc/district-council/wyre,29/09/2022,Resources,Support Services,135B,Critiqom LTD,29/09/2022,RS144297,8.00,0.00,NNDR Reminders,Postage
Wyre Council,http://opendatacommunities.org/doc/district-council/wyre,29/09/2022,Resources,Support Services,135B,Critiqom LTD,29/09/2022,RS144297,187.43,0.00,Ctax Summons,Postage
Wyre Council,http://opendatacommunities.org/doc/district-council/wyre,29/09/2022,Resources,Support Services,135B,Critiqom LTD,29/09/2022,RS144297,8.77,0.00,NNDR Summons,Postage
Wyre Council,http://opendatacommunities.org/doc/district-council/wyre,29/09/2022,Resources,Central Services to the Public,131C,Critiqom LTD,29/09/2022,RS144297,180.55,0.00,Household Support Fund,Postage
Wyre Council,http://opendatacommunities.org/doc/district-council/wyre,29/09/2022,People and Places,Cultural and Related Services,132A,Bates Office Services Ltd,30/09/2022,PE144276,68.00,0.00,SECOND CLASS POSTAGE STAMPS BOOK OF 100,Postage
Wyre Council,http://opendatacommunities.org/doc/district-council/wyre,29/09/2022,Resources,Central Services to the Public,131C,Print Image Network LTD,22/09/2022,RS144045,1157.00,0.00,Preesall Ward By-Election 18 August 2022Printing of Ballot Papers,Printing
Wyre Council,http://opendatacommunities.org/doc/district-council/wyre,29/09/2022,Finance,Housing General Fund,134A,,26/09/2022,WPST00075480,1651.29,0.00,home for ukraine - 21/9,Private Contractors
Wyre Council,http://opendatacommunities.org/doc/district-council/wyre,29/09/2022,Finance,Housing General Fund,134A,,15/09/2022,WPST00072975,8400.00,0.00,august 22 homes for ukraine payment 7/9,Private Contractors
Wyre Council,http://opendatacommunities.org/doc/district-council/wyre,29/09/2022,People and Places,Public Transport,133G,Wyre Marine Services,21/09/2022,PE144000,17370.00,0.00,"Fleetwood - Knott End Ferry Service.Schedule of payments12 April 2022             - 11 May 2022                        �,8685.0012 May 2022             - 11 June 2022                       8,685.0012 June 2022            - 11 July 2022",Private Contractors
Wyre Council,http://opendatacommunities.org/doc/district-council/wyre,29/09/2022,People and Places,Parking Services,133F,NSL Services Group,29/09/2022,PE144300,5099.68,0.00,,Private Contractors
Wyre Council,http://opendatacommunities.org/doc/district-council/wyre,29/09/2022,People and Places,Environmental Services,132B,Floating Pontoon Solutions,21/09/2022,PE143983,675.00,0.00,"As previously discussed, please carry out grass cutting clearance along the banks of the Royles Brook Pumping Station and adjacent watercourse area to allow for better access, to also include the pumping station kiosk and level sensor area adjacent to the",Private Contractors
Wyre Council,http://opendatacommunities.org/doc/district-council/wyre,29/09/2022,Resources,Housing General Fund,134A,Salvation Army,21/09/2022,RS143940,21387.10,0.00,"Staff costs, 9,375, Property pre arrival costs 12,012 - Refugee support.",Private Contractors
Wyre Council,http://opendatacommunities.org/doc/district-council/wyre,29/09/2022,People and Places,Parking Services,133F,CHIPSIDE LTD,29/09/2022,PE144326,1128.30,0.00,"Aug 22 - Provision of notice processing services as agreed under the contract awarded. Notice processing services, automated telephone and internet payments, internet evidence and submission services, telephone assistance to the public, postage at cost",Private Contractors
Wyre Council,http://opendatacommunities.org/doc/district-council/wyre,29/09/2022,People and Places,Parking Services,133F,CHIPSIDE LTD,23/09/2022,PE144115,30.00,0.00,Provide 2 no 500mb SiMS for Wyre handheld units 1 April 2022 - 31 March 2023,Private Contractors
Wyre Council,http://opendatacommunities.org/doc/district-council/wyre,29/09/2022,Resources,Cultural and Related Services,132A,Preston City Council,21/09/2022,RS143923,90.76,0.00,2 x HAF banners - 2mx0.8m on mesh with eyelets,Promotions - General
Wyre Council,http://opendatacommunities.org/doc/district-council/wyre,29/09/2022,Resources,Cultural and Related Services,132A,Preston City Council,21/09/2022,RS143923,40.40,0.00,"4 x A2 correx - Great Outdoors generic, HOD generic, conservation generic and GWF generic",Promotions - General
Wyre Council,http://opendatacommunities.org/doc/district-council/wyre,29/09/2022,Resources,Planning and Development Servs,132C,Preston City Council,21/09/2022,RS143923,60.84,0.00,Posters for Tram Sunday event,Promotions - General
Wyre Council,http://opendatacommunities.org/doc/district-council/wyre,29/09/2022,Resources,Planning and Development Servs,132C,Preston City Council,21/09/2022,RS143923,70.00,0.00,Order for 1000 leaflets for Wyred Up - carbon reduction leaflet,Promotions - General
Wyre Council,http://opendatacommunities.org/doc/district-council/wyre,29/09/2022,People and Places,Planning and Development Servs,132C,JP DISTRIBUTION,07/09/2022,PE143677,500.00,0.00,20k Leaflet Distribution,Promotions - General
Wyre Council,http://opendatacommunities.org/doc/district-council/wyre,29/09/2022,People and Places,Planning and Development Servs,132C,JP DISTRIBUTION,07/09/2022,PE143678,150.00,0.00,Poster Advertisements,Promotions - General
Wyre Council,http://opendatacommunities.org/doc/district-council/wyre,29/09/2022,People and Places,Planning and Development Servs,132C,JP DISTRIBUTION,07/09/2022,PE143679,275.00,0.00,Tram Sunday Promo,Promotions - General
Wyre Council,http://opendatacommunities.org/doc/district-council/wyre,29/09/2022,People and Places,Planning and Development Servs,132C,PSM Group,22/09/2022,PE144009,440.00,0.00,4 SIGNS INCLUDING FITTING TO UNIT 308,Promotions - General
Wyre Council,http://opendatacommunities.org/doc/district-council/wyre,29/09/2022,People and Places,Planning and Development Servs,132C,PSM Group,30/09/2022,PE144360,600.00,0.00,2 window netted signs 440one sign board coach drop off 120sign repair 30,Promotions - General
Wyre Council,http://opendatacommunities.org/doc/district-council/wyre,29/09/2022,People and Places,Cultural and Related Services,132A,Key Engineering & Hygiene Supplies LTD,22/09/2022,PE144020,45.28,0.00,2 large gloves 2 x Med gloves,Protective Clothing
Wyre Council,http://opendatacommunities.org/doc/district-council/wyre,29/09/2022,People and Places,Environmental Services,132B,Key Engineering & Hygiene Supplies LTD,23/09/2022,PE144101,845.50,0.00,"SUPPLY 50 BOXES OF BLUE REFUSE BAGS 18X29X3915KG/90LTR, 200 PER BOX @ 16.91 PER BOX DELIVERY TO WYRE COUNCIL, COPSE ROAD DEPOT, COPSE ROAD, FLEETWOOD, FY7 6RP","Provision of Bins, Boxes and Sacks"
Wyre Council,http://opendatacommunities.org/doc/district-council/wyre,29/09/2022,People and Places,Environmental Services,132B,Veolia ES (UK) LTD,27/09/2022,PE144201,4584.66,0.00,Bin delivery,"Provision of Bins, Boxes and Sacks"
Wyre Council,http://opendatacommunities.org/doc/district-council/wyre,29/09/2022,People and Places,Cultural and Related Services,132A,HUWS GRAY LTD,21/09/2022,PE143938,218.58,0.00,10 x post crete  1 x drill bit 2 x gate posts,Public Footpaths/Rights Of Way
Wyre Council,http://opendatacommunities.org/doc/district-council/wyre,29/09/2022,People and Places,Support Services,135B,Preston City Council,20/09/2022,PE143922,106.30,0.00,Frozen performances in the park  1 x bus stop (20.08) 2 x 2mx0.8m banners on mesh with eyelets (43.11 each),Public Relations
Wyre Council,http://opendatacommunities.org/doc/district-council/wyre,29/09/2022,Finance,"Cultural, Environ and Planning",137B,,13/09/2022,WPST00072574,3931525.00,0.00,project neptune - purchase price vat,Purchase of Land and Buildings
Wyre Council,http://opendatacommunities.org/doc/district-council/wyre,29/09/2022,Finance,"Cultural, Environ and Planning",137B,,13/09/2022,WPST00072575,225391.00,0.00,project neptune stamp duty land tax,Purchase of Land and Buildings
Wyre Council,http://opendatacommunities.org/doc/district-council/wyre,29/09/2022,Finance,"Cultural, Environ and Planning",137B,,13/09/2022,WPST00072576,1105.00,0.00,project neptune land registry reg fees,Purchase of Land and Buildings
Wyre Council,http://opendatacommunities.org/doc/district-council/wyre,29/09/2022,Resources,Support Services,135B,WILDY AND SONS LTD,01/09/2022,RS141477,1547.99,0.00,OKe`s Magisterial Formulist Looseleaf Annualised : St John Pilkington; Subscription for the period 1 August 2022 to 31,Purchase of Publications
Wyre Council,http://opendatacommunities.org/doc/district-council/wyre,29/09/2022,Resources,Housing General Fund,134A,St Gobain Building Distribution LTD,30/09/2022,RS144354,21.42,0.00,Payment of invoice 0963/00112446,Purchase of Tools or Equipment
Wyre Council,http://opendatacommunities.org/doc/district-council/wyre,29/09/2022,People and Places,Planning and Development Servs,132C,Key Engineering & Hygiene Supplies LTD,28/09/2022,PE143882,120.62,0.00,NUMATIC ERP-180-11 6LTR VACUUM CLEANER 420W BLACK 230V,Purchase of Tools or Equipment
Wyre Council,http://opendatacommunities.org/doc/district-council/wyre,29/09/2022,People and Places,Planning and Development Servs,132C,Key Engineering & Hygiene Supplies LTD,28/09/2022,PE143882,26.56,0.00,4 X BLACK TABARD WITH POCKET 2@XL AND 2@XXL,Purchase of Tools or Equipment
Wyre Council,http://opendatacommunities.org/doc/district-council/wyre,29/09/2022,People and Places,Cultural and Related Services,132A,The Helping Hand Company LTD,22/09/2022,PE144013,411.20,0.00,40 new litter pickers,Purchase of Tools or Equipment
Wyre Council,http://opendatacommunities.org/doc/district-council/wyre,29/09/2022,Resources,Environmental Services,132B,Preston City Council,21/09/2022,RS143923,135.00,0.00,Job number: 0175 - 300x visit intervention reports @ 135.00 no vat  CONFIRMATION,Purchase of Tools or Equipment
Wyre Council,http://opendatacommunities.org/doc/district-council/wyre,29/09/2022,People and Places,Support Services,135B,United Utilities Standpipes,30/09/2022,PE144308,23.45,0.00,"Hire of 28/50mm Standpipe Located at the Memorial Park, Fleetwood Contract SP15/4766 C19056393",Purchase of Tools or Equipment
Wyre Council,http://opendatacommunities.org/doc/district-council/wyre,29/09/2022,People and Places,Cultural and Related Services,132A,HUWS GRAY LTD,21/09/2022,PE143938,25.00,0.00,bosch tools,Purchase of Tools or Equipment
Wyre Council,http://opendatacommunities.org/doc/district-council/wyre,29/09/2022,People and Places,Cultural and Related Services,132A,HUWS GRAY LTD,21/09/2022,PE143938,42.96,0.00,gate post and metal work,Purchase of Tools or Equipment
Wyre Council,http://opendatacommunities.org/doc/district-council/wyre,29/09/2022,People and Places,Cultural and Related Services,132A,THE WINDMILL PLAYERS,13/09/2022,PE143817,2930.00,0.00,Refund of ticket sales - An Evening in Little Grimley June 2022,Refund of Ticket Sales to Ext Promoters
Wyre Council,http://opendatacommunities.org/doc/district-council/wyre,29/09/2022,People and Places,Planning and Development Servs,132C,Suez Recycling And Recovery UK LTD,27/09/2022,PE143252,1057.23,0.00,waste removal market suez June 22 to March 23,Refuse Collection
Wyre Council,http://opendatacommunities.org/doc/district-council/wyre,29/09/2022,People and Places,Environmental Services,132B,Veolia ES (UK) LTD,27/09/2022,PE144208,-6709.04,0.00,Pension pass through,Refuse Collection Contract
Wyre Council,http://opendatacommunities.org/doc/district-council/wyre,29/09/2022,People and Places,Environmental Services,132B,Veolia ES (UK) LTD,27/09/2022,PE144201,178535.32,0.00,Domestic Waste Management Collection Contract 2022/23,Refuse Collection Contract
Wyre Council,http://opendatacommunities.org/doc/district-council/wyre,29/09/2022,People and Places,Environmental Services,132B,Veolia ES (UK) LTD,27/09/2022,PE144201,8879.03,0.00,Pension pass through,Refuse Collection Contract
Wyre Council,http://opendatacommunities.org/doc/district-council/wyre,29/09/2022,People and Places,Cultural and Related Services,132A,Robert Pinkus Property Management LTD,16/09/2022,PE143864,3990.00,0.00,Garstang TIC quarterly rent and service charge,Rents
Wyre Council,http://opendatacommunities.org/doc/district-council/wyre,29/09/2022,People and Places,Environmental Services,132B,Robert Pinkus Property Management LTD,16/09/2022,PE143865,200.00,0.00,Garstang publis WCs Quarterly service charge,Rents
Wyre Council,http://opendatacommunities.org/doc/district-council/wyre,29/09/2022,People and Places,Public Transport,133G,Glasdon UK LTD,14/09/2022,PE143869,31.59,0.00,"Supply and deliver as per email quote 26/8/221 no lower bullnose slat in Brown enviropol.  Code: 133/1650 for the cost of 31.59 +VAT. Delivery to Wyre Council, Copse Road Depot, Copse Road, Fleetwood, FY7 6RP",Repairs to Non-WBC Buildings
Wyre Council,http://opendatacommunities.org/doc/district-council/wyre,29/09/2022,People and Places,Public Transport,133G,Glasdon UK LTD,14/09/2022,PE143869,9.49,0.00,Delivery,Repairs to Non-WBC Buildings
Wyre Council,http://opendatacommunities.org/doc/district-council/wyre,29/09/2022,People and Places,Public Transport,133G,GARRY CARR BUILDING SERVICES LTD,30/09/2022,PE144301,19058.00,0.00,Victoria Road Cleveleys Duck pond (bus shelter) Reinstatement of fire damaged shelter,Repairs to Non-WBC Buildings
Wyre Council,http://opendatacommunities.org/doc/district-council/wyre,29/09/2022,People and Places,Environmental Services,132B,EAS Electrical Mechanical,21/09/2022,PE143929,85.98,0.00,Investigate leak on pipe and repair at Moorland Road Cemetery,Responsive Building Maintenance
Wyre Council,http://opendatacommunities.org/doc/district-council/wyre,29/09/2022,People and Places,Environmental Services,132B,EAS Electrical Mechanical,28/09/2022,PE144286,48.00,0.00,"Copse Rd Depot: Investigate water heater, water heater is an inline heater, temperature was set to max, photo taken and sent to Sam, to go back to council about installing an unvented water heater and tmv so water can be stored inline with water regs",Responsive Building Maintenance
Wyre Council,http://opendatacommunities.org/doc/district-council/wyre,29/09/2022,People and Places,Cultural and Related Services,132A,EAS Electrical Mechanical,28/09/2022,PE144283,395.45,0.00,"Marine Hall Fleetwood: replaced tap for ladies, replace x2 broken toilet seats in ladies watercafe bar, investigate leak on urinal unable to notice any leak on testing",Responsive Building Maintenance
Wyre Council,http://opendatacommunities.org/doc/district-council/wyre,29/09/2022,People and Places,Cultural and Related Services,132A,EAS Electrical Mechanical,28/09/2022,PE144282,827.53,0.00,"Marine Hall Fleetwood: 16 x white tilt downlighters replaced, 7 x large white flat cool white downlighters replaced",Responsive Building Maintenance
Wyre Council,http://opendatacommunities.org/doc/district-council/wyre,29/09/2022,People and Places,Cultural and Related Services,132A,EAS Electrical Mechanical,28/09/2022,PE144281,327.82,0.00,"Marine Hall Fleetwood: replace 1 x em combined 4ft fitting with led, replace 1 x 4ft fitting with led",Responsive Building Maintenance
Wyre Council,http://opendatacommunities.org/doc/district-council/wyre,29/09/2022,People and Places,Cultural and Related Services,132A,EAS Electrical Mechanical,21/09/2022,PE143930,72.43,0.00,Resecure ladies loose pan and faulty syphone at Marine Hall,Responsive Building Maintenance
Wyre Council,http://opendatacommunities.org/doc/district-council/wyre,29/09/2022,People and Places,Planning and Development Servs,132C,EAS Electrical Mechanical,09/09/2022,PE143743,72.00,0.00,Blockage at FWD Market,Responsive Building Maintenance
Wyre Council,http://opendatacommunities.org/doc/district-council/wyre,29/09/2022,People and Places,Support Services,135B,EAS Electrical Mechanical,28/09/2022,PE144287,96.00,0.00,"Civic Centre: Investigate possible water leak and report back with findings to WBC. Proposed for specialist leak detection company to attend, unable to identify through non-intrusive techniques.",Responsive Building Maintenance
Wyre Council,http://opendatacommunities.org/doc/district-council/wyre,29/09/2022,People and Places,Support Services,135B,EAS Electrical Mechanical,30/09/2022,PE144383,165.61,0.00,Civic Centre: Installed supply for unswitched spur in dado ready for defribrillator enclosure to arrive so that we can frill out from dado unswitched into enclosure,Responsive Building Maintenance
Wyre Council,http://opendatacommunities.org/doc/district-council/wyre,29/09/2022,People and Places,Support Services,135B,EAS Electrical Mechanical,30/09/2022,PE144382,288.84,0.00,"Civic Centre: Drain down heating in area on  top floor, take rad off the wall, replace TRV, refit radiator, fill back up and test",Responsive Building Maintenance
Wyre Council,http://opendatacommunities.org/doc/district-council/wyre,29/09/2022,People and Places,Cultural and Related Services,132A,EAS Electrical Mechanical,28/09/2022,PE144284,307.40,0.00,"Marine Hall Fleetwood: replaced x2 insectocutors in kitchen, replaced 1x faulty 3 phase isolator",Responsive Building Maintenance
Wyre Council,http://opendatacommunities.org/doc/district-council/wyre,29/09/2022,People and Places,Central Services to the Public,131C,MAXIGIENE ENVIRONMENTAL SERVICES LTD,16/09/2022,PE143628,75.00,0.00,remedial works @ teanlowe centre,Responsive Building Maintenance
Wyre Council,http://opendatacommunities.org/doc/district-council/wyre,29/09/2022,People and Places,Cultural and Related Services,132A,MAXIGIENE ENVIRONMENTAL SERVICES LTD,16/09/2022,PE143629,335.00,0.00,works ar Memorial park fleetwood,Responsive Building Maintenance
Wyre Council,http://opendatacommunities.org/doc/district-council/wyre,29/09/2022,People and Places,Support Services,135B,MAXIGIENE ENVIRONMENTAL SERVICES LTD,29/09/2022,PE144290,125.00,0.00,Remedial work carried out at Civic - as per quote PM5287,Responsive Building Maintenance
Wyre Council,http://opendatacommunities.org/doc/district-council/wyre,29/09/2022,People and Places,Cultural and Related Services,132A,MAXIGIENE ENVIRONMENTAL SERVICES LTD,16/09/2022,PE143627,75.00,0.00,remedial works at vichorage park,Responsive Building Maintenance
Wyre Council,http://opendatacommunities.org/doc/district-council/wyre,29/09/2022,People and Places,Planning and Development Servs,132C,John Carney,08/09/2022,PE143690,280.00,0.00,Emergency repairs at unit 8 Butts Close,Responsive Building Maintenance
Wyre Council,http://opendatacommunities.org/doc/district-council/wyre,29/09/2022,People and Places,Cultural and Related Services,132A,John Carney,08/09/2022,PE143688,360.00,0.00,Works to the shelters opposite fleetwood boating lake,Responsive Building Maintenance
Wyre Council,http://opendatacommunities.org/doc/district-council/wyre,29/09/2022,People and Places,Cultural and Related Services,132A,John Carney,28/09/2022,PE144278,180.00,0.00,Cottam Hall: carry out all roofing repairs to main roof. Supply and fix ridge tile and concrete roof tiles,Responsive Building Maintenance
Wyre Council,http://opendatacommunities.org/doc/district-council/wyre,29/09/2022,People and Places,Support Services,135B,John Carney,28/09/2022,PE144277,240.00,0.00,Civic Centre roofing repairs to room 104. Cleaning away all debris from outlets. Supply and fix small tiles to roof areas to stop water ingress.,Responsive Building Maintenance
Wyre Council,http://opendatacommunities.org/doc/district-council/wyre,29/09/2022,People and Places,Cultural and Related Services,132A,John Carney,08/09/2022,PE143689,420.00,0.00,Repairs at Marine Gardens,Responsive Building Maintenance
Wyre Council,http://opendatacommunities.org/doc/district-council/wyre,29/09/2022,People and Places,Cultural and Related Services,132A,GARRY CARR BUILDING SERVICES LTD,08/09/2022,PE143694,91.00,0.00,remove graffiti at Thornton sports centre,Responsive Building Maintenance
Wyre Council,http://opendatacommunities.org/doc/district-council/wyre,29/09/2022,People and Places,Cultural and Related Services,132A,GARRY CARR BUILDING SERVICES LTD,28/09/2022,PE143949,69.00,0.00,Marine Hall - clean down and Malgicide the wall between outdoors and phase 3 chalets,Responsive Building Maintenance
Wyre Council,http://opendatacommunities.org/doc/district-council/wyre,29/09/2022,People and Places,Cultural and Related Services,132A,GARRY CARR BUILDING SERVICES LTD,29/09/2022,PE144302,46.00,0.00,Remove graffitti from Mount Pavilion,Responsive Building Maintenance
Wyre Council,http://opendatacommunities.org/doc/district-council/wyre,29/09/2022,People and Places,Planning and Development Servs,132C,GARRY CARR BUILDING SERVICES LTD,13/09/2022,PE140775,23.00,0.00,Repair gas bottle cage at Fleetwood Market,Responsive Building Maintenance
Wyre Council,http://opendatacommunities.org/doc/district-council/wyre,29/09/2022,People and Places,Planning and Development Servs,132C,GARRY CARR BUILDING SERVICES LTD,13/09/2022,PE140774,160.00,0.00,Full clean of roofs inc gutters at Fleetwood Market,Responsive Building Maintenance
Wyre Council,http://opendatacommunities.org/doc/district-council/wyre,29/09/2022,People and Places,Support Services,135B,GARRY CARR BUILDING SERVICES LTD,13/09/2022,PE143481,1320.00,0.00,Rectify damp areas in Planning Services admin,Responsive Building Maintenance
Wyre Council,http://opendatacommunities.org/doc/district-council/wyre,29/09/2022,People and Places,Support Services,135B,GARRY CARR BUILDING SERVICES LTD,13/09/2022,PE143695,1264.00,0.00,Re-decoration works to rooms 139 and 140,Responsive Building Maintenance
Wyre Council,http://opendatacommunities.org/doc/district-council/wyre,29/09/2022,People and Places,Support Services,135B,GARRY CARR BUILDING SERVICES LTD,26/09/2022,PE142406,1200.00,0.00,Supply & erect scaffolding for roofers at Civic Centre,Responsive Building Maintenance
Wyre Council,http://opendatacommunities.org/doc/district-council/wyre,29/09/2022,People and Places,Support Services,135B,GARRY CARR BUILDING SERVICES LTD,30/09/2022,PE144344,60.00,0.00,"Civic Centre: remove carpet tiles, take away, wash and re-fit",Responsive Building Maintenance
Wyre Council,http://opendatacommunities.org/doc/district-council/wyre,29/09/2022,People and Places,Support Services,135B,GARRY CARR BUILDING SERVICES LTD,30/09/2022,PE144343,560.00,0.00,Civic Centre - supply and fit carpets to room 140,Responsive Building Maintenance
Wyre Council,http://opendatacommunities.org/doc/district-council/wyre,29/09/2022,People and Places,Cultural and Related Services,132A,GARRY CARR BUILDING SERVICES LTD,08/09/2022,PE143693,40.00,0.00,Remove Graffiti at Marine Hall,Responsive Building Maintenance
Wyre Council,http://opendatacommunities.org/doc/district-council/wyre,29/09/2022,People and Places,Support Services,135B,GARRY CARR BUILDING SERVICES LTD,28/09/2022,PE144288,1200.00,0.00,Civic Centre: supply and erect scaffolding for roofers to carry out storm damage repairs adjacent rear public entrance,Responsive Building Maintenance
Wyre Council,http://opendatacommunities.org/doc/district-council/wyre,29/09/2022,Resources,Support Services,135B,GARRY CARR BUILDING SERVICES LTD,13/09/2022,RS143267,1020.00,0.00,Replacement of floor coverings in rooms 143/145,Responsive Building Maintenance
Wyre Council,http://opendatacommunities.org/doc/district-council/wyre,29/09/2022,Resources,Housing General Fund,134A,Mapleleaf Letting Centre LTD,27/09/2022,RS144237,1104.99,0.00,REDACT,Rough Sleeper Project/NSNO
Wyre Council,http://opendatacommunities.org/doc/district-council/wyre,29/09/2022,People and Places,Highways,133B,Glasdon UK LTD,23/09/2022,PE144083,71.89,0.00,"Supply one plaque without drill holesPlaque inscription to read We need to protect tomorrow`s children legacy.iicsa.org.uk QR Code 1 Email attached for inscription requests and QR code 1Please deliver to Copse Road Depot, Copse Road, Fleet",Seats and Shelters (Non BM)
Wyre Council,http://opendatacommunities.org/doc/district-council/wyre,29/09/2022,People and Places,Highways,133B,Glasdon UK LTD,23/09/2022,PE144082,71.89,0.00,"Supply one memorial plaque.Plaque inscription to read In loving Memory of Stewart William SmithFrom 26.09.1928 to 28.10.2020 and his wife Dorothy20.08.1925 to 27.03.2022 Please deliver to Copse Road Depot, Copse Road,Fleetwood.  Please con",Seats and Shelters (Non BM)
Wyre Council,http://opendatacommunities.org/doc/district-council/wyre,29/09/2022,People and Places,Highways,133B,Glasdon UK LTD,22/09/2022,PE144022,486.70,0.00,"Supply one black phoenix memorial bench with plaque.Plaque inscription to read In Loving Memory of Our Mum who loved to be beside the Sea XxxPlease deliver bench to Copse Road Depot, Copse Road, Fleetwood.  Please contact Bob Greaves on 07967",Seats and Shelters (Non BM)
Wyre Council,http://opendatacommunities.org/doc/district-council/wyre,29/09/2022,Finance,Support Services,135B,,30/09/2022,WPST00076142,3512.80,0.00,Alchemer LLC - INV00396684,Software Maintenance
Wyre Council,http://opendatacommunities.org/doc/district-council/wyre,29/09/2022,Resources,Support Services,135B,Idox Software LTD,16/09/2022,RS143675,4128.75,0.00,Software:Idox On-Site Mobile Working Appsx6 App BundleSoftware Term Licence subscription(3 years)10% discount applied off thepackage for a PO in JulyIndexation (RPI) applied from Year 2,Software Maintenance
Wyre Council,http://opendatacommunities.org/doc/district-council/wyre,29/09/2022,Resources,Support Services,135B,Idox Software LTD,01/09/2022,RS143632,1900.00,0.00,Provision of TLC Upgrade live & test on existing servers.This will be completed remotely and inside normal working hours.,Software Maintenance
Wyre Council,http://opendatacommunities.org/doc/district-council/wyre,29/09/2022,Resources,Support Services,135B,NEC Software Solutions UK Limited,23/09/2022,RS144105,40212.00,0.00,40212.00 - Support & Maintenance Council Tax Council Tax Benefits NDR Housing Benefits Replacement Benefits Period Software Local HousingAllowance Victer SHBE Scan Comino Interface as per Specification 1007 5 Query View Licences IB/ESA,Software Maintenance
Wyre Council,http://opendatacommunities.org/doc/district-council/wyre,29/09/2022,Resources,Support Services,135B,The Technology Forge,23/09/2022,RS144090,3465.00,0.00,1 Core Framework includes Multi-Project and Occupancy 12 Concurrent user licence 33 Condurrent user licence 34 Condition Survey Module  15 Corporate Suitability Module/Survey Module 16 Disability Access Module 17 Hazard Register 18 Helpdesk,Software Maintenance
Wyre Council,http://opendatacommunities.org/doc/district-council/wyre,29/09/2022,Resources,Support Services,135B,Crown Computing LTD,12/09/2022,RS143769,975.00,0.00,Crown monthly fee April 22 to March 23,Software Maintenance
Wyre Council,http://opendatacommunities.org/doc/district-council/wyre,29/09/2022,Resources,Support Services,135B,Crown Computing LTD,12/09/2022,RS143781,975.00,0.00,Crown monthly fee April 22 to March 23,Software Maintenance
Wyre Council,http://opendatacommunities.org/doc/district-council/wyre,29/09/2022,Resources,Support Services,135B,Crown Computing LTD,12/09/2022,RS143780,975.00,0.00,Crown monthly fee April 22 to March 23,Software Maintenance
Wyre Council,http://opendatacommunities.org/doc/district-council/wyre,29/09/2022,Resources,Support Services,135B,Crown Computing LTD,12/09/2022,RS143782,975.00,0.00,Crown monthly fee April 22 to March 23,Software Maintenance
Wyre Council,http://opendatacommunities.org/doc/district-council/wyre,29/09/2022,Resources,Support Services,135B,Coolspirit LTD,22/09/2022,RS144051,5959.92,0.00,"COMCV-BKRC-FT Commvault Backup & Recovery For Non-Virtual and File, Per Front-End Terabyte",Software Maintenance
Wyre Council,http://opendatacommunities.org/doc/district-council/wyre,29/09/2022,Resources,Support Services,135B,Coolspirit LTD,22/09/2022,RS144051,476.80,0.00,COM-CASP-EXTENDED-ADD Commvault License Maintenance Subscription - Level: CASP-E (Additional),Software Maintenance
Wyre Council,http://opendatacommunities.org/doc/district-council/wyre,29/09/2022,Resources,Support Services,135B,Coolspirit LTD,22/09/2022,RS144051,286.08,0.00,GUA-CASP-EXTENDED-ADD GUARDiAN Support Subscription - Level: CASP-E (Additional),Software Maintenance
Wyre Council,http://opendatacommunities.org/doc/district-council/wyre,29/09/2022,Resources,Support Services,135B,MAINTEL EUROPE LTD,28/09/2022,RS144150,-1162.93,0.00,Credit for fixed line services for the period 01/08/22-31/08/22,Software Maintenance
Wyre Council,http://opendatacommunities.org/doc/district-council/wyre,29/09/2022,Resources,Support Services,135B,MAINTEL EUROPE LTD,28/09/2022,RS138057,-1849.46,0.00,Credit for Fixed line for the period 01/09/21-30/09/21,Software Maintenance
Wyre Council,http://opendatacommunities.org/doc/district-council/wyre,29/09/2022,People and Places,Support Services,135B,MAINTEL EUROPE LTD,28/09/2022,PE142320,-1009.36,0.00,Credit for incorrect phone book entry for the period 03/05/21-01/01/2022,Software Maintenance
Wyre Council,http://opendatacommunities.org/doc/district-council/wyre,29/09/2022,People and Places,Cultural and Related Services,132A,Tina Warren,09/09/2022,PE143747,1495.08,0.00,Fee for Summer HAF 2022 including payment for support worker at 3 sessions,Special Events
Wyre Council,http://opendatacommunities.org/doc/district-council/wyre,29/09/2022,People and Places,Cultural and Related Services,132A,JULIA M SWARBRICK,09/09/2022,PE143749,720.00,0.00,Fee for Summer HAF 2022,Special Events
Wyre Council,http://opendatacommunities.org/doc/district-council/wyre,29/09/2022,People and Places,Cultural and Related Services,132A,CARICATURE WITH ATTITUDE,13/09/2022,PE143687,720.00,0.00,Fee for Summer HAF 2022,Special Events
Wyre Council,http://opendatacommunities.org/doc/district-council/wyre,29/09/2022,People and Places,Cultural and Related Services,132A,JANINE WALKER ART,15/09/2022,PE143905,2400.00,0.00,Fee for Summer HAF 2022,Special Events
Wyre Council,http://opendatacommunities.org/doc/district-council/wyre,29/09/2022,People and Places,Cultural and Related Services,132A,Visual Print and Design Ltd,23/09/2022,PE144111,90.00,0.00,Water bases for Flag/Feather banners for The Mount,Special Events
Wyre Council,http://opendatacommunities.org/doc/district-council/wyre,29/09/2022,People and Places,Cultural and Related Services,132A,GARRY CARR BUILDING SERVICES LTD,30/09/2022,PE144342,180.00,0.00,"Marsh Mill - turn sails into cross position for Queens death , turn sails 17th and 18th Sept. for heritage open days, leave in cross position. Turn sails into normal position after the Queens funeral",Special Events
Wyre Council,http://opendatacommunities.org/doc/district-council/wyre,29/09/2022,People and Places,Support Services,135B,Dr Tree Surgeons,30/09/2022,PE144362,550.00,0.00,"Quotation 601- Trees on walk way - Catterall  Op on two &#8208; Cut back Copper Beech branches using climbing Arborist ,cuts not to exceed approx 35mm.  Additonal works &#8208; Sympathetic Crown lifting of small neighbouring trees whilst working in the ar",Special Maintenance - Trees
Wyre Council,http://opendatacommunities.org/doc/district-council/wyre,29/09/2022,People and Places,Support Services,135B,Dr Tree Surgeons,30/09/2022,PE144361,900.00,0.00,"Recent Emergency Tree Works (storm damage trees)

1st- Fallen tree at WECP 500+ VAT
2nd - Civic centre pine tree 400 + VAT",Special Maintenance - Trees
Wyre Council,http://opendatacommunities.org/doc/district-council/wyre,29/09/2022,People and Places,Environmental Services,132B,HUWS GRAY LTD,21/09/2022,PE143938,283.24,0.00,"Supply and deliver as per quotation H5L10320 to Fleetwood Cemetery on Beach Road, Fleetwood on Monday 15th August 2022 from 8am - please contact tel: 07956422107 prior to arrival",Special Works
Wyre Council,http://opendatacommunities.org/doc/district-council/wyre,29/09/2022,People and Places,Environmental Services,132B,GARRY CARR BUILDING SERVICES LTD,15/09/2022,PE143696,225.00,0.00,"Works to brick up grave at Fleetwood Cemetery, Beach Road, Fleetwood   Arranged for Tuesday 16th August   Cost quoted 225 plus vat   All materials will be on site for you from Monday",Special Works
Wyre Council,http://opendatacommunities.org/doc/district-council/wyre,29/09/2022,Resources,Support Services,135B,Bates Office Services Ltd,28/09/2022,RS144269,25.95,0.00,REXEL METEOR STAPLER HSTRIP BLK 2100019,Stationery
Wyre Council,http://opendatacommunities.org/doc/district-council/wyre,29/09/2022,Resources,Support Services,135B,Bates Office Services Ltd,28/09/2022,RS144269,0.31,0.00,INITIATIVE STICKY TAC 70G,Stationery
Wyre Council,http://opendatacommunities.org/doc/district-council/wyre,29/09/2022,Resources,Support Services,135B,Bates Office Services Ltd,28/09/2022,RS144269,23.64,0.00,PENTEL ENERGEL XM RETRCT PEN BLACK PK12,Stationery
Wyre Council,http://opendatacommunities.org/doc/district-council/wyre,29/09/2022,Resources,Support Services,135B,Bates Office Services Ltd,30/09/2022,RS144387,29.15,0.00,A4 Pale green paper as per quote with Kelly Griffin - PC1770,Stationery
Wyre Council,http://opendatacommunities.org/doc/district-council/wyre,29/09/2022,Resources,Support Services,135B,Bates Office Services Ltd,12/09/2022,RS141646,35.00,0.00,ARTWORK A3 WHITE COPIER PAPER REAM,Stationery
Wyre Council,http://opendatacommunities.org/doc/district-council/wyre,29/09/2022,Resources,Support Services,135B,Bates Office Services Ltd,12/09/2022,RS141646,24.30,0.00,Flush Cut Folders,Stationery
Wyre Council,http://opendatacommunities.org/doc/district-council/wyre,29/09/2022,Resources,Support Services,135B,Bates Office Services Ltd,12/09/2022,RS143777,2.34,0.00,Q CONNECT RULER 30CM CLEAR,Stationery
Wyre Council,http://opendatacommunities.org/doc/district-council/wyre,29/09/2022,Resources,Support Services,135B,Bates Office Services Ltd,12/09/2022,RS143777,46.62,0.00,AURORA SEMI DESKTOP CALCULATOR DB453B,Stationery
Wyre Council,http://opendatacommunities.org/doc/district-council/wyre,29/09/2022,Resources,Support Services,135B,Bates Office Services Ltd,12/09/2022,RS143777,4.92,0.00,INITIATIVE STAPLER 26/6 1/2 STRIP BLACK,Stationery
Wyre Council,http://opendatacommunities.org/doc/district-council/wyre,29/09/2022,Resources,Support Services,135B,Bates Office Services Ltd,12/09/2022,RS143777,5.60,0.00,PAPERMATE PENCIL NON-STOP 01445 PK12,Stationery
Wyre Council,http://opendatacommunities.org/doc/district-council/wyre,29/09/2022,Resources,Support Services,135B,Bates Office Services Ltd,12/09/2022,RS143777,7.07,0.00,ENERGIZER INDL BATTERY AAA/LR03 PK10,Stationery
Wyre Council,http://opendatacommunities.org/doc/district-council/wyre,29/09/2022,Resources,Support Services,135B,Bates Office Services Ltd,12/09/2022,RS143777,17.76,0.00,BIC CRISTAL BALLPOINT PEN MED BLUE PK100,Stationery
Wyre Council,http://opendatacommunities.org/doc/district-council/wyre,29/09/2022,Resources,Support Services,135B,Bates Office Services Ltd,12/09/2022,RS143777,16.23,0.00,BIC CRISTAL BALLPOINT MEDIUM BLACK PK100,Stationery
Wyre Council,http://opendatacommunities.org/doc/district-council/wyre,29/09/2022,Resources,Support Services,135B,Bates Office Services Ltd,12/09/2022,RS143777,13.79,0.00,Q CONNECT QUICK STICKY NT 76X127MM RB,Stationery
Wyre Council,http://opendatacommunities.org/doc/district-council/wyre,29/09/2022,Resources,Support Services,135B,Bates Office Services Ltd,12/09/2022,RS143777,5.18,0.00,SPIRAL SHORTHAND NOTEBOOK 80LF PK10,Stationery
Wyre Council,http://opendatacommunities.org/doc/district-council/wyre,29/09/2022,Resources,Support Services,135B,Bates Office Services Ltd,12/09/2022,RS143777,8.41,0.00,Q CONNECT REFILL PADS A4 F/M 80 LEAF,Stationery
Wyre Council,http://opendatacommunities.org/doc/district-council/wyre,29/09/2022,People and Places,Cultural and Related Services,132A,Bates Office Services Ltd,13/09/2022,PE143825,84.39,0.00,AVERY A3 GUILLOTINE GUA3,Stationery
Wyre Council,http://opendatacommunities.org/doc/district-council/wyre,29/09/2022,People and Places,Cultural and Related Services,132A,Bates Office Services Ltd,13/09/2022,PE143824,85.00,0.00,HP 05A BLK ORGL LASERJET TONER CART,Stationery
Wyre Council,http://opendatacommunities.org/doc/district-council/wyre,29/09/2022,People and Places,Cultural and Related Services,132A,Bates Office Services Ltd,28/09/2022,PE144268,6.63,0.00,BOSTIK BLU-TACK HANDY PACK 60G - PK12,Stationery
Wyre Council,http://opendatacommunities.org/doc/district-council/wyre,29/09/2022,People and Places,Cultural and Related Services,132A,Bates Office Services Ltd,28/09/2022,PE144268,12.76,0.00,Q CONNECT A4 2 RING BINDER PP GRN,Stationery
Wyre Council,http://opendatacommunities.org/doc/district-council/wyre,29/09/2022,People and Places,Cultural and Related Services,132A,Bates Office Services Ltd,16/09/2022,PE143826,79.08,0.00,A4 80GSM WHITEBOX COPIER PAPER,Stationery
Wyre Council,http://opendatacommunities.org/doc/district-council/wyre,29/09/2022,People and Places,Support Services,135B,Bates Office Services Ltd,12/09/2022,PE143626,4.50,0.00,Q CONNECT SCREEN/MULTI PURP WIPES PK100,Stationery
Wyre Council,http://opendatacommunities.org/doc/district-council/wyre,29/09/2022,People and Places,Support Services,135B,Bates Office Services Ltd,12/09/2022,PE143626,9.00,0.00,REXEL FILING/CLIP 50MM CAP 70850 BXD,Stationery
Wyre Council,http://opendatacommunities.org/doc/district-council/wyre,29/09/2022,People and Places,Support Services,135B,Bates Office Services Ltd,12/09/2022,PE143626,19.81,0.00,SELLOTAPE BROWN PARCEL TAPE 48MMX50M,Stationery
Wyre Council,http://opendatacommunities.org/doc/district-council/wyre,29/09/2022,People and Places,Support Services,135B,Bates Office Services Ltd,12/09/2022,PE143626,24.48,0.00,LOCTITE SUPERGLUE BRUSH ON 5G 3FOR2,Stationery
Wyre Council,http://opendatacommunities.org/doc/district-council/wyre,29/09/2022,People and Places,Support Services,135B,Bates Office Services Ltd,12/09/2022,PE143626,7.42,0.00,QCONNECT HP CN045AE HP950XL IJET CRT BLK,Stationery
Wyre Council,http://opendatacommunities.org/doc/district-council/wyre,29/09/2022,People and Places,Support Services,135B,Bates Office Services Ltd,12/09/2022,PE143626,9.07,0.00,VERBATIM AAA ALKALINE BATTERIES PK24,Stationery
Wyre Council,http://opendatacommunities.org/doc/district-council/wyre,29/09/2022,People and Places,Support Services,135B,Bates Office Services Ltd,12/09/2022,PE143626,2.76,0.00,WB HIGHLIGHTER YELLOW,Stationery
Wyre Council,http://opendatacommunities.org/doc/district-council/wyre,29/09/2022,People and Places,Support Services,135B,Bates Office Services Ltd,12/09/2022,PE143626,1.20,0.00,Q CONNECT SCISSORS 170MM CB101228,Stationery
Wyre Council,http://opendatacommunities.org/doc/district-council/wyre,29/09/2022,People and Places,Support Services,135B,Bates Office Services Ltd,12/09/2022,PE143626,0.99,0.00,GRAFFICO ERASER TIP PENCIL HB PK12,Stationery
Wyre Council,http://opendatacommunities.org/doc/district-council/wyre,29/09/2022,People and Places,Support Services,135B,Bates Office Services Ltd,12/09/2022,PE143626,6.37,0.00,BICMATIC STRONG MECH PENCIL 0.9MM 892271,Stationery
Wyre Council,http://opendatacommunities.org/doc/district-council/wyre,29/09/2022,People and Places,Support Services,135B,Bates Office Services Ltd,12/09/2022,PE143626,6.23,0.00,BIC CRISTAL BALLPOINT MEDIUM BLACK PK100,Stationery
Wyre Council,http://opendatacommunities.org/doc/district-council/wyre,29/09/2022,People and Places,Support Services,135B,Bates Office Services Ltd,12/09/2022,PE143626,12.69,0.00,GRAFFICO REC W/BD NTEBK 160P A5 P10,Stationery
Wyre Council,http://opendatacommunities.org/doc/district-council/wyre,29/09/2022,People and Places,Support Services,135B,Bates Office Services Ltd,12/09/2022,PE143626,19.58,0.00,QCONNECT HP NO339 C9504EE IJET CRT BK 2P,Stationery
Wyre Council,http://opendatacommunities.org/doc/district-council/wyre,29/09/2022,People and Places,Support Services,135B,Bates Office Services Ltd,12/09/2022,PE143626,14.19,0.00,INITIATIVE SQ CUT FOLDERS 250GSM FC PINK,Stationery
Wyre Council,http://opendatacommunities.org/doc/district-council/wyre,29/09/2022,People and Places,Support Services,135B,Bates Office Services Ltd,12/09/2022,PE143626,7.49,0.00,WB MANUSCRIPT BOOK A4 FEINT,Stationery
Wyre Council,http://opendatacommunities.org/doc/district-council/wyre,29/09/2022,People and Places,Support Services,135B,Bates Office Services Ltd,12/09/2022,PE143626,7.54,0.00,GRAFFICO RECYCLED SPIRAL NTBOOK A4,Stationery
Wyre Council,http://opendatacommunities.org/doc/district-council/wyre,29/09/2022,People and Places,Support Services,135B,Bates Office Services Ltd,12/09/2022,PE143626,1.40,0.00,Q CONNECT QUICKNOTE 75X125MM YLW,Stationery
Wyre Council,http://opendatacommunities.org/doc/district-council/wyre,29/09/2022,People and Places,Support Services,135B,Bates Office Services Ltd,12/09/2022,PE143626,1.35,0.00,INITIATIVE REPB NOTES 76X76MM YELLOW,Stationery
Wyre Council,http://opendatacommunities.org/doc/district-council/wyre,29/09/2022,People and Places,Support Services,135B,Bates Office Services Ltd,12/09/2022,PE143626,4.52,0.00,Q CONNECT 9V BATTERY,Stationery
Wyre Council,http://opendatacommunities.org/doc/district-council/wyre,29/09/2022,People and Places,Support Services,135B,Bates Office Services Ltd,12/09/2022,PE143626,4.52,0.00,VERBATIM AA ALKALINE BATTERIES PK24,Stationery
Wyre Council,http://opendatacommunities.org/doc/district-council/wyre,29/09/2022,People and Places,Support Services,135B,Bates Office Services Ltd,13/09/2022,PE143821,18.82,0.00,JEYES SANILAV URINAL CHAN BLOCKS CITRUS,Stationery
Wyre Council,http://opendatacommunities.org/doc/district-council/wyre,29/09/2022,People and Places,Support Services,135B,Bates Office Services Ltd,28/09/2022,PE144291,3.70,0.00,Q CONNECT GEL PENS BLACK,Stationery
Wyre Council,http://opendatacommunities.org/doc/district-council/wyre,29/09/2022,People and Places,Support Services,135B,Bates Office Services Ltd,28/09/2022,PE144291,7.19,0.00,Q CONNECT GEL PENS BLUE,Stationery
Wyre Council,http://opendatacommunities.org/doc/district-council/wyre,29/09/2022,People and Places,Support Services,135B,Bates Office Services Ltd,28/09/2022,PE144291,8.25,0.00,Q-CONNECT QUICK DRY GEL PEN RED PK12,Stationery
Wyre Council,http://opendatacommunities.org/doc/district-council/wyre,29/09/2022,Resources,Current Assets,130B,Whistl Uk Limited,26/09/2022,RS144197,434.67,0.00,Annual postage charges 01/04/2022 - 31/03/2022,Stores Purchases
Wyre Council,http://opendatacommunities.org/doc/district-council/wyre,29/09/2022,Resources,Current Assets,130B,Whistl Uk Limited,21/09/2022,RS143953,209.21,0.00,Annual postage charges 01/04/2022 - 31/03/2022,Stores Purchases
Wyre Council,http://opendatacommunities.org/doc/district-council/wyre,29/09/2022,Resources,Current Assets,130B,Whistl Uk Limited,22/09/2022,RS144018,478.28,0.00,Annual postage charges 01/04/2022 - 31/03/2022,Stores Purchases
Wyre Council,http://opendatacommunities.org/doc/district-council/wyre,29/09/2022,Resources,Current Assets,130B,Whistl Uk Limited,22/09/2022,RS144030,278.81,0.00,Annual postage charges 01/04/2022 - 31/03/2022,Stores Purchases
Wyre Council,http://opendatacommunities.org/doc/district-council/wyre,29/09/2022,Resources,Current Assets,130B,Whistl Uk Limited,09/09/2022,RS143737,327.43,0.00,Annual postage charges 01/04/2022 - 31/03/2022,Stores Purchases
Wyre Council,http://opendatacommunities.org/doc/district-council/wyre,29/09/2022,People and Places,Environmental Services,132B,CTS Traffic And Transportation  LTD,13/09/2022,PE143776,995.00,0.00,"Wyre Council unmet demand survey starting around March 2022. 12,500 + VAT",Taxi Unmet Demand Study
Wyre Council,http://opendatacommunities.org/doc/district-council/wyre,29/09/2022,People and Places,Support Services,135B,INST. Cemetery & Crematorium Management,28/09/2022,PE144271,550.00,0.00,Attendance ICCM Learning Convention,Technical Training
Wyre Council,http://opendatacommunities.org/doc/district-council/wyre,29/09/2022,People and Places,Environmental Services,132B,Lancaster Training Services LTD,16/09/2022,PE143745,1131.00,0.00,Category C Driver Training 19.5hrs  2-6 Sept 2022 Steve Birchenough,Technical Training
Wyre Council,http://opendatacommunities.org/doc/district-council/wyre,29/09/2022,People and Places,Environmental Services,132B,Lancaster Training Services LTD,16/09/2022,PE143745,155.00,0.00,DSA Test Fees,Technical Training
Wyre Council,http://opendatacommunities.org/doc/district-council/wyre,29/09/2022,People and Places,Environmental Services,132B,Lancaster Training Services LTD,16/09/2022,PE142983,200.00,0.00,LGV Class C (Rigid) Driver Training - Mark Birley Tuesday 9th August 2022,Technical Training
Wyre Council,http://opendatacommunities.org/doc/district-council/wyre,29/09/2022,People and Places,Environmental Services,132B,Lancaster Training Services LTD,16/09/2022,PE142983,115.00,0.00,DSA Test Fee - Mark Birley,Technical Training
Wyre Council,http://opendatacommunities.org/doc/district-council/wyre,29/09/2022,People and Places,Environmental Services,132B,Lancaster Training Services LTD,16/09/2022,PE143378,275.00,0.00,SIMON WILKINSON RE-TEST  DSA TEST FEE,Technical Training
Wyre Council,http://opendatacommunities.org/doc/district-council/wyre,29/09/2022,People and Places,Environmental Services,132B,Lancaster Training Services LTD,16/09/2022,PE143378,115.00,0.00,Simon wilkinson DSA fee,Technical Training
Wyre Council,http://opendatacommunities.org/doc/district-council/wyre,29/09/2022,People and Places,Support Services,135B,Myerscough College,23/09/2022,PE144108,480.00,0.00,"For 2 x candidates to undertake PA1, PA6 training",Technical Training
Wyre Council,http://opendatacommunities.org/doc/district-council/wyre,29/09/2022,Resources,Support Services,135B,The Royal Town Planning Institute,26/09/2022,RS144130,240.00,0.00,8 x Planning Training Courses,Technical Training
Wyre Council,http://opendatacommunities.org/doc/district-council/wyre,29/09/2022,Resources,Support Services,135B,The Royal Town Planning Institute,26/09/2022,RS144132,240.00,0.00,8 x Planning Training Courses,Technical Training
Wyre Council,http://opendatacommunities.org/doc/district-council/wyre,29/09/2022,Resources,Support Services,135B,The Royal Town Planning Institute,26/09/2022,RS144131,240.00,0.00,8 x Planning Training Courses,Technical Training
Wyre Council,http://opendatacommunities.org/doc/district-council/wyre,29/09/2022,Resources,Support Services,135B,The Royal Town Planning Institute,26/09/2022,RS144133,240.00,0.00,8 x Planning Training Courses,Technical Training
Wyre Council,http://opendatacommunities.org/doc/district-council/wyre,29/09/2022,Resources,Housing General Fund,134A,RH Environmental LTD,22/09/2022,RS144021,850.00,0.00,"HHSRS Training for Neil Catterson and Chris Webster,",Technical Training
Wyre Council,http://opendatacommunities.org/doc/district-council/wyre,29/09/2022,Resources,Cultural and Related Services,132A,British telecommunications PLC,21/09/2022,RS143919,14.19,0.00,Annual Bill,Telephone - Buildings and Offices
Wyre Council,http://opendatacommunities.org/doc/district-council/wyre,29/09/2022,Resources,Environmental Services,132B,British telecommunications PLC,21/09/2022,RS143919,1.04,0.00,Annual Bill,Telephone - Buildings and Offices
Wyre Council,http://opendatacommunities.org/doc/district-council/wyre,29/09/2022,Resources,Environmental Services,132B,British telecommunications PLC,20/09/2022,RS143841,1.04,0.00,Annual Bill,Telephone - Buildings and Offices
Wyre Council,http://opendatacommunities.org/doc/district-council/wyre,29/09/2022,Resources,Environmental Services,132B,British telecommunications PLC,20/09/2022,RS143023,1.04,0.00,Annual Bill,Telephone - Buildings and Offices
Wyre Council,http://opendatacommunities.org/doc/district-council/wyre,29/09/2022,Resources,Cultural and Related Services,132A,British telecommunications PLC,21/09/2022,RS143919,1.56,0.00,Annual Bill,Telephone - Buildings and Offices
Wyre Council,http://opendatacommunities.org/doc/district-council/wyre,29/09/2022,Resources,Cultural and Related Services,132A,British telecommunications PLC,20/09/2022,RS143841,1.56,0.00,Annual Bill,Telephone - Buildings and Offices
Wyre Council,http://opendatacommunities.org/doc/district-council/wyre,29/09/2022,Resources,Cultural and Related Services,132A,British telecommunications PLC,20/09/2022,RS143023,1.56,0.00,Annual Bill,Telephone - Buildings and Offices
Wyre Council,http://opendatacommunities.org/doc/district-council/wyre,29/09/2022,Resources,Planning and Development Servs,132C,British telecommunications PLC,21/09/2022,RS143919,10.00,0.00,Late payment fee,Telephone - Buildings and Offices
Wyre Council,http://opendatacommunities.org/doc/district-council/wyre,29/09/2022,Resources,Planning and Development Servs,132C,British telecommunications PLC,21/09/2022,RS143919,35.09,0.00,Annual Bill,Telephone - Buildings and Offices
Wyre Council,http://opendatacommunities.org/doc/district-council/wyre,29/09/2022,Resources,Planning and Development Servs,132C,British telecommunications PLC,20/09/2022,RS143023,35.09,0.00,Annual Bill,Telephone - Buildings and Offices
Wyre Council,http://opendatacommunities.org/doc/district-council/wyre,29/09/2022,Resources,Planning and Development Servs,132C,British telecommunications PLC,20/09/2022,RS143841,35.09,0.00,Annual Bill,Telephone - Buildings and Offices
Wyre Council,http://opendatacommunities.org/doc/district-council/wyre,29/09/2022,Resources,Cultural and Related Services,132A,British telecommunications PLC,20/09/2022,RS143023,14.19,0.00,Annual Bill,Telephone - Buildings and Offices
Wyre Council,http://opendatacommunities.org/doc/district-council/wyre,29/09/2022,Resources,Cultural and Related Services,132A,British telecommunications PLC,20/09/2022,RS143841,14.19,0.00,Annual Bill,Telephone - Buildings and Offices
Wyre Council,http://opendatacommunities.org/doc/district-council/wyre,29/09/2022,Resources,Planning and Development Servs,132C,British telecommunications PLC,21/09/2022,RS143919,1.56,0.00,Annual Bill,Telephone - Buildings and Offices
Wyre Council,http://opendatacommunities.org/doc/district-council/wyre,29/09/2022,Resources,Planning and Development Servs,132C,British telecommunications PLC,20/09/2022,RS143023,1.56,0.00,Annual Bill,Telephone - Buildings and Offices
Wyre Council,http://opendatacommunities.org/doc/district-council/wyre,29/09/2022,Resources,Planning and Development Servs,132C,British telecommunications PLC,20/09/2022,RS143841,1.56,0.00,Annual Bill,Telephone - Buildings and Offices
Wyre Council,http://opendatacommunities.org/doc/district-council/wyre,29/09/2022,Resources,Environmental Services,132B,Daisy Communications LTD,12/09/2022,RS143381,28.44,0.00,Monthly Charges to the 31/07/2034,Telephone - Buildings and Offices
Wyre Council,http://opendatacommunities.org/doc/district-council/wyre,29/09/2022,Resources,Support Services,135B,Daisy Communications LTD,12/09/2022,RS143381,9.48,0.00,Monthly Charges to the 31/07/2045,Telephone - Buildings and Offices
Wyre Council,http://opendatacommunities.org/doc/district-council/wyre,29/09/2022,Resources,Support Services,135B,Daisy Communications LTD,12/09/2022,RS143381,1789.79,0.00,Monthly Charges to the 31/07/2046,Telephone - Buildings and Offices
Wyre Council,http://opendatacommunities.org/doc/district-council/wyre,29/09/2022,Resources,Cultural and Related Services,132A,Daisy Communications LTD,12/09/2022,RS143381,18.96,0.00,Monthly Charges to the 31/07/2025,Telephone - Buildings and Offices
Wyre Council,http://opendatacommunities.org/doc/district-council/wyre,29/09/2022,Resources,Cultural and Related Services,132A,Daisy Communications LTD,12/09/2022,RS143381,9.48,0.00,Monthly Charges to the 31/07/2028,Telephone - Buildings and Offices
Wyre Council,http://opendatacommunities.org/doc/district-council/wyre,29/09/2022,Resources,Support Services,135B,Daisy Communications LTD,12/09/2022,RS143381,29.47,0.00,Monthly Charges to the 31/07/2043,Telephone - Buildings and Offices
Wyre Council,http://opendatacommunities.org/doc/district-council/wyre,29/09/2022,Resources,Cultural and Related Services,132A,Daisy Communications LTD,12/09/2022,RS143381,9.48,0.00,Monthly Charges to the 31/07/2024,Telephone - Buildings and Offices
Wyre Council,http://opendatacommunities.org/doc/district-council/wyre,29/09/2022,Resources,Cultural and Related Services,132A,Daisy Communications LTD,12/09/2022,RS143381,29.59,0.00,Monthly Charges to the 31/07/2031,Telephone - Buildings and Offices
Wyre Council,http://opendatacommunities.org/doc/district-council/wyre,29/09/2022,Resources,Environmental Services,132B,Daisy Communications LTD,12/09/2022,RS143381,9.48,0.00,Monthly Charges to the 31/07/2033,Telephone - Buildings and Offices
Wyre Council,http://opendatacommunities.org/doc/district-council/wyre,29/09/2022,Resources,Planning and Development Servs,132C,Daisy Communications LTD,12/09/2022,RS143381,0.46,0.00,Monthly Charges to the 31/07/2036,Telephone - Buildings and Offices
Wyre Council,http://opendatacommunities.org/doc/district-council/wyre,29/09/2022,Resources,Cultural and Related Services,132A,Daisy Communications LTD,12/09/2022,RS143381,9.48,0.00,Monthly Charges to the 31/07/2023,Telephone - Buildings and Offices
Wyre Council,http://opendatacommunities.org/doc/district-council/wyre,29/09/2022,Resources,Cultural and Related Services,132A,Daisy Communications LTD,12/09/2022,RS143381,58.94,0.00,Monthly Charges to the 31/07/2029,Telephone - Buildings and Offices
Wyre Council,http://opendatacommunities.org/doc/district-council/wyre,29/09/2022,Resources,Cultural and Related Services,132A,Daisy Communications LTD,12/09/2022,RS143381,9.95,0.00,Monthly Charges to the 31/07/2030,Telephone - Buildings and Offices
Wyre Council,http://opendatacommunities.org/doc/district-council/wyre,29/09/2022,Resources,Cultural and Related Services,132A,Daisy Communications LTD,12/09/2022,RS143381,53.94,0.00,Monthly Charges to the 31/07/2026,Telephone - Buildings and Offices
Wyre Council,http://opendatacommunities.org/doc/district-council/wyre,29/09/2022,Resources,Planning and Development Servs,132C,Daisy Communications LTD,12/09/2022,RS143381,9.48,0.00,Monthly Charges to the 31/07/2035,Telephone - Buildings and Offices
Wyre Council,http://opendatacommunities.org/doc/district-council/wyre,29/09/2022,Resources,Planning and Development Servs,132C,Daisy Communications LTD,12/09/2022,RS143381,1.95,0.00,Monthly Charges to the 31/07/2038,Telephone - Buildings and Offices
Wyre Council,http://opendatacommunities.org/doc/district-council/wyre,29/09/2022,Resources,Support Services,135B,Daisy Communications LTD,12/09/2022,RS143381,1.95,0.00,Monthly Charges to the 31/07/2039,Telephone - Buildings and Offices
Wyre Council,http://opendatacommunities.org/doc/district-council/wyre,29/09/2022,People and Places,Support Services,135B,Pilling Parish Council,21/09/2022,PE143973,600.00,0.00,Wyre In Bloom Contribution,Tourism Support
Wyre Council,http://opendatacommunities.org/doc/district-council/wyre,29/09/2022,People and Places,Environmental Services,132B,M J Wilkinson,15/09/2022,PE143405,857.53,0.00,"Hire of Hitachi ZX130 7/6/22 to 10/6/22, timesheet 10768 @ 857.53",Vehicle Hire
Wyre Council,http://opendatacommunities.org/doc/district-council/wyre,29/09/2022,People and Places,Environmental Services,132B,M J Wilkinson,15/09/2022,PE143912,384.41,0.00,Hire of Hitachi ZX130Order no 1077207/07/2022 to 08/07/202213 units @ 29.57,Vehicle Hire
Wyre Council,http://opendatacommunities.org/doc/district-council/wyre,29/09/2022,People and Places,Environmental Services,132B,M J Wilkinson,15/09/2022,PE143910,946.24,0.00,Hire of Hitachi ZX130Order no 10774 18/07/2022 to 22/07/202232 units @ 29.57Hire continue,Vehicle Hire
Wyre Council,http://opendatacommunities.org/doc/district-council/wyre,29/09/2022,People and Places,Environmental Services,132B,T ROBSON AND SONS,26/09/2022,PE144146,500.00,0.00,"To Supply tractor, 16 ton bale trailer and man, to remove bales of grass off grasslands at Fleetwood and transport to green waste at Out Rawcliffe",Vehicle Hire
Wyre Council,http://opendatacommunities.org/doc/district-council/wyre,29/09/2022,People and Places,Environmental Services,132B,United Utilities Standpipes,30/09/2022,PE144373,46.90,0.00,Hire of Standpipes  C11001120 C15108844 Street Cleansing  Contract SP11/2265,Water Charges-Metered
Wyre Council,http://opendatacommunities.org/doc/district-council/wyre,29/09/2022,Resources,Support Services,135B,Lancashire County Council,12/09/2022,RS143767,200.00,0.00,Approved premises Annual fee,Wedding Licence Fee
Wyre Council,http://opendatacommunities.org/doc/district-council/wyre,29/09/2022,People and Places,Cultural and Related Services,132A,Miles Bramwell Admin Services T/A Slimming World,27/09/2022,PE144193,4125.00,0.00,Places on the Wyre Weight Management programme for 2022/23 at 15 for week 1 and 5 for weeks 2-12 for each participant.,Weight Management Programme
Wyre Council,http://opendatacommunities.org/doc/district-council/wyre,29/09/2022,People and Places,Cultural and Related Services,132A,Miles Bramwell Admin Services T/A Slimming World,20/09/2022,PE143935,4225.00,0.00,Places on the Wyre Weight Management programme for 2022/23 at 15 for week 1 and 5 for weeks 2-12 for each participant.,Weight Management Programme
Wyre Council,http://opendatacommunities.org/doc/district-council/wyre,29/09/2022,People and Places,Cultural and Related Services,132A,Miles Bramwell Admin Services T/A Slimming World,22/09/2022,PE144046,2800.00,0.00,Places on the Wyre Weight Management programme for 2022/23 at 15 for week 1 and 5 for weeks 2-12 for each participant.,Weight Management Programme
